Ref No,Fund Type,Dept,Cost Centre Description    ,Description    ,Creditor Name    ,GL Code Net Amount,Payment date        
2,Revenue,CCHD,Bed Purchasing - Under 65s PWLD - South,Residential Homes,.,9294.44, 11-Jun-2013
3,Revenue,CCHD,Home Care - Elderly - North,Other Small Contracts,3 Trees Community Support Ltd,2594.96, 25-Jun-2013
4,Revenue,CCHD,Day Care - North,Private & Voluntary Day Care,3 Trees Community Support Ltd,95.52, 25-Jun-2013
5,Revenue,CCHD,Home Care - Elderly - South,Other Small Contracts,3 Trees Community Support Ltd,95.52, 25-Jun-2013
6,Revenue,CCHD,Home Care - Elderly - North,Other Small Contracts,3 Trees Community Support Ltd,2833.76, 25-Jun-2013
7,Revenue,CCHD,Day Care - North,Private & Voluntary Day Care,3 Trees Community Support Ltd,95.52, 25-Jun-2013
8,Revenue,CCHD,Home Care - Elderly - South,Other Small Contracts,3 Trees Community Support Ltd,95.52, 11-Jun-2013
9,Revenue,CCHD,Home Care - Elderly - North,Other Small Contracts,3 Trees Community Support Ltd,3008.88, 11-Jun-2013
10,Revenue,CCHD,Day Care - North,Private & Voluntary Day Care,3 Trees Community Support Ltd,95.52, 11-Jun-2013
11,Revenue,CCHD,Home Care - Elderly - South,Other Small Contracts,3 Trees Community Support Ltd,95.52, 11-Jun-2013
12,Revenue,CCHD,Home Care - Elderly - North,Other Small Contracts,3 Trees Community Support Ltd,2594.96, 11-Jun-2013
13,Revenue,CCHD,Day Care - North,Private & Voluntary Day Care,3 Trees Community Support Ltd,47.76, 11-Jun-2013
14,Revenue,CCHD,Home Care - Elderly - South,Other Small Contracts,3 Trees Community Support Ltd,95.52, 17-Jun-2013
15,Revenue,CCHD,Home Care - Elderly - North,Other Small Contracts,3 Trees Community Support Ltd,2626.8, 17-Jun-2013
16,Revenue,CCHD,Day Care - North,Private & Voluntary Day Care,3 Trees Community Support Ltd,99.5, 17-Jun-2013
17,Revenue,CCHD,Home Care - Elderly - North,Other Small Contracts,3 Trees Community Support Ltd,646.2, 20-Jun-2013
18,Revenue,CCHD,Home Care - Elderly - North,Other Small Contracts,3 Trees Community Support Ltd,784.8, 20-Jun-2013
19,Revenue,CCHD,Supported Living - South,Private & Voluntary Home Care,3 Trees Community Support Ltd,826.05, 14-Jun-2013
20,Revenue,CCHD,Supported Living - South,Private & Voluntary Home Care,3 Trees Community Support Ltd,1857.78, 14-Jun-2013
21,Revenue,CCHD,Purchase of Non-Res Care - North,Private & Voluntary Day Care,3 Trees Community Support Ltd,4798.5, 11-Jun-2013
22,Revenue,CCHD,Supported Living - South,Private & Voluntary Home Care,3 Trees Community Support Ltd,2307.3, 21-Jun-2013
23,Revenue,CCHD,Purchase of Non-Res Care - North,Private & Voluntary Day Care,3 Trees Community Support Ltd,1933.2, 18-Jun-2013
24,Revenue,CCHD,Purchase of Non-Res Care - North,Private & Voluntary Day Care,3 Trees Community Support Ltd,1506.49, 11-Jun-2013
25,Revenue,CCHD,Purchase of Non-Res Care - North,Private & Voluntary Day Care,3 Trees Community Support Ltd,1387.67, 18-Jun-2013
26,Revenue,CCHD,Purchase of Non-Res Care - North,Private & Voluntary Day Care,3 Trees Community Support Ltd,6777.04, 19-Jun-2013
27,Revenue,CCHD,Purchase of Non-Res Care - South,Private & Voluntary Day Care,3 Trees Community Support Ltd,3649.73, 21-Jun-2013
28,Revenue,CCHD,Supported Living - North,Private & Voluntary Home Care,3 Trees Community Support Ltd,7973.72, 07-Jun-2013
29,Revenue,CCHD,Supported Living - North,Private & Voluntary Home Care,3 Trees Community Support Ltd,7632.8, 18-Jun-2013
30,Revenue,CCHD,Bed Purchasing - Under 65s PWLD - South,Residential Homes,5Th Floor Harlech Court,27699.63, 11-Jun-2013
31,Revenue,CCHD,Bed Purchasing - Under 65s PWLD - South,Residential Homes,5Th Floor Harlech Court,15828.36, 11-Jun-2013
32,Revenue,CCHD,Bed purchasing - Under 65s PWLD - North,Residential Homes,5Th Floor Harlech Court,13758.48, 11-Jun-2013
33,Revenue,CCHD,Bed purchasing - Under 65s PWLD - North,Residential Homes,5Th Floor Harlech Court,16352.68, 11-Jun-2013
34,Revenue,CCHD,Bed Purchasing - Frenchay Hospital,Nursing Homes,Aabletone Nursing Home,848.76, 11-Jun-2013
35,Revenue,CCHD,Home Care - Elderly - South,Other Small Contracts,Abacus Care (Western) Ltd,970.55, 21-Jun-2013
36,Revenue,CCHD,Home Care - Elderly - North,Other Small Contracts,Abacus Care (Western) Ltd,995.25, 21-Jun-2013
37,Revenue,CCHD,Home Care - Elderly - South,Other Small Contracts,Abacus Care (Western) Ltd,920.99, 24-Jun-2013
38,Revenue,CCHD,Home Care - Elderly - North,Other Small Contracts,Abacus Care (Western) Ltd,995.25, 24-Jun-2013
39,Revenue,CCHD,Home Care - Elderly - South,Other Small Contracts,Abacus Care (Western) Ltd,830.13, 21-Jun-2013
40,Revenue,CCHD,Home Care - Elderly - North,Other Small Contracts,Abacus Care (Western) Ltd,995.25, 21-Jun-2013
41,Revenue,CCHD,Home Care - Elderly - South,Other Small Contracts,Abacus Care (Western) Ltd,801.22, 21-Jun-2013
42,Revenue,CCHD,Home Care - Elderly - North,Other Small Contracts,Abacus Care (Western) Ltd,995.25, 21-Jun-2013
43,Revenue,CCHD,Bed Purchasing - Frenchay Hospital,Residential Homes,Abbey Grange,1292.4, 11-Jun-2013
44,Revenue,CCHD,Day Care - North,Private & Voluntary Day Care,About Me Care and Support Limited,1315.84, 24-Jun-2013
45,Revenue,CCHD,Day Care - South,Private & Voluntary Day Care,About Me Care and Support Limited,1315.37, 14-Jun-2013
46,Revenue,CCHD,Day Care - North,Private & Voluntary Day Care,About Me Care and Support Limited,540.8, 24-Jun-2013
47,Revenue,CCHD,Day Care - South,Private & Voluntary Day Care,About Me Care and Support Limited,780.15, 13-Jun-2013
48,Revenue,CCHD,Bed purchasing - Under 65s PWLD - North,Residential Homes,Acorn Care Providers,17829.25, 28-Jun-2013
49,Revenue,CCHD,Older People's Commissioned Se,Grants to Voluntary Bodies,Action for Blind People,24242.25, 28-Jun-2013
50,Revenue,CCHD,Section 117 Placements MH Younger,Private & Voluntary Day Care,Adolphus Care Ltd,4087.02, 07-Jun-2013
51,Revenue,CCHD,Section 117 Placements MH Younger,Private & Voluntary Day Care,Adolphus Care Ltd,4087.02, 17-Jun-2013
52,Revenue,CCHD,SLA Grants - Support Serv,Grants to Voluntary Bodies,Age UK South Gloucestershire,5437.75, 28-Jun-2013
53,Revenue,CCHD,Day Care - North,Private & Voluntary Day Care,Age UK South Gloucestershire,516, 24-Jun-2013
54,Revenue,CCHD,Day Care - South,Private & Voluntary Day Care,Age UK South Gloucestershire,824.56, 14-Jun-2013
55,Revenue,CCHD,Elderly MH Day Care South,Private & Voluntary Day Care,Age UK South Gloucestershire,516, 13-Jun-2013
56,Revenue,CCHD,Day Care - South,Private & Voluntary Day Care,Age UK South Gloucestershire,634.84, 13-Jun-2013
57,Revenue,CCHD,Day Care - South,Private & Voluntary Day Care,Age UK South Gloucestershire,1322.84, 14-Jun-2013
58,Revenue,CCHD,Home Care - Elderly - South,Other Small Contracts,Agincare Chippenham,1517.04, 06-Jun-2013
59,Revenue,CCHD,Home Care - Elderly - South,Other Small Contracts,Agincare Chippenham,1578.96, 06-Jun-2013
60,Revenue,CCHD,Home Care - Elderly - South,Other Small Contracts,Agincare Chippenham,1780.2, 06-Jun-2013
61,Revenue,CCHD,Home Care - Elderly - South,Other Small Contracts,Agincare Chippenham,1802.51, 14-Jun-2013
62,Revenue,CCHD,Home Care - Elderly - South,Other Small Contracts,Agincare Chippenham,1673.48, 06-Jun-2013
63,Revenue,CCHD,Home Care - Elderly - South,Other Small Contracts,Agincare Chippenham,1755.59, 06-Jun-2013
64,Revenue,CCHD,Home Care - Elderly - South,Other Small Contracts,Agincare Chippenham,1712.58, 14-Jun-2013
65,Revenue,CCHD,Home Care - Elderly - South,Other Small Contracts,Agincare Chippenham,1696.94, 14-Jun-2013
66,Revenue,CCHD,Home Care - Elderly - South,Other Small Contracts,Agincare Chippenham,1599.19, 14-Jun-2013
67,Revenue,CCHD,Home Care - Elderly - South,Other Small Contracts,Agincare Chippenham,1607.01, 14-Jun-2013
68,Revenue,CCHD,Home Care - Elderly - South,Other Small Contracts,Agincare Chippenham,1587.46, 14-Jun-2013
69,Revenue,CCHD,Home Care - Elderly - South,Other Small Contracts,Agincare UK Limited,813.28, 14-Jun-2013
70,Revenue,CCHD,Home Care - Elderly - North,Other Small Contracts,Agincare UK Limited,78.2, 14-Jun-2013
71,Revenue,CCHD,Day Care - South,Private & Voluntary Day Care,Agincare UK Limited,132.94, 14-Jun-2013
72,Revenue,CCHD,Elderly MH Day Care North,Private & Voluntary Day Care,Agincare UK Limited,117.3, 14-Jun-2013
73,Revenue,CCHD,Home Care - Elderly - South,Other Small Contracts,Agincare UK Limited,914.94, 14-Jun-2013
74,Revenue,CCHD,Home Care - Elderly - North,Other Small Contracts,Agincare UK Limited,78.2, 14-Jun-2013
75,Revenue,CCHD,Day Care - South,Private & Voluntary Day Care,Agincare UK Limited,132.94, 14-Jun-2013
76,Revenue,CCHD,Elderly MH Day Care North,Private & Voluntary Day Care,Agincare UK Limited,117.3, 14-Jun-2013
77,Revenue,CCHD,Home Care - Elderly - South,Other Small Contracts,Agincare UK Limited,875.84, 14-Jun-2013
78,Revenue,CCHD,Home Care - Elderly - North,Other Small Contracts,Agincare UK Limited,78.2, 14-Jun-2013
79,Revenue,CCHD,Day Care - South,Private & Voluntary Day Care,Agincare UK Limited,109.48, 14-Jun-2013
80,Revenue,CCHD,Elderly MH Day Care North,Private & Voluntary Day Care,Agincare UK Limited,117.3, 14-Jun-2013
81,Revenue,CCHD,Home Care - Elderly - South,Other Small Contracts,Agincare UK Limited,766.36, 17-Jun-2013
82,Revenue,CCHD,Home Care - Elderly - North,Other Small Contracts,Agincare UK Limited,82.11, 17-Jun-2013
83,Revenue,CCHD,Day Care - South,Private & Voluntary Day Care,Agincare UK Limited,101.66, 17-Jun-2013
84,Revenue,CCHD,Elderly MH Day Care North,Private & Voluntary Day Care,Agincare UK Limited,117.3, 17-Jun-2013
85,Revenue,CCHD,Home Care - Elderly - South,Other Small Contracts,Agincare UK Limited,735.08, 14-Jun-2013
86,Revenue,CCHD,Home Care - Elderly - North,Other Small Contracts,Agincare UK Limited,82.11, 14-Jun-2013
87,Revenue,CCHD,Day Care - South,Private & Voluntary Day Care,Agincare UK Limited,101.66, 14-Jun-2013
88,Revenue,CCHD,Elderly MH Day Care North,Private & Voluntary Day Care,Agincare UK Limited,113.39, 14-Jun-2013
89,Revenue,CCHD,S117 Placements PCT,Residential Homes,Alexandra House,6875.64, 11-Jun-2013
90,Revenue,CCHD,Section 117 Placements MH Younger,Residential Homes,Alexandra House,6400.88, 11-Jun-2013
91,Revenue,CCHD,Elderly MH Day Care North,Private & Voluntary Day Care,Alzheimer`s Society Bristol,505.47, 28-Jun-2013
92,Revenue,CCHD,Elderly MH Day Care North,Private & Voluntary Day Care,Alzheimer`s Society Bristol,866.52, 28-Jun-2013
93,Revenue,CCHD,Day Care - South,Private & Voluntary Day Care,Alzheimer`s Society Bristol,649.89, 28-Jun-2013
94,Revenue,CCHD,Bed Purchasing - Elderly S117- North,Private & Voluntary Day Care,Alzheimer`s Society Bristol,722.1, 28-Jun-2013
95,Revenue,CCHD,Elderly MH Day Care South,Private & Voluntary Day Care,Alzheimer`s Society Bristol,722.1, 28-Jun-2013
96,Revenue,CCHD,Bed Purchasing - Frenchay Hospital,Residential Homes,Amber Care Ltd,1432.79, 11-Jun-2013
97,Revenue,CCHD,Bed Purchasing - Southmead Hospital,Nursing Homes,Ambleside Nusing Ho!,1425.36, 11-Jun-2013
98,Revenue,CCHD,Bed Purchasing - Frenchay Hospital,Residential Homes,Anbridge Care Home,822.44, 11-Jun-2013
99,Revenue,CCHD,Bed Purchasing - Elderly - North,Nursing Homes,Annabel House,1401.52, 11-Jun-2013
100,Revenue,CCHD,Bed purchasing - Under 65s PWLD - North,Residential Homes,Ark Care Homes Ltd,10163.76, 11-Jun-2013
101,Revenue,CCHD,Bed Purchasing - Elderly - South,Residential Homes,Ashbourne House Care Home Limited,1107.96, 11-Jun-2013
102,Revenue,CCHD,Bed and Breakfast,Bed & Breakfast,Ashley Guest Houses Limited,504, 05-Jun-2013
103,Revenue,CCHD,Bed and Breakfast,Bed & Breakfast,Ashley Guest Houses Limited,504, 12-Jun-2013
104,Revenue,CCHD,Bed and Breakfast,Bed & Breakfast,Ashley Guest Houses Limited,542, 26-Jun-2013
105,Revenue,CCHD,Bed and Breakfast,Bed & Breakfast,Ashley Guest Houses Limited,504, 04-Jun-2013
106,Revenue,CCHD,Bed purchasing - Under 65s PWLD - North,Residential Homes,Aspects 2 Limited,6265.24, 11-Jun-2013
107,Revenue,CCHD,Supported Living - North,Private & Voluntary Home Care,Aspirations Support Bristol Limited,5660.92, 07-Jun-2013
108,Revenue,CCHD,Supported Living - South,Private & Voluntary Home Care,Aspirations Support Bristol Limited,4155.22, 07-Jun-2013
109,Revenue,CCHD,Supported Living - South,Private & Voluntary Home Care,Aspirations Support Bristol Limited,3571.54, 07-Jun-2013
110,Revenue,CCHD,Supported Living - South,Private & Voluntary Home Care,Aspirations Support Bristol Limited,4995.46, 07-Jun-2013
111,Revenue,CCHD,Supported Living - South,Private & Voluntary Home Care,Aspirations Support Bristol Limited,5978.71, 07-Jun-2013
112,Revenue,CCHD,Purchase of Non-Res Care - South,Private & Voluntary Day Care,Aspirations Support Bristol Limited,3124.35, 07-Jun-2013
113,Revenue,CCHD,Supported Living - North,Private & Voluntary Home Care,Aspirations Support Bristol Limited,8291, 07-Jun-2013
114,Revenue,CCHD,Supported Living - South,Private & Voluntary Home Care,Aspirations Support Bristol Limited,558.6, 07-Jun-2013
115,Revenue,CCHD,Bed Purchasing - Under 65s PWLD - South,Residential Homes,Autism Specialised Care Homes,5612.12, 11-Jun-2013
116,Revenue,CCHD,SLA Grants - Support Serv,Grants to Voluntary Bodies,Avon & Wiltshire Mental Health,1207, 12-Jun-2013
117,Revenue,CCHD,SLA Grants - Support Serv,Grants to Voluntary Bodies,Avon & Wiltshire Mental Health,5000, 12-Jun-2013
118,Revenue,CCHD,Purchase of Non-Res Care - North,Private & Voluntary Day Care,Avon Autistic Foundation Limited,2301.6, 20-Jun-2013
119,Revenue,CCHD,Bed Purchasing - Frenchay Hospital,Nursing Homes,Bayview Nursing & Residential Home,1463.36, 11-Jun-2013
120,Revenue,CCHD,Bed Purchasing - Elderly - North,Residential Homes,Beaufort House,2365.58, 11-Jun-2013
121,Revenue,CCHD,Bed Purchasing - Elderly - North,Residential Homes,Beaufort House,1801.76, 11-Jun-2013
122,Revenue,CCHD,Bed Purchasing - Elderly - South,Residential Homes,Beaufort House,2156.42, 11-Jun-2013
123,Revenue,CCHD,Bed purchasing - Elderly MH - North,Residential Homes,Beaufort House,1427.44, 11-Jun-2013
124,Revenue,CCHD,Bed Purchasing - Elderly S117- North,Residential Homes,Beaufort House,2322.08, 11-Jun-2013
125,Revenue,CCHD,Bed purchasing - Elderly MH - North,Residential Homes,Beaufort House,1383.68, 11-Jun-2013
126,Revenue,CCHD,Bed Purchasing - Elderly - North,Residential Homes,Beaufort House,3163.34, 11-Jun-2013
127,Revenue,CCHD,Bed Purchasing - Elderly - North,Residential Homes,Beaufort House,2213.89, 11-Jun-2013
128,Revenue,CCHD,Bed Purchasing - Elderly - North,Residential Homes,Beaufort House,1836.08, 11-Jun-2013
129,Revenue,CCHD,Bed Purchasing - Frenchay Hospital,Residential Homes,Beaufort House,1285.32, 11-Jun-2013
130,Revenue,CCHD,Bed Purchasing - Elderly - North,Residential Homes,Beaufort House,3021.69, 11-Jun-2013
131,Revenue,CCHD,Bed Purchasing - Elderly - North,Residential Homes,Beaufort House,1726.68, 11-Jun-2013
132,Revenue,CCHD,Bed purchasing - Elderly MH - North,Residential Homes,Beaufort House,878.76, 11-Jun-2013
133,Revenue,CCHD,Bed purchasing - Elderly MH - North,Residential Homes,Beaufort House,1018.44, 11-Jun-2013
134,Revenue,CCHD,Bed purchasing - Elderly MH - North,Residential Homes,Beaufort House,1684.12, 11-Jun-2013
135,Revenue,CCHD,Bed Purchasing - Elderly - North,Residential Homes,Beaufort House,1519.32, 11-Jun-2013
136,Revenue,CCHD,Bed purchasing - Elderly PWLD - South,Residential Homes,Bedrock Lodge,2909.4, 11-Jun-2013
137,Revenue,CCHD,Section 117 Placements MH Younger,Residential Homes,Bedrock Lodge,1837.68, 11-Jun-2013
138,Revenue,CCHD,Bed Purchasing - Elderly - North,Residential Homes,Beech House,810, 11-Jun-2013
139,Revenue,CCHD,South Glos Users in South Glos Homes,Nursing Homes,Beech House,878.32, 11-Jun-2013
140,Revenue,CCHD,Bed Purchasing - Elderly - North,Nursing Homes,Beech House,1718.95, 11-Jun-2013
141,Revenue,CCHD,Bed Purchasing - Frenchay Hospital,Nursing Homes,Beech House,698.16, 11-Jun-2013
142,Revenue,CCHD,Bed Purchasing - Elderly - North,Nursing Homes,Beech House,693.56, 11-Jun-2013
143,Revenue,CCHD,Bed Purchasing - Elderly - North,Residential Homes,Beech House,1265, 11-Jun-2013
144,Revenue,CCHD,Bed Purchasing - Elderly - North,Nursing Homes,Beech House,2095.68, 11-Jun-2013
145,Revenue,CCHD,Bed Purchasing - Elderly - North,Nursing Homes,Beech House,725.16, 11-Jun-2013
146,Revenue,CCHD,Bed Purchasing - Southmead Hospital,Nursing Homes,Beech House,2305.76, 11-Jun-2013
147,Revenue,CCHD,Bed Purchasing - Elderly - North,Nursing Homes,Beech House,2220.52, 11-Jun-2013
148,Revenue,CCHD,South Glos Users in South Glos Homes,Nursing Homes,Blossom Field,878.32, 11-Jun-2013
149,Revenue,CCHD,Bed Purchasing - Elderly - North,Nursing Homes,Blossom Field,1096.6, 11-Jun-2013
150,Revenue,CCHD,Bed purchasing - Elderly MH - North,Nursing Homes,Blossom Field,1400.04, 11-Jun-2013
151,Revenue,CCHD,Bed Purchasing - Elderly - South,Nursing Homes,Blossom Field,1884.56, 11-Jun-2013
152,Revenue,CCHD,Bed Purchasing - Elderly - South,Nursing Homes,Blossom Fields,2990.37, 11-Jun-2013
153,Revenue,CCHD,Bed Purchasing - Elderly - North,Nursing Homes,Blossom Fields,6862.79, 11-Jun-2013
154,Revenue,CCHD,South Glos Users in South Glos Homes,Nursing Homes,Blossom Fields,1317.48, 11-Jun-2013
155,Revenue,CCHD,Bed purchasing - Elderly MH - North,Nursing Homes,Blossom Fields,1560.49, 11-Jun-2013
156,Revenue,CCHD,Training - Adult Services,Training Expenses,Bob Dawson,750, 20-Jun-2013
157,Revenue,CCHD,Bed purchasing - Under 65s PWLD - North,Residential Homes,Bradbury House,11413.01, 11-Jun-2013
158,Revenue,CCHD,Home Care - Elderly - North,Other Small Contracts,Bradley House Home Care Services,917.78, 06-Jun-2013
159,Revenue,CCHD,Day Care - North,Private & Voluntary Day Care,Bradley House Home Care Services,101.04, 06-Jun-2013
160,Revenue,CCHD,Home Care - Elderly - North,Other Small Contracts,Bradley House Home Care Services,921.99, 06-Jun-2013
161,Revenue,CCHD,Day Care - North,Private & Voluntary Day Care,Bradley House Home Care Services,101.04, 06-Jun-2013
162,Revenue,CCHD,Home Care - Elderly - North,Other Small Contracts,Bradley House Home Care Services,968.3, 17-Jun-2013
163,Revenue,CCHD,Day Care - North,Private & Voluntary Day Care,Bradley House Home Care Services,101.04, 17-Jun-2013
164,Revenue,CCHD,Home Care - Elderly - North,Other Small Contracts,Bradley House Home Care Services,930.41, 17-Jun-2013
165,Revenue,CCHD,Day Care - North,Private & Voluntary Day Care,Bradley House Home Care Services,101.04, 17-Jun-2013
166,Revenue,CCHD,Home Care - Elderly - South,Other Small Contracts,Bradley House Home Care Services,16.84, 25-Jun-2013
167,Revenue,CCHD,Home Care - Elderly - North,Other Small Contracts,Bradley House Home Care Services,921.99, 25-Jun-2013
168,Revenue,CCHD,Day Care - North,Private & Voluntary Day Care,Bradley House Home Care Services,101.04, 25-Jun-2013
169,Revenue,CCHD,Alexandra Way,"Provisions (Food, etc)",Brake Bros,636.97, 20-Jun-2013
170,Revenue,CCHD,Alexandra Way,"Provisions (Food, etc)",Brake Bros,495.56, 20-Jun-2013
171,Revenue,CCHD,Bed Purchasing - Elderly - North,Residential Homes,Bridge House Care Home,2353.14, 11-Jun-2013
172,Revenue,CCHD,Bed Purchasing - Elderly - North,Residential Homes,Bridge House Care Home,1246, 11-Jun-2013
173,Revenue,CCHD,Bed Purchasing - Elderly - North,Residential Homes,Bridge House Care Home,1485.04, 11-Jun-2013
174,Revenue,CCHD,Bed Purchasing - Elderly - North,Residential Homes,Bridge House Care Home,1150.56, 11-Jun-2013
175,Revenue,CCHD,Bed Purchasing - Elderly - North,Residential Homes,Bridge House Care Home,1444.96, 11-Jun-2013
176,Revenue,CCHD,Bed Purchasing - Elderly MH - South,Residential Homes,Brightbow,2067.28, 11-Jun-2013
177,Revenue,CCHD,MH Purchasing - Younger,Residential Homes,Brightbow,920.8, 11-Jun-2013
178,Revenue,CCHD,Older People's Commissioned Se,Grants to Voluntary Bodies,Bristol Area Stroke Foundation,4618.25, 28-Jun-2013
179,Revenue,CCHD,Purchase of RAC places,Other L.A.'s - General,Bristol City Council,7770.33, 27-Jun-2013
180,Revenue,CCHD,Purchase of RAC places,Other L.A.'s - General,Bristol City Council,9561.91, 27-Jun-2013
181,Revenue,CCHD,Purchase of RAC places,Other L.A.'s - General,Bristol City Council,9141.71, 27-Jun-2013
182,Revenue,CCHD,Purchase of RAC places,Other L.A.'s - General,Bristol City Council,4818.45, 27-Jun-2013
183,Revenue,CCHD,Supported Living - North,Private & Voluntary Home Care,Bristol Houses UK Limited,1303.14, 19-Jun-2013
184,Revenue,CCHD,Supported Living - North,Private & Voluntary Home Care,Bristol Houses UK Limited,1056.55, 19-Jun-2013
185,Revenue,CCHD,Day Care - North,Private & Voluntary Day Care,Bristol Houses UK Limited,1540.88, 19-Jun-2013
186,Revenue,CCHD,Supported Living - North,Private & Voluntary Home Care,Bristol Houses UK Limited,986.16, 19-Jun-2013
187,Revenue,CCHD,Day Care - North,Private & Voluntary Day Care,Bristol Houses UK Limited,2342.13, 19-Jun-2013
188,Revenue,CCHD,Supported Living - North,Private & Voluntary Home Care,Bristol Houses UK Limited,605.6, 19-Jun-2013
189,Revenue,CCHD,Supported Living - North,Private & Voluntary Home Care,Bristol Houses UK Limited,961.39, 19-Jun-2013
190,Revenue,CCHD,Younger MH non-res purchasing,Private & Voluntary Day Care,Bristol Houses UK Limited,726.72, 19-Jun-2013
191,Revenue,CCHD,Supported Living - North,Private & Voluntary Home Care,Bristol Houses UK Limited,605.6, 19-Jun-2013
192,Revenue,CCHD,Bed and Breakfast,Bed & Breakfast,Bristol Housing & Support Limited,1892, 17-Jun-2013
193,Revenue,CCHD,Bed Purchasing - Elderly - North,Residential Homes,Brook Lane Residential Home,910.08, 11-Jun-2013
194,Revenue,CCHD,Home Care - Elderly - North,Private & Voluntary Home Care,Brunelcare,15809.01, 03-Jun-2013
195,Revenue,CCHD,Home Care - Elderly - North,Private & Voluntary Home Care,Brunelcare,15809.01, 10-Jun-2013
196,Revenue,CCHD,Home Care - Elderly - North,Private & Voluntary Home Care,Brunelcare,15809.01, 17-Jun-2013
197,Revenue,CCHD,Home Care - Elderly - North,Private & Voluntary Home Care,Brunelcare,15809.01, 24-Jun-2013
198,Revenue,CCHD,Home Care - Elderly - South,Other Small Contracts,Brunelcare,3259.92, 19-Jun-2013
199,Revenue,CCHD,Home Care - Elderly - North,Other Small Contracts,Brunelcare,4061.72, 19-Jun-2013
200,Revenue,CCHD,Day Care - South,Private & Voluntary Day Care,Brunelcare,69.36, 19-Jun-2013
201,Revenue,CCHD,Day Care - North,Private & Voluntary Day Care,Brunelcare,81.6, 19-Jun-2013
202,Revenue,CCHD,Home care - Elderly MH - North,Other Small Contracts,Brunelcare,150.96, 19-Jun-2013
203,Revenue,CCHD,Home Care - Elderly - South,Other Small Contracts,Brunelcare,2831.52, 19-Jun-2013
204,Revenue,CCHD,Home Care - Elderly - North,Other Small Contracts,Brunelcare,4289.88, 19-Jun-2013
205,Revenue,CCHD,Day Care - South,Private & Voluntary Day Care,Brunelcare,73.44, 19-Jun-2013
206,Revenue,CCHD,Day Care - North,Private & Voluntary Day Care,Brunelcare,48.96, 19-Jun-2013
207,Revenue,CCHD,Home care - Elderly MH - North,Other Small Contracts,Brunelcare,155.04, 19-Jun-2013
208,Revenue,CCHD,Home Care - Elderly - South,Other Small Contracts,Brunelcare,2978.4, 19-Jun-2013
209,Revenue,CCHD,Home Care - Elderly - North,Other Small Contracts,Brunelcare,4469.64, 19-Jun-2013
210,Revenue,CCHD,Day Care - South,Private & Voluntary Day Care,Brunelcare,73.44, 19-Jun-2013
211,Revenue,CCHD,Day Care - North,Private & Voluntary Day Care,Brunelcare,81.6, 19-Jun-2013
212,Revenue,CCHD,Home care - Elderly MH - North,Other Small Contracts,Brunelcare,150.96, 19-Jun-2013
213,Revenue,CCHD,Home Care - Elderly - South,Other Small Contracts,Brunelcare,3231.36, 20-Jun-2013
214,Revenue,CCHD,Home Care - Elderly - North,Other Small Contracts,Brunelcare,4604.04, 20-Jun-2013
215,Revenue,CCHD,Day Care - South,Private & Voluntary Day Care,Brunelcare,73.44, 20-Jun-2013
216,Revenue,CCHD,Day Care - North,Private & Voluntary Day Care,Brunelcare,48.96, 20-Jun-2013
217,Revenue,CCHD,Home care - Elderly MH - North,Other Small Contracts,Brunelcare,155.04, 20-Jun-2013
218,Revenue,CCHD,Home Care - Elderly - South,Other Small Contracts,Brunelcare,3447.6, 17-Jun-2013
219,Revenue,CCHD,Home Care - Elderly - North,Other Small Contracts,Brunelcare,4118.52, 17-Jun-2013
220,Revenue,CCHD,Day Care - South,Private & Voluntary Day Care,Brunelcare,73.44, 17-Jun-2013
221,Revenue,CCHD,Day Care - North,Private & Voluntary Day Care,Brunelcare,85.68, 17-Jun-2013
222,Revenue,CCHD,Home care - Elderly MH - North,Other Small Contracts,Brunelcare,155.04, 17-Jun-2013
223,Revenue,CCHD,Information Systems - Software,Computer Equipment - Purchase,BT Global Services Solutions,978.04, 20-Jun-2013
224,Revenue,CCHD,Woodleaze,Cleaning & Domestic Services,Bunzl Cleaning & Hygiene Supplies,588.02, 06-Jun-2013
225,Revenue,CCHD,Bed Purchasing - Frenchay Hospital,Nursing Homes,BUPA Care Service,1302, 07-Jun-2013
226,Revenue,CCHD,Bed purchasing - Phys Dis - North,Nursing Homes,Bupa Care Services  Bridge House,5851.68, 11-Jun-2013
227,Revenue,CCHD,South Glos Users in all other LA Homes,Nursing Homes,Bupa Care Services  Bridge House,604.4, 11-Jun-2013
228,Revenue,CCHD,Bed purchasing - Elderly MH - North,Residential Homes,Bupa Care Services  Bridge House,1900, 11-Jun-2013
229,Revenue,CCHD,Supported Living - North,Private & Voluntary Home Care,Camphill Communities Thornbury Limited,2290.92, 05-Jun-2013
230,Revenue,CCHD,Supported Living - North,Private & Voluntary Home Care,Camphill Communities Thornbury Limited,2049.76, 05-Jun-2013
231,Revenue,CCHD,Supported Living - North,Private & Voluntary Home Care,Camphill Communities Thornbury Limited,2016.48, 05-Jun-2013
232,Revenue,CCHD,Supported Living - North,Private & Voluntary Home Care,Camphill Communities Thornbury Limited,2132.92, 13-Jun-2013
233,Revenue,CCHD,Supported Living - North,Private & Voluntary Home Care,Camphill Communities Thornbury Limited,2016.48, 13-Jun-2013
234,Revenue,CCHD,Supported Living - North,Private & Voluntary Home Care,Camphill Communities Thornbury Limited,2237.32, 13-Jun-2013
235,Revenue,CCHD,Supported Living - North,Private & Voluntary Home Care,Camphill Communities Thornbury Limited,1792.96, 13-Jun-2013
236,Revenue,CCHD,Supported Living - North,Private & Voluntary Home Care,Camphill Communities Thornbury Limited,2400.74, 06-Jun-2013
237,Revenue,CCHD,Supported Living - North,Private & Voluntary Home Care,Camphill Communities Thornbury Limited,2223.4, 21-Jun-2013
238,Revenue,CCHD,Supported Living - North,Private & Voluntary Home Care,Camphill Communities Thornbury Limited,2793.8, 20-Jun-2013
239,Revenue,CCHD,Supported Living - North,Private & Voluntary Home Care,Camphill Communities Thornbury Limited,1753.08, 26-Jun-2013
240,Revenue,CCHD,Supported Living - North,Private & Voluntary Home Care,Camphill Communities Thornbury Limited,2597.48, 26-Jun-2013
241,Revenue,CCHD,Supported Living - North,Private & Voluntary Home Care,Camphill Communities Thornbury Limited,2498.76, 26-Jun-2013
242,Revenue,CCHD,Supported Living - North,Private & Voluntary Home Care,Camphill Communities Thornbury Limited,1822.24, 28-Jun-2013
243,Revenue,CCHD,Home Care - Elderly - South,Other Small Contracts,Care 1st Homecare,2687.13, 21-Jun-2013
244,Revenue,CCHD,Home Care - Elderly - North,Other Small Contracts,Care 1st Homecare,5617.65, 21-Jun-2013
245,Revenue,CCHD,Day Care - South,Private & Voluntary Day Care,Care 1st Homecare,114.52, 21-Jun-2013
246,Revenue,CCHD,Day Care - North,Private & Voluntary Day Care,Care 1st Homecare,44.99, 21-Jun-2013
247,Revenue,CCHD,Home Care - Elderly - South,Other Small Contracts,Care 1st Homecare,3366.07, 21-Jun-2013
248,Revenue,CCHD,Home Care - Elderly - North,Other Small Contracts,Care 1st Homecare,5605.38, 21-Jun-2013
249,Revenue,CCHD,Day Care - South,Private & Voluntary Day Care,Care 1st Homecare,32.72, 21-Jun-2013
250,Revenue,CCHD,Day Care - North,Private & Voluntary Day Care,Care 1st Homecare,53.17, 21-Jun-2013
251,Revenue,CCHD,Bed Purchasing - PWLD S 117 Placements,Residential Homes,Care Community Ltd,7536.4, 11-Jun-2013
252,Revenue,CCHD,Home Care - Elderly - North,Other Small Contracts,Care Horizons Limited,2964.98, 17-Jun-2013
253,Revenue,CCHD,Day Care - South,Private & Voluntary Day Care,Care Horizons Limited,363.54, 17-Jun-2013
254,Revenue,CCHD,Home Care - Elderly - North,Other Small Contracts,Care Horizons Limited,2973.89, 25-Jun-2013
255,Revenue,CCHD,Day Care - South,Private & Voluntary Day Care,Care Horizons Limited,354.78, 25-Jun-2013
256,Revenue,CCHD,Home Care - Elderly - North,Other Small Contracts,Care Horizons Limited,2941.05, 25-Jun-2013
257,Revenue,CCHD,Day Care - South,Private & Voluntary Day Care,Care Horizons Limited,346.03, 25-Jun-2013
258,Revenue,CCHD,Supported Living - North,Private & Voluntary Home Care,Care Horizons Limited,5861.23, 18-Jun-2013
259,Revenue,CCHD,Purchase of Non-Res Care - North,Private & Voluntary Day Care,Care Horizons Limited,1788.52, 18-Jun-2013
260,Revenue,CCHD,Purchase of Non-Res Care - North,Private & Voluntary Day Care,Care Horizons Limited,1190.31, 18-Jun-2013
261,Revenue,CCHD,Purchase of Non-Res Care - North,Private & Voluntary Day Care,Care Horizons Limited,1241.13, 20-Jun-2013
262,Revenue,CCHD,Purchase of Non-Res Care - North,Private & Voluntary Day Care,Care Horizons Limited,1392.38, 20-Jun-2013
263,Revenue,CCHD,Supported Living - South,Private & Voluntary Home Care,Care Horizons Limited,1848.82, 21-Jun-2013
264,Revenue,CCHD,Supported Living - North,Private & Voluntary Home Care,Care Horizons Limited,5373.79, 27-Jun-2013
265,Revenue,CCHD,Home Care - Elderly - North,Other Small Contracts,Care Horizons Limited,2947.45, 11-Jun-2013
266,Revenue,CCHD,Day Care - South,Private & Voluntary Day Care,Care Horizons Limited,372.31, 11-Jun-2013
267,Revenue,CCHD,Training - Adult Services,Training Expenses,Care Learning Limited,11988, 13-Jun-2013
268,Revenue,CCHD,Electronic Home Care Monitoring,Other Supplies & Services,Care Monitoring 2000 Limited,5000, 04-Jun-2013
269,Revenue,CCHD,Electronic Home Care Monitoring,Other Supplies & Services,Care Monitoring 2000 Limited,12633.99, 14-Jun-2013
270,Revenue,CCHD,Electronic Home Care Monitoring,Other Supplies & Services,Care Monitoring 2000 Limited,3628, 20-Jun-2013
271,Revenue,CCHD,Home Care - Elderly - South,Other Small Contracts,Care UK,5828.6, 11-Jun-2013
272,Revenue,CCHD,Home Care - Elderly - North,Other Small Contracts,Care UK,2381.62, 11-Jun-2013
273,Revenue,CCHD,Day Care - South,Private & Voluntary Day Care,Care UK,301.08, 11-Jun-2013
274,Revenue,CCHD,Day Care - North,Private & Voluntary Day Care,Care UK,559.7, 11-Jun-2013
275,Revenue,CCHD,Home care - Elderly MH - North,Other Small Contracts,Care UK,559.7, 11-Jun-2013
276,Revenue,CCHD,Elderly MH Day Care North,Private & Voluntary Day Care,Care UK,92.64, 11-Jun-2013
277,Revenue,CCHD,Home Care - Elderly - South,Other Small Contracts,Care UK,5882.64, 06-Jun-2013
278,Revenue,CCHD,Home Care - Elderly - North,Other Small Contracts,Care UK,2346.88, 06-Jun-2013
279,Revenue,CCHD,Day Care - South,Private & Voluntary Day Care,Care UK,301.08, 06-Jun-2013
280,Revenue,CCHD,Day Care - North,Private & Voluntary Day Care,Care UK,512, 06-Jun-2013
281,Revenue,CCHD,Home care - Elderly MH - North,Other Small Contracts,Care UK,567.42, 06-Jun-2013
282,Revenue,CCHD,Elderly MH Day Care North,Private & Voluntary Day Care,Care UK,138.96, 06-Jun-2013
283,Revenue,CCHD,Home Care - Elderly - South,Other Small Contracts,Care UK,5585.42, 17-Jun-2013
284,Revenue,CCHD,Home Care - Elderly - North,Other Small Contracts,Care UK,2335.3, 17-Jun-2013
285,Revenue,CCHD,Day Care - South,Private & Voluntary Day Care,Care UK,304.94, 17-Jun-2013
286,Revenue,CCHD,Day Care - North,Private & Voluntary Day Care,Care UK,598.3, 17-Jun-2013
287,Revenue,CCHD,Home care - Elderly MH - North,Other Small Contracts,Care UK,582.86, 17-Jun-2013
288,Revenue,CCHD,Elderly MH Day Care North,Private & Voluntary Day Care,Care UK,138.96, 17-Jun-2013
289,Revenue,CCHD,Home Care - Elderly - South,Other Small Contracts,Care UK,5268.9, 17-Jun-2013
290,Revenue,CCHD,Home Care - Elderly - North,Other Small Contracts,Care UK,2084.4, 17-Jun-2013
291,Revenue,CCHD,Day Care - South,Private & Voluntary Day Care,Care UK,301.08, 17-Jun-2013
292,Revenue,CCHD,Day Care - North,Private & Voluntary Day Care,Care UK,524.96, 17-Jun-2013
293,Revenue,CCHD,Home care - Elderly MH - North,Other Small Contracts,Care UK,579, 17-Jun-2013
294,Revenue,CCHD,Elderly MH Day Care North,Private & Voluntary Day Care,Care UK,138.96, 17-Jun-2013
295,Revenue,CCHD,Home Care - Elderly - South,Other Small Contracts,Care UK,4886.76, 27-Jun-2013
296,Revenue,CCHD,Home Care - Elderly - North,Other Small Contracts,Care UK,2134.58, 27-Jun-2013
297,Revenue,CCHD,Day Care - South,Private & Voluntary Day Care,Care UK,304.94, 27-Jun-2013
298,Revenue,CCHD,Day Care - North,Private & Voluntary Day Care,Care UK,582.86, 27-Jun-2013
299,Revenue,CCHD,Home care - Elderly MH - North,Other Small Contracts,Care UK,579, 27-Jun-2013
300,Revenue,CCHD,Elderly MH Day Care North,Private & Voluntary Day Care,Care UK,138.96, 27-Jun-2013
301,Revenue,CCHD,Home Care - Elderly - South,Other Small Contracts,Care UK,5554.54, 27-Jun-2013
302,Revenue,CCHD,Home Care - Elderly - North,Other Small Contracts,Care UK,2142.3, 27-Jun-2013
303,Revenue,CCHD,Day Care - South,Private & Voluntary Day Care,Care UK,270.2, 27-Jun-2013
304,Revenue,CCHD,Day Care - North,Private & Voluntary Day Care,Care UK,590.58, 27-Jun-2013
305,Revenue,CCHD,Home care - Elderly MH - North,Other Small Contracts,Care UK,586.72, 27-Jun-2013
306,Revenue,CCHD,Elderly MH Day Care North,Private & Voluntary Day Care,Care UK,138.96, 27-Jun-2013
307,Revenue,CCHD,Home Care - Elderly - North,Other Small Contracts,Carers R Us (Bristol) Limited,586.72, 11-Jun-2013
308,Revenue,CCHD,Home Care - Elderly - North,Other Small Contracts,Carers R Us (Bristol) Limited,586.72, 11-Jun-2013
309,Revenue,CCHD,Home Care - Elderly - South,Other Small Contracts,Carewatch (Bristol),981.75, 25-Jun-2013
310,Revenue,CCHD,Home Care - Elderly - North,Other Small Contracts,Carewatch (Bristol),1241, 25-Jun-2013
311,Revenue,CCHD,Home Care - Elderly - South,Other Small Contracts,Carewatch (Bristol),990.25, 25-Jun-2013
312,Revenue,CCHD,Home Care - Elderly - North,Other Small Contracts,Carewatch (Bristol),1428, 25-Jun-2013
313,Revenue,CCHD,Home Care - Elderly - South,Other Small Contracts,Carewatch (Bristol),994.5, 25-Jun-2013
314,Revenue,CCHD,Home Care - Elderly - North,Other Small Contracts,Carewatch (Bristol),1398.25, 25-Jun-2013
315,Revenue,CCHD,Home Care - Elderly - South,Other Small Contracts,Cash Friday at Lloyds TSB,101.4, 21-Jun-2013
316,Revenue,CCHD,Home Care - Elderly - North,Other Small Contracts,Cash Friday at Lloyds TSB,963.3, 21-Jun-2013
317,Revenue,CCHD,Home Care - Elderly - South,Other Small Contracts,Cash Friday at Lloyds TSB,101.4, 17-Jun-2013
318,Revenue,CCHD,Home Care - Elderly - North,Other Small Contracts,Cash Friday at Lloyds TSB,1014, 17-Jun-2013
319,Revenue,CCHD,Home Care - Elderly - South,Other Small Contracts,Cash Friday at Lloyds TSB,101.4, 17-Jun-2013
320,Revenue,CCHD,Home Care - Elderly - North,Other Small Contracts,Cash Friday at Lloyds TSB,982.8, 17-Jun-2013
321,Revenue,CCHD,Bed Purchasing - Frenchay Hospital,Residential Homes,Centenary Care Homes Ltd,1246, 11-Jun-2013
322,Revenue,CCHD,Bed Purchasing - Elderly - South,Residential Homes,Cepen Lodge Care Home,2176.28, 11-Jun-2013
323,Revenue,CCHD,Bed Purchasing - Southmead Hospital,Residential Homes,Charlton House Residential Home,1385.36, 11-Jun-2013
324,Revenue,CCHD,Home Care - Elderly - South,Other Small Contracts,Cherish Able Care Limited,4667.52, 07-Jun-2013
325,Revenue,CCHD,Home Care - Elderly - South,Other Small Contracts,Cherish Able Care Limited,5054.4, 19-Jun-2013
326,Revenue,CCHD,Home Care - Elderly - South,Other Small Contracts,Cherish Able Care Limited,4929.89, 21-Jun-2013
327,Revenue,CCHD,Home Care - Elderly - South,Other Small Contracts,Cherish Able Care Limited,5008.64, 28-Jun-2013
328,Revenue,CCHD,Bed purchasing -S28A  Under 65 - North,Residential Homes,Chescombe Lodge,8569.72, 11-Jun-2013
329,Revenue,CCHD,Bed Purchasing - Under 65s PWLD - South,Residential Homes,Chosen Court,6910.16, 11-Jun-2013
330,Revenue,CCHD,Bed Purchasing - PWLD S 117 Placements,Residential Homes,Chosen Court,8801.84, 11-Jun-2013
331,Revenue,CCHD,Bed Purchasing - Under 65s PWLD - South,Residential Homes,Chosen Court,5375.48, 11-Jun-2013
332,Revenue,CCHD,Training - Adult Services,Training Expenses,Chris Garnier,550, 14-Jun-2013
333,Revenue,CCHD,Bed purchasing - Under 65s PWLD - North,Residential Homes,Church House,10354.44, 11-Jun-2013
334,Revenue,CCHD,Bed purchasing - Under 65s PWLD - North,Residential Homes,Church House,5816.84, 11-Jun-2013
335,Revenue,CCHD,Supported Living - South,Private & Voluntary Home Care,Cintre Community,561.85, 06-Jun-2013
336,Revenue,CCHD,Community Support - MH < 65,Preventative Assistance,Cleaning Company Bristol Ltd,1000, 04-Jun-2013
337,Revenue,CCHD,Bed Purchasing - Elderly - South,Residential Homes,Cleeve Lodge,2805.53, 11-Jun-2013
338,Revenue,CCHD,Bed Purchasing - Elderly - South,Residential Homes,Cleeve Lodge,1603.16, 11-Jun-2013
339,Revenue,CCHD,Bed Purchasing - Southmead Hospital,Residential Homes,Cleeve Lodge,1435.24, 11-Jun-2013
340,Revenue,CCHD,Bed Purchasing - Elderly - South,Residential Homes,Cleeve Lodge,821.43, 11-Jun-2013
341,Revenue,CCHD,Bed Purchasing - Elderly - North,Residential Homes,Cleeve Lodge,908.44, 11-Jun-2013
342,Revenue,CCHD,Bed Purchasing - Elderly - South,Residential Homes,Cleeve Lodge,1775.52, 11-Jun-2013
343,Revenue,CCHD,Bed Purchasing - Elderly - South,Residential Homes,Cleeve Lodge,1764.48, 11-Jun-2013
344,Revenue,CCHD,Bed Purchasing - Elderly - South,Residential Homes,Cleeve Lodge,2258.44, 11-Jun-2013
345,Revenue,CCHD,Bed Purchasing - Elderly - South,Residential Homes,Cleeve Lodge,1779.92, 11-Jun-2013
346,Revenue,CCHD,Bed Purchasing - Elderly - South,Residential Homes,Cleeve Lodge,1481.12, 11-Jun-2013
347,Revenue,CCHD,Bed Purchasing - Elderly - South,Residential Homes,Collingwood Residential Home,1298.48, 11-Jun-2013
348,Revenue,CCHD,Bed Purchasing - Elderly - South,Residential Homes,Collingwood Residential Home,1403.68, 11-Jun-2013
349,Revenue,CCHD,Bed Purchasing - Elderly - South,Residential Homes,Collingwood Residential Home,1421, 11-Jun-2013
350,Revenue,CCHD,Bed Purchasing - Elderly - South,Residential Homes,Collingwood Residential Home,1089.96, 11-Jun-2013
351,Revenue,CCHD,Bed Purchasing - Elderly - South,Residential Homes,Collingwood Residential Home,1334.28, 11-Jun-2013
352,Revenue,CCHD,Bed Purchasing - Elderly MH - South,Residential Homes,Collingwood Residential Home,1306.28, 11-Jun-2013
353,Revenue,CCHD,Bed Purchasing - Elderly - South,Residential Homes,Collingwood Residential Home,1156.52, 11-Jun-2013
354,Revenue,CCHD,Bed Purchasing - Elderly - South,Residential Homes,Collingwood Residential Home,1268.04, 11-Jun-2013
355,Revenue,CCHD,Bed Purchasing - Elderly - South,Residential Homes,Collingwood Residential Home,1405.32, 11-Jun-2013
356,Revenue,CCHD,Bed and Breakfast,Bed & Breakfast,Connolly & Callaghan Limited,441, 07-Jun-2013
357,Revenue,CCHD,Bed and Breakfast,Bed & Breakfast,Connolly & Callaghan Limited,546, 03-Jun-2013
358,Revenue,CCHD,Bed and Breakfast,Bed & Breakfast,Connolly & Callaghan Limited,441, 03-Jun-2013
359,Revenue,CCHD,Bed and Breakfast,Bed & Breakfast,Connolly & Callaghan Limited,476, 03-Jun-2013
360,Revenue,CCHD,Bed and Breakfast,Bed & Breakfast,Connolly & Callaghan Limited,441, 03-Jun-2013
361,Revenue,CCHD,Bed and Breakfast,Bed & Breakfast,Connolly & Callaghan Limited,665, 04-Jun-2013
362,Revenue,CCHD,Bed and Breakfast,Bed & Breakfast,Connolly & Callaghan Limited,546, 03-Jun-2013
363,Revenue,CCHD,Bed and Breakfast,Bed & Breakfast,Connolly & Callaghan Limited,441, 03-Jun-2013
364,Revenue,CCHD,Bed and Breakfast,Bed & Breakfast,Connolly & Callaghan Limited,476, 03-Jun-2013
365,Revenue,CCHD,Bed and Breakfast,Bed & Breakfast,Connolly & Callaghan Limited,441, 03-Jun-2013
366,Revenue,CCHD,Bed and Breakfast,Bed & Breakfast,Connolly & Callaghan Limited,546, 03-Jun-2013
367,Revenue,CCHD,Bed and Breakfast,Bed & Breakfast,Connolly & Callaghan Limited,441, 03-Jun-2013
368,Revenue,CCHD,Bed and Breakfast,Bed & Breakfast,Connolly & Callaghan Limited,476, 03-Jun-2013
369,Revenue,CCHD,Bed and Breakfast,Bed & Breakfast,Connolly & Callaghan Limited,441, 07-Jun-2013
370,Revenue,CCHD,Bed and Breakfast,Bed & Breakfast,Connolly & Callaghan Limited,441, 04-Jun-2013
371,Revenue,CCHD,Bed and Breakfast,Bed & Breakfast,Connolly & Callaghan Limited,441, 04-Jun-2013
372,Revenue,CCHD,Bed and Breakfast,Bed & Breakfast,Connolly & Callaghan Limited,546, 07-Jun-2013
373,Revenue,CCHD,Bed and Breakfast,Bed & Breakfast,Connolly & Callaghan Limited,441, 04-Jun-2013
374,Revenue,CCHD,Bed and Breakfast,Bed & Breakfast,Connolly & Callaghan Limited,441, 04-Jun-2013
375,Revenue,CCHD,Bed and Breakfast,Bed & Breakfast,Connolly & Callaghan Limited,476, 04-Jun-2013
376,Revenue,CCHD,Bed and Breakfast,Bed & Breakfast,Connolly & Callaghan Limited,441, 07-Jun-2013
377,Revenue,CCHD,Bed and Breakfast,Bed & Breakfast,Connolly & Callaghan Limited,441, 07-Jun-2013
378,Revenue,CCHD,Bed and Breakfast,Bed & Breakfast,Connolly & Callaghan Limited,546, 07-Jun-2013
379,Revenue,CCHD,Bed and Breakfast,Bed & Breakfast,Connolly & Callaghan Limited,616, 07-Jun-2013
380,Revenue,CCHD,Bed and Breakfast,Bed & Breakfast,Connolly & Callaghan Limited,511, 07-Jun-2013
381,Revenue,CCHD,Bed and Breakfast,Bed & Breakfast,Connolly & Callaghan Limited,441, 07-Jun-2013
382,Revenue,CCHD,Bed and Breakfast,Bed & Breakfast,Connolly & Callaghan Limited,441, 07-Jun-2013
383,Revenue,CCHD,Bed and Breakfast,Bed & Breakfast,Connolly & Callaghan Limited,616, 11-Jun-2013
384,Revenue,CCHD,Bed and Breakfast,Bed & Breakfast,Connolly & Callaghan Limited,546, 07-Jun-2013
385,Revenue,CCHD,Bed and Breakfast,Bed & Breakfast,Connolly & Callaghan Limited,511, 07-Jun-2013
386,Revenue,CCHD,Bed and Breakfast,Bed & Breakfast,Connolly & Callaghan Limited,616, 07-Jun-2013
387,Revenue,CCHD,Bed and Breakfast,Bed & Breakfast,Connolly & Callaghan Limited,511, 07-Jun-2013
388,Revenue,CCHD,Bed and Breakfast,Bed & Breakfast,Connolly & Callaghan Limited,441, 11-Jun-2013
389,Revenue,CCHD,Bed and Breakfast,Bed & Breakfast,Connolly & Callaghan Limited,441, 14-Jun-2013
390,Revenue,CCHD,Bed and Breakfast,Bed & Breakfast,Connolly & Callaghan Limited,441, 11-Jun-2013
391,Revenue,CCHD,Bed and Breakfast,Bed & Breakfast,Connolly & Callaghan Limited,441, 11-Jun-2013
392,Revenue,CCHD,Bed and Breakfast,Bed & Breakfast,Connolly & Callaghan Limited,441, 11-Jun-2013
393,Revenue,CCHD,Bed and Breakfast,Bed & Breakfast,Connolly & Callaghan Limited,546, 11-Jun-2013
394,Revenue,CCHD,Bed and Breakfast,Bed & Breakfast,Connolly & Callaghan Limited,511, 11-Jun-2013
395,Revenue,CCHD,Bed and Breakfast,Bed & Breakfast,Connolly & Callaghan Limited,511, 11-Jun-2013
396,Revenue,CCHD,Bed and Breakfast,Bed & Breakfast,Connolly & Callaghan Limited,441, 11-Jun-2013
397,Revenue,CCHD,Bed and Breakfast,Bed & Breakfast,Connolly & Callaghan Limited,441, 11-Jun-2013
398,Revenue,CCHD,Bed and Breakfast,Bed & Breakfast,Connolly & Callaghan Limited,546, 11-Jun-2013
399,Revenue,CCHD,Bed and Breakfast,Bed & Breakfast,Connolly & Callaghan Limited,511, 14-Jun-2013
400,Revenue,CCHD,Bed and Breakfast,Bed & Breakfast,Connolly & Callaghan Limited,441, 26-Jun-2013
401,Revenue,CCHD,Bed and Breakfast,Bed & Breakfast,Connolly & Callaghan Limited,441, 26-Jun-2013
402,Revenue,CCHD,Bed and Breakfast,Bed & Breakfast,Connolly & Callaghan Limited,441, 26-Jun-2013
403,Revenue,CCHD,Bed and Breakfast,Bed & Breakfast,Connolly & Callaghan Limited,441, 26-Jun-2013
404,Revenue,CCHD,Bed and Breakfast,Bed & Breakfast,Connolly & Callaghan Limited,441, 26-Jun-2013
405,Revenue,CCHD,Bed and Breakfast,Bed & Breakfast,Connolly & Callaghan Limited,476, 26-Jun-2013
406,Revenue,CCHD,Bed and Breakfast,Bed & Breakfast,Connolly & Callaghan Limited,476, 26-Jun-2013
407,Revenue,CCHD,Bed and Breakfast,Bed & Breakfast,Connolly & Callaghan Limited,441, 26-Jun-2013
408,Revenue,CCHD,Bed and Breakfast,Bed & Breakfast,Connolly & Callaghan Limited,546, 26-Jun-2013
409,Revenue,CCHD,Bed and Breakfast,Bed & Breakfast,Connolly & Callaghan Limited,511, 26-Jun-2013
410,Revenue,CCHD,Bed and Breakfast,Bed & Breakfast,Connolly & Callaghan Limited,441, 26-Jun-2013
411,Revenue,CCHD,Bed and Breakfast,Bed & Breakfast,Connolly & Callaghan Limited,465, 26-Jun-2013
412,Revenue,CCHD,Bed and Breakfast,Bed & Breakfast,Connolly & Callaghan Limited,441, 26-Jun-2013
413,Revenue,CCHD,Bed and Breakfast,Bed & Breakfast,Connolly & Callaghan Limited,616, 26-Jun-2013
414,Revenue,CCHD,Bed Purchasing - Frenchay Hospital,Residential Homes,Coombs Wood House,962.96, 11-Jun-2013
415,Revenue,CCHD,Getting a Life Project,Other Supplies & Services,Cornwall County Council,28000, 06-Jun-2013
416,Revenue,CCHD,Bed purchasing -S28A  Under 65 - North,Residential Homes,Cream Ii Ltd  Longrun House,7924.8, 11-Jun-2013
417,Revenue,CCHD,Bed Purchasing - Under 65s PWLD - South,Residential Homes,Cream Ii Ltd  Longrun House,5546.44, 11-Jun-2013
418,Revenue,CCHD,Bed purchasing -S28A  Under 65 - North,Residential Homes,Creedy Court,9157.32, 11-Jun-2013
419,Revenue,CCHD,Bed Purchasing - S28A - Over 65- North,Residential Homes,Creedy Court,7616.76, 11-Jun-2013
420,Revenue,CCHD,Minor Adaptations Service,Prop.Serv. General Repairs,CSL Global Solutions Limited,1059, 10-Jun-2013
421,Revenue,CCHD,Brokerage and Information Service,Grants to Voluntary Bodies,D H I,9210.08, 27-Jun-2013
422,Revenue,CCHD,Purchase of Non-Res Care - South,Private & Voluntary Day Care,Daneswood,5578.32, 13-Jun-2013
423,Revenue,CCHD,Bed Purchasing - Under 65s PWLD - South,Residential Homes,Daneswood,10848.44, 11-Jun-2013
424,Revenue,CCHD,Bed purchasing - Under 65s PWLD - North,Residential Homes,Daneswood,8986.84, 11-Jun-2013
425,Revenue,CCHD,Learning Difficulties PSL,Other Supplies & Services,Individual,2016.44, 21-Jun-2013
426,Revenue,CCHD,Bed Purchasing - Elderly - South,Nursing Homes,Desai Care Homes,25928.57, 11-Jun-2013
427,Revenue,CCHD,Purchase of Non-Res Care - North,Private & Voluntary Day Care,Design 4 Life Ltd,1656.09, 20-Jun-2013
428,Revenue,CCHD,Purchase of Non-Res Care - North,Private & Voluntary Day Care,Design 4 Life Ltd,1671.93, 25-Jun-2013
429,Revenue,CCHD,Purchase of Non-Res Care - North,Private & Voluntary Day Care,Design 4 Life Ltd,1293, 25-Jun-2013
430,Revenue,CCHD,Purchase of Non-Res Care - North,Private & Voluntary Day Care,Design 4 Life Ltd,1422.3, 25-Jun-2013
431,Revenue,CCHD,Bed Purchasing - Under 65s PWLD - South,Residential Homes,Devon & Cornwall Autistic Community Trus,8668.84, 11-Jun-2013
432,Revenue,CCHD,Day Care - South,Private & Voluntary Day Care,Dhek Bhal,960.94, 28-Jun-2013
433,Revenue,CCHD,Bed Purchasing - Under 65s PWLD - South,Residential Homes,Dimensions (Uk),4808.36, 11-Jun-2013
434,Revenue,CCHD,Minor Adaptations Service,Preventative Assistance,Disabled Living Foundation,525, 21-Jun-2013
435,Revenue,CCHD,Training - Adult Services,Training Expenses,Distance Learning College & Training,1291.17, 07-Jun-2013
436,Revenue,CCHD,Community Support - South,Preventative Assistance,Dobbins Industrial Cleaning Limited,440, 10-Jun-2013
437,Revenue,CCHD,Home Care - Elderly - South,Other Small Contracts,DoCare Ltd,4520.56, 06-Jun-2013
438,Revenue,CCHD,Home Care - Elderly - North,Other Small Contracts,DoCare Ltd,7859.61, 06-Jun-2013
439,Revenue,CCHD,Day Care - North,Private & Voluntary Day Care,DoCare Ltd,168.12, 06-Jun-2013
440,Revenue,CCHD,Home Care - Elderly - South,Other Small Contracts,DoCare Ltd,4151.63, 14-Jun-2013
441,Revenue,CCHD,Home Care - Elderly - North,Other Small Contracts,DoCare Ltd,7990.37, 14-Jun-2013
442,Revenue,CCHD,Day Care - North,Private & Voluntary Day Care,DoCare Ltd,121.42, 14-Jun-2013
443,Revenue,CCHD,Home Care - Elderly - South,Other Small Contracts,DoCare Ltd,4310.41, 06-Jun-2013
444,Revenue,CCHD,Home Care - Elderly - North,Other Small Contracts,DoCare Ltd,7725.48, 06-Jun-2013
445,Revenue,CCHD,Day Care - North,Private & Voluntary Day Care,DoCare Ltd,168.12, 06-Jun-2013
446,Revenue,CCHD,Bed Purchasing - Elderly - South,Nursing Homes,Dunkirk Memorial House,1158.8, 11-Jun-2013
447,Revenue,CCHD,MH Purchasing - Younger,Residential Homes,Dunraven House,1826.8, 11-Jun-2013
448,Revenue,CCHD,Bed and Breakfast,Bed & Breakfast,E J Bartlett,651, 04-Jun-2013
449,Revenue,CCHD,Bed and Breakfast,Bed & Breakfast,E J Bartlett,868, 04-Jun-2013
450,Revenue,CCHD,Bed and Breakfast,Bed & Breakfast,E J Bartlett,651, 04-Jun-2013
451,Revenue,CCHD,Bed and Breakfast,Bed & Breakfast,E J Bartlett,434, 04-Jun-2013
452,Revenue,CCHD,Bed and Breakfast,Bed & Breakfast,E J Bartlett,651, 04-Jun-2013
453,Revenue,CCHD,Bed and Breakfast,Bed & Breakfast,E J Bartlett,651, 04-Jun-2013
454,Revenue,CCHD,Bed and Breakfast,Bed & Breakfast,E J Bartlett,651, 12-Jun-2013
455,Revenue,CCHD,Bed and Breakfast,Bed & Breakfast,E J Bartlett,651, 12-Jun-2013
456,Revenue,CCHD,Bed and Breakfast,Bed & Breakfast,E J Bartlett,868, 12-Jun-2013
457,Revenue,CCHD,Bed and Breakfast,Bed & Breakfast,E J Bartlett,620, 12-Jun-2013
458,Revenue,CCHD,Bed and Breakfast,Bed & Breakfast,E J Bartlett,434, 12-Jun-2013
459,Revenue,CCHD,Bed and Breakfast,Bed & Breakfast,E J Bartlett,651, 12-Jun-2013
460,Revenue,CCHD,Bed and Breakfast,Bed & Breakfast,E J Bartlett,651, 12-Jun-2013
461,Revenue,CCHD,Bed and Breakfast,Bed & Breakfast,E J Bartlett,651, 20-Jun-2013
462,Revenue,CCHD,Bed and Breakfast,Bed & Breakfast,E J Bartlett,651, 20-Jun-2013
463,Revenue,CCHD,Bed and Breakfast,Bed & Breakfast,E J Bartlett,868, 20-Jun-2013
464,Revenue,CCHD,Bed and Breakfast,Bed & Breakfast,E J Bartlett,434, 20-Jun-2013
465,Revenue,CCHD,Bed and Breakfast,Bed & Breakfast,E J Bartlett,434, 20-Jun-2013
466,Revenue,CCHD,Bed and Breakfast,Bed & Breakfast,E J Bartlett,651, 20-Jun-2013
467,Revenue,CCHD,Bed and Breakfast,Bed & Breakfast,E J Bartlett,651, 20-Jun-2013
468,Revenue,CCHD,Bed and Breakfast,Bed & Breakfast,E J Bartlett,651, 26-Jun-2013
469,Revenue,CCHD,Bed and Breakfast,Bed & Breakfast,E J Bartlett,651, 26-Jun-2013
470,Revenue,CCHD,Bed and Breakfast,Bed & Breakfast,E J Bartlett,868, 26-Jun-2013
471,Revenue,CCHD,Bed and Breakfast,Bed & Breakfast,E J Bartlett,434, 26-Jun-2013
472,Revenue,CCHD,Bed and Breakfast,Bed & Breakfast,E J Bartlett,434, 26-Jun-2013
473,Revenue,CCHD,Bed and Breakfast,Bed & Breakfast,E J Bartlett,651, 26-Jun-2013
474,Revenue,CCHD,Bed and Breakfast,Bed & Breakfast,E J Bartlett,651, 26-Jun-2013
475,Revenue,CCHD,Bed and Breakfast,Bed & Breakfast,E J Bartlett,651, 26-Jun-2013
476,Revenue,CCHD,Bed and Breakfast,Bed & Breakfast,E J Bartlett,651, 28-Jun-2013
477,Revenue,CCHD,Bed and Breakfast,Bed & Breakfast,E J Bartlett,868, 28-Jun-2013
478,Revenue,CCHD,Bed and Breakfast,Bed & Breakfast,E J Bartlett,434, 28-Jun-2013
479,Revenue,CCHD,Bed and Breakfast,Bed & Breakfast,E J Bartlett,434, 28-Jun-2013
480,Revenue,CCHD,Bed and Breakfast,Bed & Breakfast,E J Bartlett,651, 28-Jun-2013
481,Revenue,CCHD,Bed and Breakfast,Bed & Breakfast,E J Bartlett,651, 28-Jun-2013
482,Revenue,CCHD,Bed purchasing - Under 65s PWLD - North,Residential Homes,East Court,2180.72, 11-Jun-2013
483,Revenue,CCHD,Bed Purchasing - Southmead Hospital,Residential Homes,Edgecumbe Lodge,1246, 11-Jun-2013
484,Revenue,CCHD,Bed Purchasing - Elderly - South,Residential Homes,Edgecumbe Lodge,1052.16, 11-Jun-2013
485,Revenue,CCHD,Bed Purchasing - Elderly - South,Residential Homes,Edgecumbe Lodge,1312.64, 11-Jun-2013
486,Revenue,CCHD,Bed Purchasing - Elderly - South,Residential Homes,Edgecumbe Lodge,1405.12, 11-Jun-2013
487,Revenue,CCHD,Bed Purchasing - Elderly - South,Residential Homes,Edgecumbe Lodge,991.96, 11-Jun-2013
488,Revenue,CCHD,Bed Purchasing - Elderly - South,Residential Homes,Edgecumbe Lodge,1276.24, 11-Jun-2013
489,Revenue,CCHD,Bed Purchasing - Elderly - South,Residential Homes,Edgecumbe Lodge,3325, 11-Jun-2013
490,Revenue,CCHD,Bed Purchasing - Elderly - South,Residential Homes,Edgecumbe Lodge,1223.16, 11-Jun-2013
491,Revenue,CCHD,Bed Purchasing - Elderly - South,Residential Homes,Edgecumbe Lodge,3325, 11-Jun-2013
492,Revenue,CCHD,Bed Purchasing - Elderly MH - South,Residential Homes,Edgecumbe Lodge,1151.68, 11-Jun-2013
493,Revenue,CCHD,Bed Purchasing - Southmead Hospital,Residential Homes,Edgemont House Ltd,1414, 11-Jun-2013
494,Revenue,CCHD,Bed Purchasing - Frenchay Hospital,Residential Homes,Edgemont House Ltd,1924.07, 11-Jun-2013
495,Revenue,CCHD,Bed Purchasing - Frenchay Hospital,Residential Homes,Edgemont House Ltd,1940, 11-Jun-2013
496,Revenue,CCHD,Bed Purchasing - Frenchay Hospital,Residential Homes,Edgemont House Ltd,831.43, 11-Jun-2013
497,Revenue,CCHD,Bed Purchasing - Elderly - South,Residential Homes,Edgemont House Ltd,1246, 11-Jun-2013
498,Revenue,CCHD,Bed Purchasing - Elderly - South,Residential Homes,Edgemont House Ltd,1246, 11-Jun-2013
499,Revenue,CCHD,Bed Purchasing - Elderly - South,Residential Homes,Edgemont House Ltd,1412.04, 11-Jun-2013
500,Revenue,CCHD,Bed Purchasing - Elderly - South,Nursing Homes,Edgemont View Nursing Home,1427.52, 11-Jun-2013
501,Revenue,CCHD,Bed Purchasing - Frenchay Hospital,Nursing Homes,Edgemont View Nursing Home,1352, 11-Jun-2013
502,Revenue,CCHD,Bed Purchasing - Elderly - South,Nursing Homes,Edgemont View Nursing Home,1302, 11-Jun-2013
503,Revenue,CCHD,Bed Purchasing - Elderly - South,Nursing Homes,Edgemont View Nursing Home,1727.4, 11-Jun-2013
504,Revenue,CCHD,Bed Purchasing - Elderly - South,Nursing Homes,Edgemont View Nursing Home,1539.92, 11-Jun-2013
505,Revenue,CCHD,Bed Purchasing - Elderly - South,Nursing Homes,Edgemont View Nursing Home,1613.52, 11-Jun-2013
506,Revenue,CCHD,Bed Purchasing - Elderly - South,Nursing Homes,Edgemont View Nursing Home,1177.24, 11-Jun-2013
507,Revenue,CCHD,South Glos Users in South Glos Homes,Nursing Homes,Edgemont View Nursing Home,1623.69, 11-Jun-2013
508,Revenue,CCHD,Home Care - Elderly - South,Other Small Contracts,Elite Home Care Ltd,4784.67, 06-Jun-2013
509,Revenue,CCHD,Home care - Elderly MH - North,Other Small Contracts,Elite Home Care Ltd,157.32, 06-Jun-2013
510,Revenue,CCHD,Home Care - Elderly - South,Other Small Contracts,Elite Home Care Ltd,4295.23, 06-Jun-2013
511,Revenue,CCHD,Home care - Elderly MH - North,Other Small Contracts,Elite Home Care Ltd,161.69, 06-Jun-2013
512,Revenue,CCHD,Home Care - Elderly - South,Other Small Contracts,Elite Home Care Ltd,4194.72, 06-Jun-2013
513,Revenue,CCHD,Home care - Elderly MH - North,Other Small Contracts,Elite Home Care Ltd,157.32, 06-Jun-2013
514,Revenue,CCHD,Home Care - Elderly - South,Other Small Contracts,Elite Home Care Ltd,4435.07, 14-Jun-2013
515,Revenue,CCHD,Home care - Elderly MH - North,Other Small Contracts,Elite Home Care Ltd,157.32, 14-Jun-2013
516,Revenue,CCHD,Home Care - Elderly - South,Other Small Contracts,Elite Home Care Ltd,4054.88, 14-Jun-2013
517,Revenue,CCHD,Home care - Elderly MH - North,Other Small Contracts,Elite Home Care Ltd,157.32, 14-Jun-2013
518,Revenue,CCHD,Home Care - Elderly - South,Other Small Contracts,Elite Home Care Ltd,3945.67, 21-Jun-2013
519,Revenue,CCHD,Home care - Elderly MH - North,Other Small Contracts,Elite Home Care Ltd,157.32, 21-Jun-2013
520,Revenue,CCHD,Bed Purchasing - Elderly - South,Residential Homes,Elmbridge Residential Home Ltd,1317.56, 11-Jun-2013
521,Revenue,CCHD,Bed Purchasing - Frenchay Hospital,Nursing Homes,Elmwood Nursing Home,2223.88, 11-Jun-2013
522,Revenue,CCHD,Younger MH non-res purchasing,Private & Voluntary Day Care,Enham,638.72, 12-Jun-2013
523,Revenue,CCHD,Bed Purchasing - Southmead Hospital,Nursing Homes,Epworth House,1335, 11-Jun-2013
524,Revenue,CCHD,Home Care - Elderly - South,Other Small Contracts,Everycare (Bristol) Ltd,4731.84, 11-Jun-2013
525,Revenue,CCHD,Home Care - Elderly - North,Other Small Contracts,Everycare (Bristol) Ltd,2917.12, 11-Jun-2013
526,Revenue,CCHD,Day Care - South,Private & Voluntary Day Care,Everycare (Bristol) Ltd,101.76, 11-Jun-2013
527,Revenue,CCHD,Home Care - Elderly - South,Other Small Contracts,Everycare (Bristol) Ltd,4630.08, 20-Jun-2013
528,Revenue,CCHD,Home Care - Elderly - North,Other Small Contracts,Everycare (Bristol) Ltd,2641.52, 20-Jun-2013
529,Revenue,CCHD,Day Care - South,Private & Voluntary Day Care,Everycare (Bristol) Ltd,101.76, 20-Jun-2013
530,Revenue,CCHD,Home Care - Elderly - South,Other Small Contracts,Everycare (Bristol) Ltd,4528.32, 20-Jun-2013
531,Revenue,CCHD,Home Care - Elderly - North,Other Small Contracts,Everycare (Bristol) Ltd,2976.48, 20-Jun-2013
532,Revenue,CCHD,Day Care - South,Private & Voluntary Day Care,Everycare (Bristol) Ltd,101.76, 20-Jun-2013
533,Revenue,CCHD,Home Care - Elderly - South,Other Small Contracts,Everycare (Bristol) Ltd,4282.4, 20-Jun-2013
534,Revenue,CCHD,Home Care - Elderly - North,Other Small Contracts,Everycare (Bristol) Ltd,2573.68, 20-Jun-2013
535,Revenue,CCHD,Day Care - South,Private & Voluntary Day Care,Everycare (Bristol) Ltd,101.76, 20-Jun-2013
536,Revenue,CCHD,Bed Purchasing - Elderly MH - South,Residential Homes,Exmouth House,1397.88, 11-Jun-2013
537,Revenue,CCHD,Bed Purchasing - Elderly - South,Nursing Homes,Fairview Court,1180.4, 11-Jun-2013
538,Revenue,CCHD,Bed purchasing - Elderly MH - North,Nursing Homes,Fairview Court,1595.96, 11-Jun-2013
539,Revenue,CCHD,Bed Purchasing - Elderly MH - South,Nursing Homes,Fairview Court,3833.14, 11-Jun-2013
540,Revenue,CCHD,Bed Purchasing - Southmead Hospital,Nursing Homes,Fairview Court,1023.72, 11-Jun-2013
541,Revenue,CCHD,South Glos Users in South Glos Homes,Nursing Homes,Fairview Court,3028.07, 11-Jun-2013
542,Revenue,CCHD,South Glos Users in South Glos Homes,Nursing Homes,Fairview Court,878.32, 11-Jun-2013
543,Revenue,CCHD,South Glos Users in South Glos Homes,Nursing Homes,Fairview Court,1701.33, 11-Jun-2013
544,Revenue,CCHD,Bed Purchasing - Elderly MH - South,Residential Homes,Fairview Court,2474.5, 11-Jun-2013
545,Revenue,CCHD,Bed Purchasing - Elderly MH - South,Residential Homes,Fairview Court,1414, 11-Jun-2013
546,Revenue,CCHD,Bed Purchasing - Elderly - South,Residential Homes,Fairview Court,2648.56, 11-Jun-2013
547,Revenue,CCHD,Bed Purchasing - Elderly - South,Residential Homes,Fairview Court,2154.56, 11-Jun-2013
548,Revenue,CCHD,Bed Purchasing - Elderly - South,Nursing Homes,Fairview Court,1830.44, 11-Jun-2013
549,Revenue,CCHD,Bed Purchasing - Frenchay Hospital,Nursing Homes,Fairview Court,1836.08, 11-Jun-2013
550,Revenue,CCHD,Bed Purchasing - Elderly MH - South,Nursing Homes,Fairview Court,2002.88, 11-Jun-2013
551,Revenue,CCHD,Bed purchasing - Elderly MH - North,Nursing Homes,Fairview Court,1699.6, 11-Jun-2013
552,Revenue,CCHD,Bed Purchasing - Frenchay Hospital,Nursing Homes,Fairview Court Care Home,1531.89, 11-Jun-2013
553,Revenue,CCHD,South Glos Users in South Glos Homes,Nursing Homes,Fairview Court Care Home,2917.28, 11-Jun-2013
554,Revenue,CCHD,Bed purchasing - Phys Dis - North,Nursing Homes,Fairview Court Care Home,1991.62, 11-Jun-2013
555,Revenue,CCHD,Bed Purchasing - Elderly MH - South,Nursing Homes,Fairview Court Care Home,4679.08, 11-Jun-2013
556,Revenue,CCHD,Bed purchasing - Elderly S117 - South,Nursing Homes,Fairview Court Care Home,2574.51, 11-Jun-2013
557,Revenue,CCHD,Bed Purchasing - Elderly - South,Residential Homes,Fairview House,865.48, 11-Jun-2013
558,Revenue,CCHD,Bed Purchasing - Elderly - South,Residential Homes,Fairview House,1265.24, 11-Jun-2013
559,Revenue,CCHD,Bed Purchasing - Frenchay Hospital,Residential Homes,Fairview House,992.24, 11-Jun-2013
560,Revenue,CCHD,Bed Purchasing - Elderly - South,Residential Homes,Fairview House,928.12, 11-Jun-2013
561,Revenue,CCHD,Bed purchasing - Elderly S117 - South,Residential Homes,Fairview House,1888.88, 11-Jun-2013
562,Revenue,CCHD,Bed Purchasing - Elderly - South,Residential Homes,Fairview House,833.14, 11-Jun-2013
563,Revenue,CCHD,Bed Purchasing - Southmead Hospital,Residential Homes,Fairview House,1019.48, 11-Jun-2013
564,Revenue,CCHD,Bed Purchasing - Elderly - South,Residential Homes,Fairview House,1158.84, 11-Jun-2013
565,Revenue,CCHD,Bed Purchasing - Southmead Hospital,Residential Homes,Fairview House,1116.24, 11-Jun-2013
566,Revenue,CCHD,Bed Purchasing - Elderly MH - South,Residential Homes,Fairview House,1942.22, 11-Jun-2013
567,Revenue,CCHD,Bed Purchasing - Elderly MH - South,Residential Homes,Fairview House,1109.84, 11-Jun-2013
568,Revenue,CCHD,Bed Purchasing - Frenchay Hospital,Residential Homes,Fairview House,1246, 11-Jun-2013
569,Revenue,CCHD,Bed Purchasing - Southmead Hospital,Residential Homes,Fairview House,1858.57, 11-Jun-2013
570,Revenue,CCHD,Bed Purchasing - Southmead Hospital,Residential Homes,Fairview House,1062.04, 11-Jun-2013
571,Revenue,CCHD,Bed Purchasing - Elderly MH - South,Residential Homes,Fairview House,1036.08, 11-Jun-2013
572,Revenue,CCHD,Bed Purchasing - Elderly MH - South,Residential Homes,Fairview House,1206.32, 11-Jun-2013
573,Revenue,CCHD,Bed Purchasing - Frenchay Hospital,Residential Homes,Faith House,1310.92, 11-Jun-2013
574,Revenue,CCHD,Bed purchasing - Under 65s PWLD - North,Residential Homes,Fernbank,8560, 11-Jun-2013
575,Revenue,CCHD,Bed Purchasing - Elderly - North,Nursing Homes,Field House Care Home,575.15, 11-Jun-2013
576,Revenue,CCHD,Bed Purchasing - Frenchay Hospital,Nursing Homes,Field House Care Home,2777.29, 11-Jun-2013
577,Revenue,CCHD,Purchase of Non-Res Care - South,Private & Voluntary Day Care,Firstpoint Homecare Ltd,1164.15, 26-Jun-2013
578,Revenue,CCHD,Bed Purchasing - Elderly - South,Nursing Homes,Four Seasons Health Care,1177.16, 11-Jun-2013
579,Revenue,CCHD,Bed Purchasing - Elderly S117- North,Residential Homes,Four Seasons Health Care,2030.36, 11-Jun-2013
580,Revenue,CCHD,Bed Purchasing - Frenchay Hospital,Residential Homes,Four Seasons Health Care,2671.97, 11-Jun-2013
581,Revenue,CCHD,Home Care - Elderly - South,Other Small Contracts,Freedom Social Care Recruitment,643.85, 21-Jun-2013
582,Revenue,CCHD,Home Care - Elderly - North,Other Small Contracts,Freedom Social Care Recruitment,2603.76, 21-Jun-2013
583,Revenue,CCHD,Home care - Elderly MH - North,Other Small Contracts,Freedom Social Care Recruitment,15.8, 21-Jun-2013
584,Revenue,CCHD,Purchase of Non-Res Care - North,Private & Voluntary Day Care,Freeways Trust Limited,631.32, 18-Jun-2013
585,Revenue,CCHD,Supported Living - South,Private & Voluntary Home Care,Freeways Trust Limited,1495.12, 21-Jun-2013
586,Revenue,CCHD,Bed purchasing - Under 65s PWLD - North,Residential Homes,Freeways Trust Ltd,2817.88, 11-Jun-2013
587,Revenue,CCHD,Bed purchasing - S28A Under 65 - South,Residential Homes,Freeways Trust Ltd,2899.4, 11-Jun-2013
588,Revenue,CCHD,Bed purchasing - Under 65s PWLD - North,Residential Homes,Freeways Trust Ltd,2682.36, 11-Jun-2013
589,Revenue,CCHD,Bed purchasing - Under 65s PWLD - North,Residential Homes,Freeways Trust Ltd,2253.16, 11-Jun-2013
590,Revenue,CCHD,Bed purchasing - Under 65s PWLD - North,Residential Homes,Freeways Trust Ltd,2691.08, 11-Jun-2013
591,Revenue,CCHD,Bed Purchasing - Under 65s PWLD - South,Residential Homes,Freeways Trust Ltd,3289.6, 11-Jun-2013
592,Revenue,CCHD,Bed purchasing - Elderly PWLD - North,Residential Homes,Freeways Trust Ltd,2235.92, 11-Jun-2013
593,Revenue,CCHD,Bed Purchasing - Under 65s PWLD - South,Residential Homes,Freeways Trust Ltd,2382.36, 11-Jun-2013
594,Revenue,CCHD,Bed purchasing - Under 65s PWLD - North,Residential Homes,Freeways Trust Ltd,2691.08, 11-Jun-2013
595,Revenue,CCHD,Bed purchasing - Elderly PWLD - North,Residential Homes,Freeways Trust Ltd,2511.56, 11-Jun-2013
596,Revenue,CCHD,Section 117 Placements MH Younger,Residential Homes,Freeways Trust Ltd,3324, 11-Jun-2013
597,Revenue,CCHD,Bed Purchasing - Under 65s PWLD - South,Residential Homes,Freeways Trust Ltd,6117.96, 11-Jun-2013
598,Revenue,CCHD,Bed Purchasing - Southmead Hospital,Residential Homes,Frenchay Park Nursing Home,2344.79, 11-Jun-2013
599,Revenue,CCHD,Bed Purchasing - Frenchay Hospital,Nursing Homes,Frenchay Park Nursing Home,1254.56, 11-Jun-2013
600,Revenue,CCHD,Bed Purchasing - Frenchay Hospital,Nursing Homes,Frenchay Park Nursing Home,1004.36, 11-Jun-2013
601,Revenue,CCHD,Bed Purchasing - Elderly - South,Nursing Homes,Fshc  1St Floor,1560.23, 11-Jun-2013
602,Revenue,CCHD,Bed Purchasing - Elderly - South,Nursing Homes,Fshc  1St Floor,891.56, 11-Jun-2013
603,Revenue,CCHD,Bed Purchasing - Elderly - South,Nursing Homes,Fshc  1St Floor,1287.08, 11-Jun-2013
604,Revenue,CCHD,Bed Purchasing - Frenchay Hospital,Residential Homes,Fshc  1St Floor,893.96, 11-Jun-2013
605,Revenue,CCHD,Bed Purchasing - Southmead Hospital,Nursing Homes,Fshc  1St Floor,1957.14, 11-Jun-2013
606,Revenue,CCHD,Bed Purchasing - Southmead Hospital,Nursing Homes,Fshc  1St Floor,1370, 11-Jun-2013
607,Revenue,CCHD,Bed Purchasing - Frenchay Hospital,Nursing Homes,Fshc  1St Floor,1370, 11-Jun-2013
608,Revenue,CCHD,Bed Purchasing - Southmead Hospital,Nursing Homes,Fshc  1St Floor,1370, 11-Jun-2013
609,Revenue,CCHD,Bed purchasing - Elderly MH - North,Residential Homes,Fshc  1St Floor,958.24, 11-Jun-2013
610,Revenue,CCHD,Bed Purchasing - Southmead Hospital,Nursing Homes,Fshc  1St Floor,814.64, 11-Jun-2013
611,Revenue,CCHD,Bed Purchasing - Frenchay Hospital,Nursing Homes,Fshc  1St Floor,1343.12, 11-Jun-2013
612,Revenue,CCHD,Bed Purchasing - Elderly - South,Nursing Homes,Fshc  1St Floor,1048.64, 11-Jun-2013
613,Revenue,CCHD,Bed Purchasing - Southmead Hospital,Nursing Homes,Fshc  1St Floor,1370, 11-Jun-2013
614,Revenue,CCHD,Bed Purchasing - Elderly - South,Nursing Homes,Fshc  1St Floor,2111.76, 11-Jun-2013
615,Revenue,CCHD,Bed Purchasing - Elderly - South,Nursing Homes,Fshc  1St Floor,1206.72, 11-Jun-2013
616,Revenue,CCHD,Bed Purchasing - Elderly - South,Nursing Homes,Fshc  1St Floor,1370.36, 11-Jun-2013
617,Revenue,CCHD,Bed Purchasing - Elderly - South,Nursing Homes,Fshc  1St Floor,2230.9, 11-Jun-2013
618,Revenue,CCHD,Bed Purchasing - Elderly - South,Nursing Homes,Fshc  1St Floor,1301.36, 11-Jun-2013
619,Revenue,CCHD,Bed Purchasing - Frenchay Hospital,Nursing Homes,Fshc  1St Floor,1308.96, 11-Jun-2013
620,Revenue,CCHD,South Glos Users in South Glos Homes,Nursing Homes,Fshc  1St Floor,878.32, 11-Jun-2013
621,Revenue,CCHD,Bed Purchasing - Southmead Hospital,Nursing Homes,Fshc  1St Floor,1370, 11-Jun-2013
622,Revenue,CCHD,Bed Purchasing - Elderly - South,Nursing Homes,Fshc  1St Floor,1265.64, 11-Jun-2013
623,Revenue,CCHD,Bed Purchasing - Southmead Hospital,Residential Homes,Fshc  1St Floor,533.6, 11-Jun-2013
624,Revenue,CCHD,Bed Purchasing - Elderly - North,Residential Homes,Fshc  1St Floor,1246, 11-Jun-2013
625,Revenue,CCHD,Bed Purchasing - Southmead Hospital,Nursing Homes,Fshc  1St Floor,1102.08, 11-Jun-2013
626,Revenue,CCHD,Bed Purchasing - Elderly - North,Nursing Homes,Fshc  1St Floor,1370, 11-Jun-2013
627,Revenue,CCHD,Bed Purchasing - Elderly - South,Nursing Homes,Fshc  1St Floor,1357.44, 11-Jun-2013
628,Revenue,CCHD,Bed Purchasing - Frenchay Hospital,Nursing Homes,Fshc  1St Floor,1180.6, 11-Jun-2013
629,Revenue,CCHD,Bed Purchasing - Elderly - South,Nursing Homes,Fshc  1St Floor,1370, 11-Jun-2013
630,Revenue,CCHD,Bed Purchasing - Elderly - South,Nursing Homes,Fshc  1St Floor,1316.36, 11-Jun-2013
631,Revenue,CCHD,Bed Purchasing - Elderly MH - South,Nursing Homes,Fshc  1St Floor,1370, 11-Jun-2013
632,Revenue,CCHD,Bed Purchasing - Elderly - South,Nursing Homes,Fshc  1St Floor,1082.04, 11-Jun-2013
633,Revenue,CCHD,Bed Purchasing - Elderly - South,Nursing Homes,Fshc  1St Floor,1371.6, 11-Jun-2013
634,Revenue,CCHD,Bed Purchasing - Frenchay Hospital,Nursing Homes,Fshc  1St Floor,1078.4, 11-Jun-2013
635,Revenue,CCHD,Bed Purchasing - Elderly MH - South,Residential Homes,Fshc  1St Floor,1090.48, 11-Jun-2013
636,Revenue,CCHD,Bed Purchasing - Elderly - South,Nursing Homes,Fshc  1St Floor,1370, 11-Jun-2013
637,Revenue,CCHD,Bed Purchasing - Elderly - South,Nursing Homes,Fshc  1St Floor,582.89, 11-Jun-2013
638,Revenue,CCHD,Bed Purchasing - Elderly - South,Nursing Homes,Fshc  1St Floor,1369.68, 11-Jun-2013
639,Revenue,CCHD,Bed Purchasing - Southmead Hospital,Nursing Homes,Fshc  1St Floor,940.4, 11-Jun-2013
640,Revenue,CCHD,Bed Purchasing - Elderly MH - South,Nursing Homes,Fshc  1St Floor,1216.84, 11-Jun-2013
641,Revenue,CCHD,South Glos Users in South Glos Homes,Nursing Homes,Fshc  1St Floor,2406.93, 11-Jun-2013
642,Revenue,CCHD,Bed Purchasing - Southmead Hospital,Nursing Homes,Fshc  1St Floor,1362.4, 11-Jun-2013
643,Revenue,CCHD,South Glos Users in South Glos Homes,Nursing Homes,Fshc  1St Floor,878.32, 11-Jun-2013
644,Revenue,CCHD,Bed purchasing - Elderly MH - North,Nursing Homes,Fshc  1St Floor,1376.76, 11-Jun-2013
645,Revenue,CCHD,Bed purchasing - Elderly MH - North,Nursing Homes,Fshc  1St Floor,786.72, 11-Jun-2013
646,Revenue,CCHD,Bed Purchasing - Elderly - South,Nursing Homes,Fshc  1St Floor,992.4, 11-Jun-2013
647,Revenue,CCHD,Bed Purchasing - Elderly - North,Residential Homes,Fshc  1St Floor,680.43, 11-Jun-2013
648,Revenue,CCHD,Bed Purchasing - Elderly - North,Nursing Homes,Fshc  1St Floor,974.36, 11-Jun-2013
649,Revenue,CCHD,Bed Purchasing - Frenchay Hospital,Residential Homes,Fshc  1St Floor,735.36, 11-Jun-2013
650,Revenue,CCHD,Bed Purchasing - Southmead Hospital,Nursing Homes,Fshc  1St Floor,1108.08, 11-Jun-2013
651,Revenue,CCHD,Bed Purchasing - Southmead Hospital,Residential Homes,Fshc  1St Floor,2154.25, 11-Jun-2013
652,Revenue,CCHD,Bed Purchasing - Southmead Hospital,Nursing Homes,Fshc  1St Floor,1215.4, 11-Jun-2013
653,Revenue,CCHD,Bed Purchasing - Elderly - North,Residential Homes,Fshc  1St Floor,1438, 11-Jun-2013
654,Revenue,CCHD,Bed Purchasing - Southmead Hospital,Nursing Homes,Fshc  1St Floor,1546, 11-Jun-2013
655,Revenue,CCHD,Bed Purchasing - Frenchay Hospital,Nursing Homes,Fshc  1St Floor,1097.72, 11-Jun-2013
656,Revenue,CCHD,Bed Purchasing - Frenchay Hospital,Nursing Homes,Fshc  1St Floor,1114.96, 11-Jun-2013
657,Revenue,CCHD,Bed Purchasing - Elderly - South,Residential Homes,Fshc  1St Floor,1117.84, 11-Jun-2013
658,Revenue,CCHD,Bed Purchasing - Frenchay Hospital,Nursing Homes,Fshc  1St Floor,1546, 11-Jun-2013
659,Revenue,CCHD,Bed Purchasing - Elderly - North,Nursing Homes,Fshc  1St Floor,1370, 11-Jun-2013
660,Revenue,CCHD,Bed Purchasing - Southmead Hospital,Nursing Homes,Fshc  1St Floor,1370, 11-Jun-2013
661,Revenue,CCHD,Bed Purchasing - Elderly - North,Nursing Homes,Fshc  1St Floor,1295.6, 11-Jun-2013
662,Revenue,CCHD,Bed purchasing - Elderly MH - North,Nursing Homes,Fshc  1St Floor,1468.6, 11-Jun-2013
663,Revenue,CCHD,Bed Purchasing - Elderly - North,Nursing Homes,Fshc  1St Floor,1269.68, 11-Jun-2013
664,Revenue,CCHD,Bed Purchasing - Southmead Hospital,Nursing Homes,Fshc  1St Floor,1364.32, 11-Jun-2013
665,Revenue,CCHD,Bed Purchasing - Frenchay Hospital,Residential Homes,Fshc  1St Floor,628.4, 11-Jun-2013
666,Revenue,CCHD,Bed Purchasing - Frenchay Hospital,Nursing Homes,Fshc  1St Floor,1286.96, 11-Jun-2013
667,Revenue,CCHD,Bed Purchasing - Frenchay Hospital,Nursing Homes,Fshc  1St Floor,1350.84, 11-Jun-2013
668,Revenue,CCHD,Bed Purchasing - Elderly - North,Nursing Homes,Fshc  1St Floor,1041.72, 11-Jun-2013
669,Revenue,CCHD,Bed Purchasing - Elderly - North,Nursing Homes,Fshc  1St Floor,790.76, 11-Jun-2013
670,Revenue,CCHD,Bed Purchasing - Elderly - North,Nursing Homes,Fshc  1St Floor,3805.61, 11-Jun-2013
671,Revenue,CCHD,Bed Purchasing - Elderly - North,Nursing Homes,Fshc  1St Floor,1343.51, 11-Jun-2013
672,Revenue,CCHD,Bed Purchasing - Elderly - North,Nursing Homes,Fshc  1St Floor,767.72, 11-Jun-2013
673,Revenue,CCHD,Bed Purchasing - Frenchay Hospital,Nursing Homes,Fshc  1St Floor,1534.44, 11-Jun-2013
674,Revenue,CCHD,Bed purchasing - Elderly MH - North,Nursing Homes,Fshc  1St Floor,1422.76, 11-Jun-2013
675,Revenue,CCHD,Bed Purchasing - Elderly - North,Nursing Homes,Fshc  1St Floor,1510, 11-Jun-2013
676,Revenue,CCHD,Bed Purchasing - Elderly - North,Nursing Homes,Fshc  1St Floor,1370, 11-Jun-2013
677,Revenue,CCHD,Bed Purchasing - Elderly - North,Nursing Homes,Fshc  1St Floor,1392.52, 11-Jun-2013
678,Revenue,CCHD,Bed Purchasing - Frenchay Hospital,Nursing Homes,Fshc  1St Floor,1195.8, 11-Jun-2013
679,Revenue,CCHD,Bed Purchasing - Southmead Hospital,Nursing Homes,Fshc  1St Floor,2538.48, 11-Jun-2013
680,Revenue,CCHD,Bed Purchasing - Southmead Hospital,Nursing Homes,Fshc  1St Floor,1450.56, 11-Jun-2013
681,Revenue,CCHD,Bed Purchasing - Elderly - South,Residential Homes,Fshc  1St Floor,1723.43, 11-Jun-2013
682,Revenue,CCHD,Bed Purchasing - Southmead Hospital,Nursing Homes,Fshc  1St Floor,946.55, 11-Jun-2013
683,Revenue,CCHD,Bed Purchasing - Southmead Hospital,Nursing Homes,Fshc  1St Floor,588.96, 11-Jun-2013
684,Revenue,CCHD,Bed Purchasing - Southmead Hospital,Nursing Homes,Fshc  1St Floor,1546, 11-Jun-2013
685,Revenue,CCHD,Bed Purchasing - Elderly MH - South,Nursing Homes,Fshc  1St Floor,1388.64, 11-Jun-2013
686,Revenue,CCHD,Bed Purchasing - Elderly - North,Residential Homes,Fshc  1St Floor,1246, 11-Jun-2013
687,Revenue,CCHD,Bed purchasing - Elderly MH - North,Residential Homes,Fshc  1St Floor,1246, 11-Jun-2013
688,Revenue,CCHD,Bed Purchasing - Southmead Hospital,Residential Homes,Fshc  1St Floor,3738.43, 11-Jun-2013
689,Revenue,CCHD,Bed Purchasing - Elderly - North,Nursing Homes,Fshc  1St Floor,1530.84, 11-Jun-2013
690,Revenue,CCHD,Bed Purchasing - Elderly - North,Nursing Homes,Fshc  1St Floor,3556, 11-Jun-2013
691,Revenue,CCHD,Bed purchasing - Elderly MH - North,Residential Homes,Fshc  1St Floor,1255.2, 11-Jun-2013
692,Revenue,CCHD,Bed Purchasing - Elderly - South,Residential Homes,Fshc  1St Floor,802.44, 11-Jun-2013
693,Revenue,CCHD,Bed Purchasing - Frenchay Hospital,Residential Homes,Fshc  1St Floor,596.05, 11-Jun-2013
694,Revenue,CCHD,Bed Purchasing - Southmead Hospital,Residential Homes,Fshc  1St Floor,1246, 11-Jun-2013
695,Revenue,CCHD,Bed purchasing - Elderly MH - North,Residential Homes,Fshc  1St Floor,1378.88, 11-Jun-2013
696,Revenue,CCHD,Bed Purchasing - Elderly - North,Nursing Homes,Fshc  1St Floor,1349.52, 11-Jun-2013
697,Revenue,CCHD,Bed Purchasing - Southmead Hospital,Nursing Homes,Fshc  1St Floor,1213.24, 11-Jun-2013
698,Revenue,CCHD,Bed purchasing - Elderly MH - North,Nursing Homes,Fshc  1St Floor,1048.64, 11-Jun-2013
699,Revenue,CCHD,Bed Purchasing - Elderly - North,Residential Homes,Fshc  1St Floor,1254, 11-Jun-2013
700,Revenue,CCHD,Bed Purchasing - Elderly - North,Nursing Homes,Fshc  1St Floor,1145.72, 11-Jun-2013
701,Revenue,CCHD,Bed Purchasing - Frenchay Hospital,Residential Homes,Fshc  1St Floor,11595.37, 11-Jun-2013
702,Revenue,CCHD,Bed Purchasing - Frenchay Hospital,Residential Homes,Fshc  1St Floor,2180.5, 11-Jun-2013
703,Revenue,CCHD,Bed Purchasing - Frenchay Hospital,Residential Homes,Fshc  1St Floor,1246, 11-Jun-2013
704,Revenue,CCHD,Bed Purchasing - Frenchay Hospital,Nursing Homes,Fshc  1St Floor,2288.02, 11-Jun-2013
705,Revenue,CCHD,Bed Purchasing - Frenchay Hospital,Nursing Homes,Fshc  1St Floor,1307.44, 11-Jun-2013
706,Revenue,CCHD,Bed Purchasing - Elderly - North,Nursing Homes,Fshc  1St Floor,1013.16, 11-Jun-2013
707,Revenue,CCHD,Bed Purchasing - Elderly - North,Nursing Homes,Fshc  1St Floor,1370, 11-Jun-2013
708,Revenue,CCHD,Bed Purchasing - Frenchay Hospital,Nursing Homes,Fshc  1St Floor,1370, 11-Jun-2013
709,Revenue,CCHD,Bed Purchasing - Frenchay Hospital,Nursing Homes,Fshc  1St Floor,1370, 11-Jun-2013
710,Revenue,CCHD,Bed Purchasing - Southmead Hospital,Nursing Homes,Fshc  1St Floor,592.56, 11-Jun-2013
711,Revenue,CCHD,Bed Purchasing - Elderly - North,Nursing Homes,Fshc  1St Floor,1071.64, 11-Jun-2013
712,Revenue,CCHD,Bed Purchasing - Frenchay Hospital,Nursing Homes,Fshc  1St Floor,1370, 11-Jun-2013
713,Revenue,CCHD,Bed Purchasing - Southmead Hospital,Nursing Homes,Fshc  1St Floor,754.48, 11-Jun-2013
714,Revenue,CCHD,Bed Purchasing - Elderly - North,Nursing Homes,Fshc  1St Floor,1379.28, 11-Jun-2013
715,Revenue,CCHD,Bed Purchasing - Frenchay Hospital,Nursing Homes,Fshc  1St Floor,1378, 11-Jun-2013
716,Revenue,CCHD,Bed Purchasing - Elderly - South,Nursing Homes,Fshc  1St Floor,1041.56, 11-Jun-2013
717,Revenue,CCHD,Bed Purchasing - Southmead Hospital,Nursing Homes,Fshc  1St Floor,1292.6, 11-Jun-2013
718,Revenue,CCHD,Bed Purchasing - Elderly - North,Nursing Homes,Fshc  1St Floor,1249.04, 11-Jun-2013
719,Revenue,CCHD,Bed Purchasing - Southmead Hospital,Nursing Homes,Fshc  1St Floor,1370, 11-Jun-2013
720,Revenue,CCHD,Bed Purchasing - Frenchay Hospital,Nursing Homes,Fshc  1St Floor,1707.5, 11-Jun-2013
721,Revenue,CCHD,Bed Purchasing - Frenchay Hospital,Nursing Homes,Fshc  1St Floor,1366, 11-Jun-2013
722,Revenue,CCHD,Bed Purchasing - Frenchay Hospital,Nursing Homes,Fshc  1St Floor,1268.42, 11-Jun-2013
723,Revenue,CCHD,Bed Purchasing - Frenchay Hospital,Nursing Homes,Fshc  1St Floor,1336.6, 11-Jun-2013
724,Revenue,CCHD,Bed Purchasing - Southmead Hospital,Nursing Homes,Fshc  1St Floor,1344.2, 11-Jun-2013
725,Revenue,CCHD,Bed Purchasing - Elderly - North,Residential Homes,Fshc  1St Floor,3117.44, 11-Jun-2013
726,Revenue,CCHD,Bed Purchasing - Frenchay Hospital,Nursing Homes,Fshc  1St Floor,5794.26, 11-Jun-2013
727,Revenue,CCHD,Bed purchasing - Phys Dis - North,Nursing Homes,Fshc  1St Floor,1376.28, 11-Jun-2013
728,Revenue,CCHD,Bed Purchasing - Southmead Hospital,Nursing Homes,Fshc  1St Floor,1859.29, 11-Jun-2013
729,Revenue,CCHD,Bed Purchasing - Southmead Hospital,Nursing Homes,Fshc  1St Floor,1370, 11-Jun-2013
730,Revenue,CCHD,Bed Purchasing - Frenchay Hospital,Nursing Homes,Fshc  1St Floor,792.96, 11-Jun-2013
731,Revenue,CCHD,Bed Purchasing - Southmead Hospital,Nursing Homes,Fshc  1St Floor,1298.96, 11-Jun-2013
732,Revenue,CCHD,Bed Purchasing - Frenchay Hospital,Nursing Homes,Fshc  1St Floor,1193.14, 11-Jun-2013
733,Revenue,CCHD,Bed Purchasing - Elderly MH - South,Residential Homes,Fshc  1St Floor,1438, 11-Jun-2013
734,Revenue,CCHD,Bed Purchasing - Frenchay Hospital,Nursing Homes,Fshc  1St Floor,1359.08, 11-Jun-2013
735,Revenue,CCHD,South Glos Users in South Glos Homes,Nursing Homes,Fshc  1St Floor,878.32, 11-Jun-2013
736,Revenue,CCHD,Bed Purchasing - Frenchay Hospital,Nursing Homes,Fshc  1St Floor,1293.56, 11-Jun-2013
737,Revenue,CCHD,Bed Purchasing - Elderly - South,Residential Homes,Fshc  1St Floor,1399.72, 11-Jun-2013
738,Revenue,CCHD,Bed Purchasing - Elderly - North,Residential Homes,Fshc  1St Floor,1160.96, 11-Jun-2013
739,Revenue,CCHD,Bed Purchasing - Frenchay Hospital,Nursing Homes,Fshc  1St Floor,1856, 11-Jun-2013
740,Revenue,CCHD,South Glos Users in South Glos Homes,Nursing Homes,Fshc  1St Floor,1630.5, 11-Jun-2013
741,Revenue,CCHD,South Glos Users in South Glos Homes,Nursing Homes,Fshc  1St Floor,878.32, 11-Jun-2013
742,Revenue,CCHD,Bed Purchasing - Frenchay Hospital,Nursing Homes,Fshc  1St Floor,1230.52, 11-Jun-2013
743,Revenue,CCHD,South Glos Users in South Glos Homes,Nursing Homes,Fshc  1St Floor,624.41, 11-Jun-2013
744,Revenue,CCHD,Bed purchasing - Elderly PWLD - South,Residential Homes,Fshc  1St Floor,1246, 11-Jun-2013
745,Revenue,CCHD,Bed Purchasing - Frenchay Hospital,Nursing Homes,Fshc  1St Floor,1370, 11-Jun-2013
746,Revenue,CCHD,Bed Purchasing - Southmead Hospital,Nursing Homes,Fshc  1St Floor,1101.08, 11-Jun-2013
747,Revenue,CCHD,Bed Purchasing - Elderly - South,Nursing Homes,Fshc  1St Floor,1294.68, 11-Jun-2013
748,Revenue,CCHD,Bed Purchasing - Elderly - North,Residential Homes,Fshc  1St Floor,1179.92, 11-Jun-2013
749,Revenue,CCHD,Bed Purchasing - Frenchay Hospital,Nursing Homes,Fshc  1St Floor,1370, 11-Jun-2013
750,Revenue,CCHD,Bed Purchasing - Frenchay Hospital,Nursing Homes,Fshc  1St Floor,1272.14, 11-Jun-2013
751,Revenue,CCHD,Bed Purchasing - Southmead Hospital,Nursing Homes,Fshc  1St Floor,1859.29, 11-Jun-2013
752,Revenue,CCHD,Bed Purchasing - Southmead Hospital,Nursing Homes,Fshc  1St Floor,1370, 11-Jun-2013
753,Revenue,CCHD,Bed Purchasing - Frenchay Hospital,Nursing Homes,Fshc  1St Floor,1370, 11-Jun-2013
754,Revenue,CCHD,Bed Purchasing - Southmead Hospital,Nursing Homes,Fshc  1St Floor,957.12, 11-Jun-2013
755,Revenue,CCHD,Bed Purchasing - Elderly - South,Residential Homes,Fshc  1St Floor,816.56, 11-Jun-2013
756,Revenue,CCHD,Bed Purchasing - Southmead Hospital,Residential Homes,Fshc  1St Floor,1397.16, 11-Jun-2013
757,Revenue,CCHD,Bed Purchasing - Southmead Hospital,Residential Homes,Fshc  1St Floor,1453.28, 11-Jun-2013
758,Revenue,CCHD,Bed Purchasing - Elderly - South,Nursing Homes,Fshc  1St Floor,941.76, 11-Jun-2013
759,Revenue,CCHD,Bed purchasing - Elderly S117 - South,Nursing Homes,Fshc  1St Floor,1856, 11-Jun-2013
760,Revenue,CCHD,Bed Purchasing - Frenchay Hospital,Residential Homes,Fshc  1St Floor,1107.56, 11-Jun-2013
761,Revenue,CCHD,Bed Purchasing - Southmead Hospital,Residential Homes,Fshc  1St Floor,1331.76, 11-Jun-2013
762,Revenue,CCHD,South Glos Users in South Glos Homes,Nursing Homes,Fshc  1St Floor,878.32, 11-Jun-2013
763,Revenue,CCHD,Bed Purchasing - Southmead Hospital,Nursing Homes,Fshc  1St Floor,1180.56, 11-Jun-2013
764,Revenue,CCHD,Bed Purchasing - Elderly - North,Residential Homes,Fshc  1St Floor,1199.92, 11-Jun-2013
765,Revenue,CCHD,Bed Purchasing - Southmead Hospital,Nursing Homes,Fshc  1St Floor,1370, 11-Jun-2013
766,Revenue,CCHD,Bed Purchasing - Frenchay Hospital,Nursing Homes,Fshc  1St Floor,1109.92, 11-Jun-2013
767,Revenue,CCHD,Bed Purchasing - Frenchay Hospital,Nursing Homes,Fshc  1St Floor,956.08, 11-Jun-2013
768,Revenue,CCHD,Bed Purchasing - Frenchay Hospital,Nursing Homes,Fshc  1St Floor,1117.88, 11-Jun-2013
769,Revenue,CCHD,Bed Purchasing - Frenchay Hospital,Nursing Homes,Fshc  1St Floor,1030.08, 11-Jun-2013
770,Revenue,CCHD,Bed Purchasing - Frenchay Hospital,Nursing Homes,Fshc  1St Floor,1060.28, 11-Jun-2013
771,Revenue,CCHD,Bed Purchasing - Southmead Hospital,Nursing Homes,Fshc  1St Floor,870.76, 11-Jun-2013
772,Revenue,CCHD,Bed Purchasing - Southmead Hospital,Nursing Homes,Fshc  1St Floor,1302, 11-Jun-2013
773,Revenue,CCHD,Bed Purchasing - Southmead Hospital,Residential Homes,Fshc  1St Floor,1246, 11-Jun-2013
774,Revenue,CCHD,Bed Purchasing - Elderly - North,Residential Homes,Fshc  1St Floor,619.6, 11-Jun-2013
775,Revenue,CCHD,Bed Purchasing - Elderly - North,Nursing Homes,Fshc  1St Floor,1277.04, 11-Jun-2013
776,Revenue,CCHD,Bed purchasing - Phys Dis - North,Nursing Homes,Fshc  1St Floor,840.44, 11-Jun-2013
777,Revenue,CCHD,Bed Purchasing - Frenchay Hospital,Nursing Homes,Fshc  1St Floor,1302, 11-Jun-2013
778,Revenue,CCHD,Bed purchasing - Elderly MH - North,Nursing Homes,Fshc  1St Floor,858.48, 11-Jun-2013
779,Revenue,CCHD,Bed purchasing - Elderly S117 - South,Nursing Homes,Fshc  1St Floor,1964, 11-Jun-2013
780,Revenue,CCHD,Bed Purchasing - Frenchay Hospital,Nursing Homes,Fshc  1St Floor,1080.28, 11-Jun-2013
781,Revenue,CCHD,Bed Purchasing - Frenchay Hospital,Nursing Homes,Fshc  1St Floor,1540.82, 11-Jun-2013
782,Revenue,CCHD,Bed Purchasing - Frenchay Hospital,Nursing Homes,Fshc  1St Floor,1097.04, 11-Jun-2013
783,Revenue,CCHD,Woodleaze,Premises Maintenance by Contractor,Geoff Lewis Flooring Limited,1100, 06-Jun-2013
784,Revenue,CCHD,Alexandra Way,Prop.Serv. General Repairs,George Grimes,1794, 26-Jun-2013
785,Revenue,CCHD,Woodleaze,Prop.Serv. General Repairs,George Grimes,630, 26-Jun-2013
786,Revenue,CCHD,Woodleaze,Prop.Serv. General Repairs,George Grimes,630, 19-Jun-2013
787,Revenue,CCHD,Woodleaze,Prop.Serv. General Repairs,George Grimes,980, 19-Jun-2013
788,Revenue,CCHD,Section 117 Placements MH Younger,Residential Homes,Gladstone House,2721.88, 11-Jun-2013
789,Revenue,CCHD,Bed Purchasing - Under 65s PWLD - South,Residential Homes,Glasallt Fawr,4547.84, 11-Jun-2013
790,Revenue,CCHD,South Glos Users in South Glos Homes,Nursing Homes,Glebe House Nursing Home,878.32, 11-Jun-2013
791,Revenue,CCHD,Bed purchasing - Elderly MH - North,Nursing Homes,Glebe House Nursing Home,753.32, 11-Jun-2013
792,Revenue,CCHD,Bed Purchasing - Elderly - South,Residential Homes,Glebe House Nursing Home,1841.97, 11-Jun-2013
793,Revenue,CCHD,Bed Purchasing - Frenchay Hospital,Nursing Homes,Glebe House Nursing Home,1215.08, 11-Jun-2013
794,Revenue,CCHD,South Glos Users in South Glos Homes,Nursing Homes,Glebe House Nursing Home,627.37, 11-Jun-2013
795,Revenue,CCHD,Bed Purchasing - Elderly - South,Residential Homes,Glebe House Nursing Home,1977.76, 11-Jun-2013
796,Revenue,CCHD,Bed Purchasing - Elderly - North,Residential Homes,Glebe House Nursing Home,2551.92, 11-Jun-2013
797,Revenue,CCHD,Bed Purchasing - Elderly - North,Residential Homes,Glebe House Nursing Home,1532.6, 11-Jun-2013
798,Revenue,CCHD,South Glos Users in South Glos Homes,Nursing Homes,Glebe House Nursing Home,643.06, 11-Jun-2013
799,Revenue,CCHD,Bed Purchasing - Under 65s PWLD - South,Residential Homes,Gordena Care Home,2082.36, 11-Jun-2013
800,Revenue,CCHD,Bed purchasing - Elderly PWLD - South,Residential Homes,Gordena Care Home,4732.4, 11-Jun-2013
801,Revenue,CCHD,Bed purchasing - Elderly PWLD - South,Residential Homes,Gordena Care Home,3116.24, 11-Jun-2013
802,Revenue,CCHD,Bed purchasing - Elderly PWLD - South,Residential Homes,Gordena Care Home,2927.44, 11-Jun-2013
803,Revenue,CCHD,Bed Purchasing - Under 65s PWLD - South,Residential Homes,Gordena Care Home,1907.6, 11-Jun-2013
804,Revenue,CCHD,Bed Purchasing - Under 65s PWLD - South,Residential Homes,Gordena Care Limited,4158.56, 11-Jun-2013
805,Revenue,CCHD,Bed purchasing - S28A Under 65 - South,Residential Homes,Gordena Care Limited,4055.8, 11-Jun-2013
806,Revenue,CCHD,Bed purchasing - Under 65s PWLD - North,Residential Homes,Gordena Care Limited,4160, 11-Jun-2013
807,Revenue,CCHD,Bed Purchasing - Elderly - North,Residential Homes,Greensleeves,1312.68, 11-Jun-2013
808,Revenue,CCHD,Bed Purchasing - Elderly - South,Residential Homes,Gwendoline House,1490.04, 11-Jun-2013
809,Revenue,CCHD,Bed Purchasing - Elderly - South,Residential Homes,Gwendoline House,1164.96, 11-Jun-2013
810,Revenue,CCHD,Bed Purchasing - Elderly - North,Residential Homes,Gwendoline House,1654.36, 11-Jun-2013
811,Revenue,CCHD,Bed Purchasing - Elderly MH - South,Residential Homes,Gwendoline House,1284.64, 11-Jun-2013
812,Revenue,CCHD,Bed Purchasing - Southmead Hospital,Residential Homes,Gwendoline House,1686.64, 11-Jun-2013
813,Revenue,CCHD,Bed Purchasing - Elderly - South,Residential Homes,Gwendoline House,1128.52, 11-Jun-2013
814,Revenue,CCHD,Bed Purchasing - Elderly - South,Residential Homes,Harefield Hall,1327.24, 11-Jun-2013
815,Revenue,CCHD,Bed Purchasing - Elderly - South,Residential Homes,Harefield Hall,1112.96, 11-Jun-2013
816,Revenue,CCHD,Bed Purchasing - Elderly - South,Residential Homes,Harefield Hall,1778.56, 11-Jun-2013
817,Revenue,CCHD,Bed Purchasing - Elderly MH - South,Residential Homes,Harefield Hall,1030.52, 11-Jun-2013
818,Revenue,CCHD,Bed Purchasing - Southmead Hospital,Nursing Homes,Haven Lodge,1382.28, 11-Jun-2013
819,Revenue,CCHD,Bed Purchasing - Southmead Hospital,Nursing Homes,Hc-One Ltd,1613.52, 11-Jun-2013
820,Revenue,CCHD,Bed Purchasing - Elderly - North,Nursing Homes,Hc-One Ltd,1469.6, 11-Jun-2013
821,Revenue,CCHD,Bed Purchasing - Elderly - North,Nursing Homes,Hc-One Ltd,967.32, 11-Jun-2013
822,Revenue,CCHD,Bed Purchasing - Elderly - North,Nursing Homes,Hc-One Ltd,800.91, 11-Jun-2013
823,Revenue,CCHD,Bed purchasing - Elderly PWLD - South,Nursing Homes,Hc-One Ltd,1929.96, 11-Jun-2013
824,Revenue,CCHD,Bed purchasing - Elderly MH - North,Nursing Homes,Hc-One Ltd,1478, 11-Jun-2013
825,Revenue,CCHD,Bed purchasing - Elderly MH - North,Nursing Homes,Hc-One Ltd,1229.12, 11-Jun-2013
826,Revenue,CCHD,Bed Purchasing - Frenchay Hospital,Nursing Homes,Hc-One Ltd,1471.16, 11-Jun-2013
827,Revenue,CCHD,Bed Purchasing - Elderly - South,Nursing Homes,Hc-One Ltd,1146.88, 11-Jun-2013
828,Revenue,CCHD,Bed purchasing - Elderly MH - North,Nursing Homes,Hc-One Ltd,1478, 11-Jun-2013
829,Revenue,CCHD,Bed purchasing - Elderly MH - North,Nursing Homes,Hc-One Ltd,1160.36, 11-Jun-2013
830,Revenue,CCHD,Bed Purchasing - Elderly S117- North,Nursing Homes,Hc-One Ltd,1947.72, 11-Jun-2013
831,Revenue,CCHD,Bed Purchasing - Frenchay Hospital,Residential Homes,Hc-One Ltd,1489.64, 11-Jun-2013
832,Revenue,CCHD,Bed Purchasing - Southmead Hospital,Residential Homes,Highgate Studios,1166.84, 11-Jun-2013
833,Revenue,CCHD,Tenancy Start Up Scheme,Other Supplies & Services,Holbrook Moran,1090, 12-Jun-2013
834,Revenue,CCHD,Bed purchasing - Under 65s PWLD - North,Residential Homes,Holmleigh Care Homes Ltd,4000.16, 11-Jun-2013
835,Revenue,CCHD,Bed Purchasing - Under 65s PWLD - South,Residential Homes,Holmleigh Care Homes Ltd,5027.72, 11-Jun-2013
836,Revenue,CCHD,Bed Purchasing - Southmead Hospital,Nursing Homes,Holmwood House,1264.84, 11-Jun-2013
837,Revenue,CCHD,South Glos Users in South Glos Homes,Nursing Homes,Holmwood House,1630.5, 11-Jun-2013
838,Revenue,CCHD,South Glos Users in South Glos Homes,Nursing Homes,Holmwood House,878.32, 11-Jun-2013
839,Revenue,CCHD,Bed Purchasing - Southmead Hospital,Nursing Homes,Holmwood House,836, 11-Jun-2013
840,Revenue,CCHD,Bed purchasing - Under 65s PWLD - North,Residential Homes,Home Farm Trust Ltd  5-6 Brook Office Pa,3108.94, 11-Jun-2013
841,Revenue,CCHD,Bed purchasing - Elderly PWLD - South,Residential Homes,Home Farm Trust Ltd  5-6 Brook Office Pa,5050.32, 11-Jun-2013
842,Revenue,CCHD,Bed Purchasing - Under 65s PWLD - South,Residential Homes,Home Farm Trust Ltd  5-6 Brook Office Pa,1338.59, 11-Jun-2013
843,Revenue,CCHD,Bed purchasing - Elderly PWLD - South,Residential Homes,Home Farm Trust Ltd  5-6 Brook Office Pa,10197.32, 11-Jun-2013
844,Revenue,CCHD,Bed purchasing - Under 65s PWLD - North,Residential Homes,Home Farm Trust Ltd  5-6 Brook Office Pa,3396, 11-Jun-2013
845,Revenue,CCHD,Bed Purchasing - Under 65s PWLD - South,Residential Homes,Home Farm Trust Ltd  5-6 Brook Office Pa,4505.04, 11-Jun-2013
846,Revenue,CCHD,Bed purchasing - Under 65s PWLD - North,Residential Homes,Home From Home Care Ltd,8857.52, 11-Jun-2013
847,Revenue,CCHD,Bed purchasing - Under 65s PWLD - North,Residential Homes,Homes Caring For Autism Ltd  Churchill H,9755.64, 11-Jun-2013
848,Revenue,CCHD,Bed Purchasing - Under 65s PWLD - South,Residential Homes,Homes Caring For Autism Ltd  Churchill H,12715.92, 11-Jun-2013
849,Revenue,CCHD,Bed purchasing - Under 65s PWLD - North,Residential Homes,Homes Caring For Autism Ltd  Churchill H,18115.25, 11-Jun-2013
850,Revenue,CCHD,Bed Purchasing - Elderly - South,Nursing Homes,Horfield Care Limited,2225.93, 17-Jun-2013
851,Revenue,CCHD,Bed Purchasing - Elderly - North,Nursing Homes,Horfield Care Limited,4984.91, 17-Jun-2013
852,Revenue,CCHD,Bed Purchasing - Frenchay Hospital,Nursing Homes,Horfield Care Limited,1483.39, 17-Jun-2013
853,Revenue,CCHD,Bed Purchasing - Southmead Hospital,Nursing Homes,Horfield Care Limited,9611.39, 17-Jun-2013
854,Revenue,CCHD,Home Care - Elderly - North,Private & Voluntary Home Care,Housing 21,37028.34, 10-Jun-2013
855,Revenue,CCHD,Home Care - Elderly - South,Private & Voluntary Home Care,Housing 21,2983, 20-Jun-2013
856,Revenue,CCHD,Home Care - Elderly - South,Private & Voluntary Home Care,Housing 21,17380, 20-Jun-2013
857,Revenue,CCHD,Home Care - Elderly - South,Private & Voluntary Home Care,Housing 21,17685.5, 25-Jun-2013
858,Revenue,CCHD,Woodleaze,Drugs & Medical Supplies,IRM Mobility & Healthcare Limited,720, 21-Jun-2013
859,Revenue,CCHD,Social Lettings Agency,Other Supplies & Services,Individual,655.41, 11-Jun-2013
860,Revenue,CCHD,Bed Purchasing - Southmead Hospital,Nursing Homes,Jasmine Court,1227.24, 11-Jun-2013
861,Revenue,CCHD,Bed Purchasing - Under 65s PWLD - South,Residential Homes,Julia Simone- Supp. Ind.,3562.32, 11-Jun-2013
862,Revenue,CCHD,Bed purchasing -S28A  Under 65 - North,Residential Homes,Julia Simone- Supp. Ind.,3443.08, 11-Jun-2013
863,Revenue,CCHD,Bed Purchasing - Under 65s PWLD - South,Nursing Homes,K3 The Park Centre,4977.08, 11-Jun-2013
864,Revenue,CCHD,Bed Purchasing - S28A - Over 65- North,Residential Homes,K3 The Park Centre,19725.75, 11-Jun-2013
865,Revenue,CCHD,Bed Purchasing - S28A - Over 65- North,Residential Homes,K3 The Park Centre,6195.84, 11-Jun-2013
866,Revenue,CCHD,Bed Purchasing - Under 65s PWLD - South,Residential Homes,K3 The Park Centre,8651.44, 11-Jun-2013
867,Revenue,CCHD,Bed Purchasing - Under 65s PWLD - South,Residential Homes,K3 The Park Centre,3976.8, 11-Jun-2013
868,Revenue,CCHD,Bed Purchasing - Under 65s PWLD - South,Nursing Homes,K3 The Park Centre,6715.2, 11-Jun-2013
869,Revenue,CCHD,Bed purchasing - Elderly PWLD - South,Residential Homes,K3 The Park Centre,3412.04, 11-Jun-2013
870,Revenue,CCHD,Bed Purchasing - LD S28A- Over 65- South,Residential Homes,K3 The Park Centre,3867.32, 11-Jun-2013
871,Revenue,CCHD,Bed Purchasing - Under 65s PWLD - South,Nursing Homes,K3 The Park Centre,4962.92, 11-Jun-2013
872,Revenue,CCHD,Bed purchasing - S28A Under 65 - South,Nursing Homes,K3 The Park Centre,5280.52, 11-Jun-2013
873,Revenue,CCHD,Bed purchasing - S28A Under 65 - South,Residential Homes,K3 The Park Centre,4832.6, 11-Jun-2013
874,Revenue,CCHD,Bed purchasing - S28A Under 65 - South,Nursing Homes,K3 The Park Centre,5280.52, 11-Jun-2013
875,Revenue,CCHD,Bed Purchasing - LD S28A- Over 65- South,Nursing Homes,K3 The Park Centre,5109.72, 11-Jun-2013
876,Revenue,CCHD,Bed Purchasing - LD S28A- Over 65- South,Nursing Homes,K3 The Park Centre,4777.8, 11-Jun-2013
877,Revenue,CCHD,Bed Purchasing - Under 65s PWLD - South,Residential Homes,K3 The Park Centre,3225.28, 11-Jun-2013
878,Revenue,CCHD,Bed Purchasing - S28A - Over 65- North,Nursing Homes,K3 The Park Centre,3563.25, 11-Jun-2013
879,Revenue,CCHD,Bed purchasing - S28A Under 65 - South,Residential Homes,K3 The Park Centre,5126.44, 11-Jun-2013
880,Revenue,CCHD,Bed purchasing - S28A Under 65 - South,Residential Homes,K3 The Park Centre,5181.28, 11-Jun-2013
881,Revenue,CCHD,Bed Purchasing - S28A - Over 65- North,Residential Homes,K3 The Park Centre,9371.64, 11-Jun-2013
882,Revenue,CCHD,Bed Purchasing - S28A - Over 65- North,Residential Homes,K3 The Park Centre,13253.64, 11-Jun-2013
883,Revenue,CCHD,Bed purchasing - S28A Under 65 - South,Nursing Homes,K3 The Park Centre,5280.52, 11-Jun-2013
884,Revenue,CCHD,Bed purchasing - S28A Under 65 - South,Nursing Homes,K3 The Park Centre,5280.52, 11-Jun-2013
885,Revenue,CCHD,Bed purchasing -S28A  Under 65 - North,Nursing Homes,K3 The Park Centre,4712.96, 11-Jun-2013
886,Revenue,CCHD,Bed purchasing - S28A Under 65 - South,Residential Homes,K3 The Park Centre,5181.28, 11-Jun-2013
887,Revenue,CCHD,Bed Purchasing - LD S28A- Over 65- South,Residential Homes,K3 The Park Centre,4681.52, 11-Jun-2013
888,Revenue,CCHD,Bed Purchasing - Elderly - South,Residential Homes,Karenza Ltd,1732, 11-Jun-2013
889,Revenue,CCHD,Safeguarding and DOLs,Other Supplies & Services,Kate Olgilvie,4309, 04-Jun-2013
890,Revenue,CCHD,Home Care - Elderly - South,Other Small Contracts,Kensington Community Care,546.27, 10-Jun-2013
891,Revenue,CCHD,Home Care - Elderly - North,Other Small Contracts,Kensington Community Care,1642.98, 10-Jun-2013
892,Revenue,CCHD,Home Care - Elderly - South,Other Small Contracts,Kensington Community Care,554.61, 10-Jun-2013
893,Revenue,CCHD,Home Care - Elderly - North,Other Small Contracts,Kensington Community Care,1488.69, 10-Jun-2013
894,Revenue,CCHD,Home Care - Elderly - South,Other Small Contracts,Kensington Community Care,529.59, 17-Jun-2013
895,Revenue,CCHD,Home Care - Elderly - North,Other Small Contracts,Kensington Community Care,1609.62, 17-Jun-2013
896,Revenue,CCHD,Bed Purchasing - Elderly - South,Residential Homes,Kenver House Residential Home,1545.64, 11-Jun-2013
897,Revenue,CCHD,Bed purchasing - Elderly S117 - South,Residential Homes,Kenver House Residential Home,1897.08, 11-Jun-2013
898,Revenue,CCHD,Bed Purchasing - Frenchay Hospital,Residential Homes,Kenver House Residential Home,2135.28, 11-Jun-2013
899,Revenue,CCHD,Bed Purchasing - Elderly - South,Residential Homes,Kenver House Residential Home,1195.03, 11-Jun-2013
900,Revenue,CCHD,Section 117 Placements MH Younger,Residential Homes,Kenver House Residential Home,1414, 11-Jun-2013
901,Revenue,CCHD,Bed Purchasing - Elderly MH - South,Residential Homes,Kenver House Residential Home,1285.96, 11-Jun-2013
902,Revenue,CCHD,Bed Purchasing - Elderly S117- North,Residential Homes,Kenver House Residential Home,1900, 11-Jun-2013
903,Revenue,CCHD,Bed Purchasing - Elderly - South,Residential Homes,Kenver House Residential Home,1649.28, 11-Jun-2013
904,Revenue,CCHD,Bed Purchasing - Frenchay Hospital,Residential Homes,Kenver House Residential Home,1412.16, 11-Jun-2013
905,Revenue,CCHD,Bed Purchasing - Frenchay Hospital,Residential Homes,Kenver House Residential Home,1649.28, 11-Jun-2013
906,Revenue,CCHD,Bed Purchasing - Elderly - South,Residential Homes,Kenver House Residential Home,1576.4, 11-Jun-2013
907,Revenue,CCHD,Bed Purchasing - Elderly MH - South,Residential Homes,Kenver House Residential Home,2069.41, 11-Jun-2013
908,Revenue,CCHD,Bed Purchasing - Elderly MH - South,Residential Homes,Kenver House Residential Home,1182.52, 11-Jun-2013
909,Revenue,CCHD,Bed Purchasing - Frenchay Hospital,Residential Homes,Kenver House Residential Home,1414.88, 11-Jun-2013
910,Revenue,CCHD,Bed Purchasing - Elderly MH - South,Residential Homes,Kenver House Residential Home,1167.92, 11-Jun-2013
911,Revenue,CCHD,Bed Purchasing - Elderly MH - South,Residential Homes,Kenver House Residential Home,1414, 11-Jun-2013
912,Revenue,CCHD,Bed Purchasing - Elderly - South,Residential Homes,Kenver House Residential Home,1497.08, 11-Jun-2013
913,Revenue,CCHD,Bed Purchasing - Frenchay Hospital,Residential Homes,Kenver House Residential Home,1574.12, 11-Jun-2013
914,Revenue,CCHD,Bed Purchasing - Elderly - South,Residential Homes,Kenver House Residential Home,1649.28, 11-Jun-2013
915,Revenue,CCHD,Bed Purchasing - Frenchay Hospital,Residential Homes,Kenver House Residential Home,1539.76, 11-Jun-2013
916,Revenue,CCHD,Bed purchasing - Under 65s PWLD - North,Residential Homes,Kisimul Group,10979.17, 11-Jun-2013
917,Revenue,CCHD,Home Care - Elderly - South,Other Small Contracts,Kumari Care Limited,4014.4, 17-Jun-2013
918,Revenue,CCHD,Home Care - Elderly - North,Other Small Contracts,Kumari Care Limited,833.86, 17-Jun-2013
919,Revenue,CCHD,Day Care - South,Private & Voluntary Day Care,Kumari Care Limited,165.98, 17-Jun-2013
920,Revenue,CCHD,Under 65s -MH  Home Care Purch,Other Small Contracts,Kumari Care Limited,243.18, 17-Jun-2013
921,Revenue,CCHD,Social Lettings Agency,Other Supplies & Services,Individual,565, 07-Jun-2013
922,Revenue,CCHD,Social Lettings Agency,Other Supplies & Services,Individual,565, 18-Jun-2013
923,Revenue,CCHD,Bed purchasing - Phys Dis - North,Nursing Homes,Leonard Cheshire  National Account Centr,4963.04, 11-Jun-2013
924,Revenue,CCHD,Bed purchasing - Phys Dis - North,Residential Homes,Leonard Cheshire  National Account Centr,2868.88, 11-Jun-2013
925,Revenue,CCHD,Bed Purchasing - Under 65s PWLD - South,Residential Homes,Leonard Cheshire  National Account Centr,2959.44, 11-Jun-2013
926,Revenue,CCHD,Bed Purchasing - Elderly - North,Nursing Homes,Leonard Cheshire  National Account Centr,3468.8, 11-Jun-2013
927,Revenue,CCHD,Bed purchasing - Phys Dis - North,Nursing Homes,Leonard Cheshire  National Account Centr,2779.04, 11-Jun-2013
928,Revenue,CCHD,Bed Purchasing - Elderly - North,Residential Homes,Leonard Cheshire  National Account Centr,3150.32, 11-Jun-2013
929,Revenue,CCHD,Bed purchasing - Under 65s PWLD - North,Residential Homes,Leonard Cheshire  National Account Centr,5872.12, 11-Jun-2013
930,Revenue,CCHD,Bed purchasing - Under 65s PWLD - North,Residential Homes,Leonard Cheshire  National Account Centr,5870.56, 11-Jun-2013
931,Revenue,CCHD,Bed Purchasing - Elderly - South,Residential Homes,Leonard Cheshire  National Account Centr,4433.04, 11-Jun-2013
932,Revenue,CCHD,Bed purchasing - Phys Dis - North,Nursing Homes,Leonard Cheshire  National Account Centr,2838.64, 11-Jun-2013
933,Revenue,CCHD,Bed purchasing - Phys Dis - North,Nursing Homes,Leonard Cheshire  National Account Centr,3812.44, 11-Jun-2013
934,Revenue,CCHD,Bed purchasing - Phys Dis - North,Residential Homes,Leonard Cheshire  National Account Centr,2889.4, 11-Jun-2013
935,Revenue,CCHD,Bed purchasing - Phys Dis - North,Nursing Homes,Leonard Cheshire  National Account Centr,4862.68, 11-Jun-2013
936,Revenue,CCHD,Bed purchasing - Phys Dis - North,Nursing Homes,Leonard Cheshire  National Account Centr,9126.74, 11-Jun-2013
937,Revenue,CCHD,Bed purchasing - Phys Dis - North,Nursing Homes,Leonard Cheshire  National Account Centr,3223.8, 11-Jun-2013
938,Revenue,CCHD,Bed purchasing - Phys Dis - South,Nursing Homes,Leonard Cheshire  National Account Centr,6114.8, 11-Jun-2013
939,Revenue,CCHD,Bed purchasing - Phys Dis - North,Nursing Homes,Leonard Cheshire  National Account Centr,5521.36, 11-Jun-2013
940,Revenue,CCHD,Bed Purchasing - Elderly - South,Nursing Homes,Leonard Cheshire  National Account Centr,2869.2, 11-Jun-2013
941,Revenue,CCHD,Bed Purchasing - Southmead Hospital,Nursing Homes,Leonard Cheshire  National Account Centr,3002, 11-Jun-2013
942,Revenue,CCHD,South Glos Users in all other LA Homes,Nursing Homes,Leonard Cheshire  National Account Centr,604.4, 11-Jun-2013
943,Revenue,CCHD,Bed purchasing - Phys Dis - North,Nursing Homes,Leonard Cheshire  National Account Centr,3309.2, 11-Jun-2013
944,Revenue,CCHD,Bed Purchasing - Frenchay Hospital,Residential Homes,Leonard Cheshire  National Account Centr,3773.4, 11-Jun-2013
945,Revenue,CCHD,Bed Purchasing - Elderly - South,Nursing Homes,Leonard Cheshire  National Account Centr,4369.6, 11-Jun-2013
946,Revenue,CCHD,Bed Purchasing - Elderly - South,Nursing Homes,Leonard Elms Care Home,1539.28, 11-Jun-2013
947,Revenue,CCHD,Tenancy Start Up Scheme,Other Supplies & Services,Lifestyle Lettings (Deposit),775, 19-Jun-2013
948,Revenue,CCHD,Tenancy Start Up Scheme,Other Supplies & Services,Lifestyle Lettings (Rent),675, 21-Jun-2013
949,Revenue,CCHD,Supported Living - North,Private & Voluntary Home Care,Lifeways Community Care (Gloucester) Ltd,8792, 07-Jun-2013
950,Revenue,CCHD,Woodleaze,Premises Maintenance by Contractor,Lionel Saunders & Co (Bristol) Limited,2765, 21-Jun-2013
951,Revenue,CCHD,Tenancy Start Up Scheme,Other Supplies & Services,Lisa-Marie Letting & Property Management,1150, 25-Jun-2013
952,Revenue,CCHD,Bed Purchasing - Southmead Hospital,Residential Homes,Little Croft,1817.28, 11-Jun-2013
953,Revenue,CCHD,Bed Purchasing - Elderly - South,Residential Homes,Little Croft,1246, 11-Jun-2013
954,Revenue,CCHD,Bed Purchasing - Elderly - South,Residential Homes,Little Croft,1368.76, 11-Jun-2013
955,Revenue,CCHD,Bed Purchasing - Southmead Hospital,Residential Homes,Little Croft,1244.76, 11-Jun-2013
956,Revenue,CCHD,Bed Purchasing - Elderly - South,Residential Homes,Little Croft,1856, 11-Jun-2013
957,Revenue,CCHD,Bed Purchasing - Elderly - South,Residential Homes,Little Croft,1522.8, 11-Jun-2013
958,Revenue,CCHD,Bed Purchasing - Frenchay Hospital,Residential Homes,Little Croft,1187.44, 11-Jun-2013
959,Revenue,CCHD,Bed Purchasing - Elderly MH - South,Residential Homes,Little Croft,1173.28, 11-Jun-2013
960,Revenue,CCHD,Bed Purchasing - Southmead Hospital,Residential Homes,Little Croft,1209.52, 11-Jun-2013
961,Revenue,CCHD,Bed Purchasing - Frenchay Hospital,Residential Homes,Little Croft,866, 11-Jun-2013
962,Revenue,CCHD,Bed Purchasing - Southmead Hospital,Residential Homes,Little Croft,4481.87, 11-Jun-2013
963,Revenue,CCHD,Bed Purchasing - Southmead Hospital,Residential Homes,Little Croft,1246, 11-Jun-2013
964,Revenue,CCHD,Bed purchasing - Under 65s PWLD - North,Residential Homes,Littlecroft Residential Homes  Longcroft,6386.28, 11-Jun-2013
965,Revenue,CCHD,Supported Living - South,Private & Voluntary Home Care,Lloyds TSB Commercial Finance Limited,3944.31, 07-Jun-2013
966,Revenue,CCHD,Supported Living - South,Private & Voluntary Home Care,Lloyds TSB Commercial Finance Limited,4030.97, 07-Jun-2013
967,Revenue,CCHD,Supported Living - South,Private & Voluntary Home Care,Lloyds TSB Commercial Finance Limited,3802.83, 07-Jun-2013
968,Revenue,CCHD,Supported Living - South,Private & Voluntary Home Care,Lloyds TSB Commercial Finance Limited,6221.84, 07-Jun-2013
969,Revenue,CCHD,Supported Living - South,Private & Voluntary Home Care,Lloyds TSB Commercial Finance Limited,3880.87, 07-Jun-2013
970,Revenue,CCHD,Supported Living - South,Private & Voluntary Home Care,Lloyds TSB Commercial Finance Limited,4127.15, 07-Jun-2013
971,Revenue,CCHD,Supported Living - South,Private & Voluntary Home Care,Lloyds TSB Commercial Finance Limited,3860.34, 07-Jun-2013
972,Revenue,CCHD,Supported Living - South,Private & Voluntary Home Care,Lloyds TSB Commercial Finance Limited,3794.5, 07-Jun-2013
973,Revenue,CCHD,Supported Living - South,Private & Voluntary Home Care,Lloyds TSB Commercial Finance Limited,3655.92, 07-Jun-2013
974,Revenue,CCHD,Supported Living - South,Private & Voluntary Home Care,Lloyds TSB Commercial Finance Limited,3631.08, 07-Jun-2013
975,Revenue,CCHD,Supported Living - South,Private & Voluntary Home Care,Lloyds TSB Commercial Finance Limited,3529.15, 07-Jun-2013
976,Revenue,CCHD,Bed Purchasing - Under 65s PWLD - South,Residential Homes,Longton Court,9332.65, 11-Jun-2013
977,Revenue,CCHD,Bed Purchasing - Southmead Hospital,Nursing Homes,Majestic 3 Limited,998, 11-Jun-2013
978,Revenue,CCHD,Bed Purchasing - Frenchay Hospital,Residential Homes,Manor Cottage,1059.52, 11-Jun-2013
979,Revenue,CCHD,Bed Purchasing - Elderly - North,Residential Homes,Manor Cottage,1353.53, 11-Jun-2013
980,Revenue,CCHD,Bed Purchasing - Southmead Hospital,Residential Homes,Manor Cottage,1246, 11-Jun-2013
981,Revenue,CCHD,Bed Purchasing - Elderly - South,Residential Homes,Manor Cottage,3986.51, 11-Jun-2013
982,Revenue,CCHD,Bed Purchasing - Southmead Hospital,Residential Homes,Manor Cottage,1246, 11-Jun-2013
983,Revenue,CCHD,Bed Purchasing - Elderly - South,Residential Homes,Manor Cottage,1448.6, 11-Jun-2013
984,Revenue,CCHD,Bed Purchasing - Elderly - North,Residential Homes,Manton Hall Residential Home,1496.44, 11-Jun-2013
985,Revenue,CCHD,Younger MH non-res purchasing,Private & Voluntary Day Care,Maples Community Care Limited,600.03, 21-Jun-2013
986,Revenue,CCHD,Section 117 Placements MH Younger,Private & Voluntary Day Care,Maples Community Care Limited,812.25, 07-Jun-2013
987,Revenue,CCHD,Social Lettings Agency,Other Supplies & Services,Individual,655.41, 20-Jun-2013
988,Revenue,CCHD,Bed Purchasing - Under 65s PWLD - South,Residential Homes,Marsden Healthcare Limited,911.04, 07-Jun-2013
989,Revenue,CCHD,Bed purchasing - Elderly PWLD - South,Residential Homes,Marsden Healthcare Limited,3203, 07-Jun-2013
990,Revenue,CCHD,Bed purchasing - Elderly PWLD - South,Residential Homes,Marsden Healthcare Limited,1505.96, 07-Jun-2013
991,Revenue,CCHD,Bed Purchasing - Elderly MH - South,Nursing Homes,Meadow Care Home,1476.76, 11-Jun-2013
992,Revenue,CCHD,Bed Purchasing - Elderly - South,Nursing Homes,Meadow Care Home,1879.2, 11-Jun-2013
993,Revenue,CCHD,Home Care - Elderly - South,Other Small Contracts,Mears Care,625.3, 21-Jun-2013
994,Revenue,CCHD,Home Care - Elderly - North,Other Small Contracts,Mears Care,6182.7, 21-Jun-2013
995,Revenue,CCHD,Day Care - South,Private & Voluntary Day Care,Mears Care,88.8, 21-Jun-2013
996,Revenue,CCHD,Day Care - North,Private & Voluntary Day Care,Mears Care,162.8, 21-Jun-2013
997,Revenue,CCHD,Under 65s -MH  Home Care Purch,Other Small Contracts,Mears Care,111, 21-Jun-2013
998,Revenue,CCHD,Home Care - Elderly LD - KH,Private & Voluntary Home Care,Mears Care,51.8, 21-Jun-2013
999,Revenue,CCHD,Home Care - Elderly - South,Other Small Contracts,Mears Care,621.6, 21-Jun-2013
1000,Revenue,CCHD,Home Care - Elderly - North,Other Small Contracts,Mears Care,6053.2, 21-Jun-2013
1001,Revenue,CCHD,Day Care - South,Private & Voluntary Day Care,Mears Care,88.8, 21-Jun-2013
1002,Revenue,CCHD,Day Care - North,Private & Voluntary Day Care,Mears Care,255.3, 21-Jun-2013
1003,Revenue,CCHD,Under 65s -MH  Home Care Purch,Other Small Contracts,Mears Care,111, 21-Jun-2013
1004,Revenue,CCHD,Home Care - Elderly LD - KH,Private & Voluntary Home Care,Mears Care,51.8, 21-Jun-2013
1005,Revenue,CCHD,Home Care - Elderly - South,Private & Voluntary Home Care,Mears Care,48154.25, 28-Jun-2013
1006,Revenue,CCHD,Home Care - Elderly - South,Other Small Contracts,Mears Care,629, 06-Jun-2013
1007,Revenue,CCHD,Home Care - Elderly - North,Other Small Contracts,Mears Care,6671.1, 06-Jun-2013
1008,Revenue,CCHD,Day Care - South,Private & Voluntary Day Care,Mears Care,88.8, 06-Jun-2013
1009,Revenue,CCHD,Day Care - North,Private & Voluntary Day Care,Mears Care,229.4, 06-Jun-2013
1010,Revenue,CCHD,Under 65s -MH  Home Care Purch,Other Small Contracts,Mears Care,114.7, 06-Jun-2013
1011,Revenue,CCHD,Home Care - Elderly LD - KH,Private & Voluntary Home Care,Mears Care,55.5, 06-Jun-2013
1012,Revenue,CCHD,Woodleaze,Prop.Serv. General Repairs,Mechanical Engineering Svcs (Avon) Ltd,1231.6, 17-Jun-2013
1013,Revenue,CCHD,NRS Contract,Daily Living Equipment,Medequip Assistive Technology Ltd,26497.95, 14-Jun-2013
1014,Revenue,CCHD,NRS Contract,Daily Living Equipment,Medequip Assistive Technology Ltd,82715.32, 14-Jun-2013
1015,Revenue,CCHD,Bed Purchasing - Under 65s PWLD - South,Residential Homes,Mencap,2219.16, 11-Jun-2013
1016,Revenue,CCHD,Supported Living (S28a) South,Private & Voluntary Home Care,Mencap - PS Central & Cymru,3751.02, 14-Jun-2013
1017,Revenue,CCHD,Supported Living (S28a) South,Private & Voluntary Home Care,Mencap - PS Central & Cymru,3751.02, 14-Jun-2013
1018,Revenue,CCHD,Supported Living (S28a) South,Private & Voluntary Home Care,Mencap - PS Central & Cymru,3751.02, 25-Jun-2013
1019,Revenue,CCHD,Supported Living (S28a) South,Private & Voluntary Home Care,Mencap - PS Central & Cymru,3751.02, 25-Jun-2013
1020,Revenue,CCHD,Supported Living (S28a) South,Private & Voluntary Home Care,Mencap - PS Central & Cymru,3786.86, 14-Jun-2013
1021,Revenue,CCHD,Supported Living (S28a) South,Private & Voluntary Home Care,Mencap - PS Central & Cymru,3786.86, 21-Jun-2013
1022,Revenue,CCHD,Alexandra Way,Prop.Serv. General Repairs,Merlin Housing Society,750, 11-Jun-2013
1023,Revenue,CCHD,Intermediate Care Accommodation,Other Supplies & Services,Merlin Housing Society,967.68, 26-Jun-2013
1024,Revenue,CCHD,Intermediate Care Accommodation,Other Supplies & Services,Merlin Housing Society,967.68, 26-Jun-2013
1025,Revenue,CCHD,Intermediate Care Accommodation,Other Supplies & Services,Merlin Housing Society,1209.59, 25-Jun-2013
1026,Revenue,CCHD,Tenancy Start Up Scheme,Other Supplies & Services,Michael Nicholas Estate Agents Ltd,1300, 26-Jun-2013
1027,Revenue,CCHD,Bed Purchasing - Frenchay Hospital,Residential Homes,Milburn Finance,1040.12, 11-Jun-2013
1028,Revenue,CCHD,Home Care - Elderly - South,Other Small Contracts,Milestones Outreach Dementia Services,1671.38, 21-Jun-2013
1029,Revenue,CCHD,Home Care - Elderly - North,Other Small Contracts,Milestones Outreach Dementia Services,1065.36, 21-Jun-2013
1030,Revenue,CCHD,Day Care - South,Private & Voluntary Day Care,Milestones Outreach Dementia Services,61.76, 21-Jun-2013
1031,Revenue,CCHD,Day Care - North,Private & Voluntary Day Care,Milestones Outreach Dementia Services,164.16, 21-Jun-2013
1032,Revenue,CCHD,Home care - Elderly MH - North,Other Small Contracts,Milestones Outreach Dementia Services,84.92, 21-Jun-2013
1033,Revenue,CCHD,Elderly MH Day Care North,Private & Voluntary Day Care,Milestones Outreach Dementia Services,108.08, 21-Jun-2013
1034,Revenue,CCHD,Home Care - Elderly - South,Other Small Contracts,Milestones Outreach Dementia Services,1671.38, 21-Jun-2013
1035,Revenue,CCHD,Home Care - Elderly - North,Other Small Contracts,Milestones Outreach Dementia Services,1150.28, 21-Jun-2013
1036,Revenue,CCHD,Day Care - South,Private & Voluntary Day Care,Milestones Outreach Dementia Services,61.76, 21-Jun-2013
1037,Revenue,CCHD,Day Care - North,Private & Voluntary Day Care,Milestones Outreach Dementia Services,164.16, 21-Jun-2013
1038,Revenue,CCHD,Home care - Elderly MH - North,Other Small Contracts,Milestones Outreach Dementia Services,77.2, 21-Jun-2013
1039,Revenue,CCHD,Elderly MH Day Care North,Private & Voluntary Day Care,Milestones Outreach Dementia Services,61.76, 21-Jun-2013
1040,Revenue,CCHD,Home Care - Elderly - South,Other Small Contracts,Milestones Outreach Dementia Services,1671.38, 19-Jun-2013
1041,Revenue,CCHD,Home Care - Elderly - North,Other Small Contracts,Milestones Outreach Dementia Services,1130.98, 19-Jun-2013
1042,Revenue,CCHD,Day Care - South,Private & Voluntary Day Care,Milestones Outreach Dementia Services,61.76, 19-Jun-2013
1043,Revenue,CCHD,Home care - Elderly MH - North,Other Small Contracts,Milestones Outreach Dementia Services,84.92, 19-Jun-2013
1044,Revenue,CCHD,Elderly MH Day Care North,Private & Voluntary Day Care,Milestones Outreach Dementia Services,15.44, 19-Jun-2013
1045,Revenue,CCHD,Home Care - Elderly - South,Other Small Contracts,Milestones Outreach Dementia Services,1706.12, 19-Jun-2013
1046,Revenue,CCHD,Home Care - Elderly - North,Other Small Contracts,Milestones Outreach Dementia Services,976.58, 19-Jun-2013
1047,Revenue,CCHD,Day Care - South,Private & Voluntary Day Care,Milestones Outreach Dementia Services,65.62, 19-Jun-2013
1048,Revenue,CCHD,Home care - Elderly MH - North,Other Small Contracts,Milestones Outreach Dementia Services,81.06, 19-Jun-2013
1049,Revenue,CCHD,Elderly MH Day Care North,Private & Voluntary Day Care,Milestones Outreach Dementia Services,15.44, 19-Jun-2013
1050,Revenue,CCHD,Purchase of Non-Res Care - North,Private & Voluntary Day Care,Milestones Trust,501.6, 18-Jun-2013
1051,Revenue,CCHD,Supported Living - North,Private & Voluntary Home Care,Milestones Trust,4969.86, 06-Jun-2013
1052,Revenue,CCHD,Purchase of Non-Res Care - South,Private & Voluntary Day Care,Milestones Trust,872.94, 05-Jun-2013
1053,Revenue,CCHD,Supported Living - South,Private & Voluntary Home Care,Milestones Trust,14530.72, 07-Jun-2013
1054,Revenue,CCHD,Purchase of Non-Res Care - South,Private & Voluntary Day Care,Milestones Trust,1321.17, 07-Jun-2013
1055,Revenue,CCHD,Purchase of Non-Res Care - South,Private & Voluntary Day Care,Milestones Trust,531.37, 07-Jun-2013
1056,Revenue,CCHD,Purchase of Non-Res Care - South,Private & Voluntary Day Care,Milestones Trust,1204.64, 07-Jun-2013
1057,Revenue,CCHD,Purchase of Non-Res Care - South,Private & Voluntary Day Care,Milestones Trust,1074.33, 07-Jun-2013
1058,Revenue,CCHD,Purchase of Non-Res Care - South,Private & Voluntary Day Care,Milestones Trust,1521.44, 07-Jun-2013
1059,Revenue,CCHD,Supported Living - South,Private & Voluntary Home Care,Milestones Trust,531.36, 07-Jun-2013
1060,Revenue,CCHD,Purchase of Non-Res Care - South,Private & Voluntary Day Care,Milestones Trust,1384.09, 07-Jun-2013
1061,Revenue,CCHD,Purchase of Non-Res Care - South,Private & Voluntary Day Care,Milestones Trust,1694.87, 07-Jun-2013
1062,Revenue,CCHD,Purchase of Non-Res Care - South,Private & Voluntary Day Care,Milestones Trust,2587.2, 07-Jun-2013
1063,Revenue,CCHD,Supported Living - South,Private & Voluntary Home Care,Milestones Trust,1354.8, 18-Jun-2013
1064,Revenue,CCHD,Purchase of Non-Res Care - South,Private & Voluntary Day Care,Milestones Trust,1556.06, 07-Jun-2013
1065,Revenue,CCHD,Purchase of Non-Res Care - South,Private & Voluntary Day Care,Milestones Trust,525.6, 07-Jun-2013
1066,Revenue,CCHD,Purchase of Non-Res Care - South,Private & Voluntary Day Care,Milestones Trust,1379.03, 07-Jun-2013
1067,Revenue,CCHD,Purchase of Non-Res Care - South,Private & Voluntary Day Care,Milestones Trust,1241.84, 07-Jun-2013
1068,Revenue,CCHD,Supported Living - South,Private & Voluntary Home Care,Milestones Trust,1745.71, 07-Jun-2013
1069,Revenue,CCHD,Purchase of Non-Res Care - South,Private & Voluntary Day Care,Milestones Trust,1289.41, 07-Jun-2013
1070,Revenue,CCHD,Elderly MH Day Care South,Private & Voluntary Day Care,Milestones Trust,640, 07-Jun-2013
1071,Revenue,CCHD,Supported Living - North,Private & Voluntary Home Care,Milestones Trust,1643.97, 07-Jun-2013
1072,Revenue,CCHD,Supported Living (S28a) North,Private & Voluntary Home Care,Milestones Trust,3988.63, 18-Jun-2013
1073,Revenue,CCHD,Supported Living (S28a) North,Private & Voluntary Home Care,Milestones Trust,4230.27, 18-Jun-2013
1074,Revenue,CCHD,Purchase of Non-Res Care - South,Private & Voluntary Day Care,Milestones Trust,720.36, 24-Jun-2013
1075,Revenue,CCHD,Stibbs and Fairburn,Private & Voluntary Respite Care,Milestones Trust,125996.48, 26-Jun-2013
1076,Revenue,CCHD,Supported Living (S28a) North,Private & Voluntary Home Care,Milestones Trust,1192.74, 27-Jun-2013
1077,Revenue,CCHD,Bed Purchasing - S28A - Over 65- North,Residential Homes,Milestones Trust,2669.24, 11-Jun-2013
1078,Revenue,CCHD,Bed Purchasing - Elderly - South,Residential Homes,Milestones Trust,1408.28, 11-Jun-2013
1079,Revenue,CCHD,Bed Purchasing - Under 65s PWLD - South,Residential Homes,Milestones Trust,9981.72, 11-Jun-2013
1080,Revenue,CCHD,Bed Purchasing - Under 65s PWLD - South,Residential Homes,Milestones Trust,5703.84, 11-Jun-2013
1081,Revenue,CCHD,Bed purchasing - Elderly MH - North,Nursing Homes,Milestones Trust,959.4, 11-Jun-2013
1082,Revenue,CCHD,Section 117 Placements MH Younger,Residential Homes,Milestones Trust,1338.64, 11-Jun-2013
1083,Revenue,CCHD,Bed purchasing - Elderly PWLD - North,Residential Homes,Milestones Trust,3420.84, 11-Jun-2013
1084,Revenue,CCHD,Bed Purchasing - Under 65s PWLD - South,Residential Homes,Milestones Trust,4882.36, 11-Jun-2013
1085,Revenue,CCHD,Bed Purchasing - Under 65s PWLD - South,Residential Homes,Milestones Trust,9551.5, 11-Jun-2013
1086,Revenue,CCHD,Bed Purchasing - Under 65s PWLD - South,Residential Homes,Milestones Trust,5458, 11-Jun-2013
1087,Revenue,CCHD,Bed Purchasing - Under 65s PWLD - South,Nursing Homes,Milestones Trust,2784.88, 11-Jun-2013
1088,Revenue,CCHD,Bed purchasing - Elderly MH - North,Nursing Homes,Milestones Trust,1434.2, 11-Jun-2013
1089,Revenue,CCHD,Section 117 Placements MH Younger,Nursing Homes,Milestones Trust,1615.36, 11-Jun-2013
1090,Revenue,CCHD,Bed purchasing - Elderly PWLD - South,Residential Homes,Milestones Trust,4144.04, 11-Jun-2013
1091,Revenue,CCHD,Bed purchasing -S28A  Under 65 - North,Nursing Homes,Milestones Trust,5853.56, 11-Jun-2013
1092,Revenue,CCHD,Bed purchasing -S28A  Under 65 - North,Residential Homes,Milestones Trust,5355.4, 11-Jun-2013
1093,Revenue,CCHD,Bed purchasing - Elderly PWLD - South,Residential Homes,Milestones Trust,3899.92, 11-Jun-2013
1094,Revenue,CCHD,Bed purchasing - S28A Under 65 - South,Residential Homes,Milestones Trust,15118.73, 11-Jun-2013
1095,Revenue,CCHD,Bed Purchasing - Elderly MH - South,Residential Homes,Milestones Trust,1290.88, 11-Jun-2013
1096,Revenue,CCHD,Bed Purchasing - Under 65s PWLD - South,Residential Homes,Milestones Trust,5090.24, 11-Jun-2013
1097,Revenue,CCHD,Bed purchasing - Under 65s PWLD - North,Residential Homes,Milestones Trust,581.13, 11-Jun-2013
1098,Revenue,CCHD,Bed Purchasing - Under 65s PWLD - South,Residential Homes,Milestones Trust,35057.92, 11-Jun-2013
1099,Revenue,CCHD,Bed Purchasing - Under 65s PWLD - South,Residential Homes,Milestones Trust,5431.76, 11-Jun-2013
1100,Revenue,CCHD,Bed purchasing - S28A Under 65 - South,Nursing Homes,Milestones Trust,7319.48, 11-Jun-2013
1101,Revenue,CCHD,MH Purchasing - Younger,Residential Homes,Milestones Trust,1020.8, 11-Jun-2013
1102,Revenue,CCHD,Bed purchasing - Elderly PWLD - South,Residential Homes,Milestones Trust,5145.48, 11-Jun-2013
1103,Revenue,CCHD,Bed purchasing - Elderly PWLD - South,Residential Homes,Milestones Trust,3823.68, 11-Jun-2013
1104,Revenue,CCHD,Bed purchasing - Elderly PWLD - North,Residential Homes,Milestones Trust,3027.2, 11-Jun-2013
1105,Revenue,CCHD,Bed purchasing -S28A  Under 65 - North,Residential Homes,Milestones Trust,5317.24, 11-Jun-2013
1106,Revenue,CCHD,Bed purchasing -S28A  Under 65 - North,Residential Homes,Milestones Trust,7077.48, 11-Jun-2013
1107,Revenue,CCHD,Bed purchasing -S28A  Under 65 - North,Nursing Homes,Milestones Trust,6272.72, 11-Jun-2013
1108,Revenue,CCHD,Bed Purchasing - Under 65s PWLD - South,Residential Homes,Milestones Trust,4535.2, 11-Jun-2013
1109,Revenue,CCHD,Bed purchasing -S28A  Under 65 - North,Residential Homes,Milestones Trust,6773.28, 11-Jun-2013
1110,Revenue,CCHD,Bed purchasing - S28A Under 65 - South,Residential Homes,Milestones Trust,4539.6, 11-Jun-2013
1111,Revenue,CCHD,Bed Purchasing - S28A - Over 65- North,Residential Homes,Milestones Trust,6510.76, 11-Jun-2013
1112,Revenue,CCHD,Bed Purchasing - LD S28A- Over 65- South,Residential Homes,Milestones Trust,4195.6, 11-Jun-2013
1113,Revenue,CCHD,Bed purchasing -S28A  Under 65 - North,Residential Homes,Milestones Trust,7077.48, 11-Jun-2013
1114,Revenue,CCHD,Bed purchasing -S28A  Under 65 - North,Residential Homes,Milestones Trust,7077.48, 11-Jun-2013
1115,Revenue,CCHD,Bed Purchasing - LD S28A- Over 65- South,Residential Homes,Milestones Trust,4117.16, 11-Jun-2013
1116,Revenue,CCHD,Bed purchasing - S28A Under 65 - South,Residential Homes,Milestones Trust,8544.13, 11-Jun-2013
1117,Revenue,CCHD,Bed purchasing - S28A Under 65 - South,Residential Homes,Milestones Trust,4882.36, 11-Jun-2013
1118,Revenue,CCHD,Bed purchasing - S28A Under 65 - South,Residential Homes,Milestones Trust,4775.6, 11-Jun-2013
1119,Revenue,CCHD,Bed purchasing - S28A Under 65 - South,Residential Homes,Milestones Trust,4301.68, 11-Jun-2013
1120,Revenue,CCHD,Bed Purchasing - LD S28A- Over 65- South,Residential Homes,Milestones Trust,5111.92, 11-Jun-2013
1121,Revenue,CCHD,Bed Purchasing - LD S28A- Over 65- South,Residential Homes,Milestones Trust,5051.8, 11-Jun-2013
1122,Revenue,CCHD,Bed Purchasing - LD S28A- Over 65- South,Residential Homes,Milestones Trust,5208.16, 11-Jun-2013
1123,Revenue,CCHD,Bed Purchasing - LD S28A- Over 65- South,Residential Homes,Milestones Trust,4372.64, 11-Jun-2013
1124,Revenue,CCHD,Bed Purchasing - LD S28A- Over 65- South,Residential Homes,Milestones Trust,5805.88, 11-Jun-2013
1125,Revenue,CCHD,Bed purchasing -S28A  Under 65 - North,Residential Homes,Milestones Trust,9179.96, 11-Jun-2013
1126,Revenue,CCHD,Bed purchasing -S28A  Under 65 - North,Nursing Homes,Milestones Trust,6356.08, 11-Jun-2013
1127,Revenue,CCHD,Bed Purchasing - LD S28A- Over 65- South,Residential Homes,Milestones Trust,4030.4, 11-Jun-2013
1128,Revenue,CCHD,Bed Purchasing - LD S28A- Over 65- South,Residential Homes,Milestones Trust,3011, 11-Jun-2013
1129,Revenue,CCHD,Bed Purchasing - S28A - Over 65- North,Residential Homes,Milestones Trust,2891.52, 11-Jun-2013
1130,Revenue,CCHD,Section 117 Placements MH Younger,Residential Homes,Milestones Trust,1336, 11-Jun-2013
1131,Revenue,CCHD,Bed purchasing - Elderly MH - North,Residential Homes,Milestones Trust,850, 11-Jun-2013
1132,Revenue,CCHD,Bed purchasing - S28A Under 65 - South,Residential Homes,Milestones Trust,4882.36, 11-Jun-2013
1133,Revenue,CCHD,Bed purchasing - Elderly PWLD - North,Residential Homes,Milestones Trust,7424.76, 11-Jun-2013
1134,Revenue,CCHD,Bed purchasing - Elderly PWLD - North,Residential Homes,Milestones Trust,4242.72, 11-Jun-2013
1135,Revenue,CCHD,Bed purchasing - Under 65s PWLD - North,Residential Homes,Milestones Trust,5564.04, 11-Jun-2013
1136,Revenue,CCHD,Bed purchasing - Elderly MH - North,Nursing Homes,Milestones Trust,1098.04, 11-Jun-2013
1137,Revenue,CCHD,Bed Purchasing - Under 65s PWLD - South,Residential Homes,Milestones Trust,4284.8, 11-Jun-2013
1138,Revenue,CCHD,Bed purchasing -S28A  Under 65 - North,Residential Homes,Milestones Trust,5691.56, 11-Jun-2013
1139,Revenue,CCHD,Bed Purchasing - S28A - Over 65- North,Residential Homes,Milestones Trust,3298.28, 11-Jun-2013
1140,Revenue,CCHD,Bed Purchasing - Elderly S117- North,Residential Homes,Milestones Trust,1732, 11-Jun-2013
1141,Revenue,CCHD,MH Purchasing - Younger,Residential Homes,Milestones Trust,1020.8, 11-Jun-2013
1142,Revenue,CCHD,Bed Purchasing - S28A - Over 65- North,Residential Homes,Milestones Trust,6195.63, 11-Jun-2013
1143,Revenue,CCHD,Bed Purchasing - S28A - Over 65- North,Residential Homes,Milestones Trust,3540.36, 11-Jun-2013
1144,Revenue,CCHD,Bed Purchasing - LD S28A- Over 65- South,Residential Homes,Milestones Trust,3900.48, 11-Jun-2013
1145,Revenue,CCHD,Bed purchasing - S28A Under 65 - South,Residential Homes,Milestones Trust,4938.12, 11-Jun-2013
1146,Revenue,CCHD,Bed purchasing - S28A Under 65 - South,Residential Homes,Milestones Trust,5826.2, 11-Jun-2013
1147,Revenue,CCHD,Bed Purchasing - LD S28A- Over 65- South,Residential Homes,Milestones Trust,5693.12, 11-Jun-2013
1148,Revenue,CCHD,Bed Purchasing - LD S28A- Over 65- South,Residential Homes,Milestones Trust,4823.12, 11-Jun-2013
1149,Revenue,CCHD,Bed Purchasing - LD S28A- Over 65- South,Residential Homes,Milestones Trust,4544.44, 11-Jun-2013
1150,Revenue,CCHD,Bed Purchasing - LD S28A- Over 65- South,Residential Homes,Milestones Trust,4619.68, 11-Jun-2013
1151,Revenue,CCHD,Bed purchasing - S28A Under 65 - South,Residential Homes,Milestones Trust,7342.16, 11-Jun-2013
1152,Revenue,CCHD,Bed Purchasing - LD S28A- Over 65- South,Residential Homes,Milestones Trust,4321.08, 11-Jun-2013
1153,Revenue,CCHD,Bed Purchasing - S28A - Over 65- North,Residential Homes,Milestones Trust,4788.84, 11-Jun-2013
1154,Revenue,CCHD,Bed Purchasing - Elderly S117- North,Nursing Homes,Milestones Trust,1788, 11-Jun-2013
1155,Revenue,CCHD,Bed Purchasing - S28A - Over 65- North,Residential Homes,Milestones Trust,4608.32, 11-Jun-2013
1156,Revenue,CCHD,Bed Purchasing - S28A - Over 65- North,Residential Homes,Milestones Trust,4779.44, 11-Jun-2013
1157,Revenue,CCHD,Bed purchasing - S28A Under 65 - South,Residential Homes,Milestones Trust,4770.48, 11-Jun-2013
1158,Revenue,CCHD,Bed Purchasing - S28A - Over 65- North,Residential Homes,Milestones Trust,4522.8, 11-Jun-2013
1159,Revenue,CCHD,Bed purchasing - S28A Under 65 - South,Residential Homes,Milestones Trust,4608.24, 11-Jun-2013
1160,Revenue,CCHD,Bed purchasing -S28A  Under 65 - North,Residential Homes,Milestones Trust,7077.48, 11-Jun-2013
1161,Revenue,CCHD,Bed Purchasing - S28A - Over 65- North,Residential Homes,Milestones Trust,5631.96, 11-Jun-2013
1162,Revenue,CCHD,Bed purchasing -S28A  Under 65 - North,Residential Homes,Milestones Trust,2978.96, 11-Jun-2013
1163,Revenue,CCHD,Bed Purchasing - S28A - Over 65- North,Residential Homes,Milestones Trust,3150.68, 11-Jun-2013
1164,Revenue,CCHD,Bed Purchasing - S28A - Over 65- North,Residential Homes,Milestones Trust,3284.2, 11-Jun-2013
1165,Revenue,CCHD,Bed Purchasing - LD S28A- Over 65- South,Residential Homes,Milestones Trust,3102.88, 11-Jun-2013
1166,Revenue,CCHD,Bed purchasing - Under 65s PWLD - North,Residential Homes,Milestones Trust,6791.36, 11-Jun-2013
1167,Revenue,CCHD,MH Purchasing - Younger,Nursing Homes,Milestones Trust,924, 11-Jun-2013
1168,Revenue,CCHD,MH Purchasing - Younger,Nursing Homes,Milestones Trust,942, 11-Jun-2013
1169,Revenue,CCHD,Bed purchasing - Elderly PWLD - South,Residential Homes,Milestones Trust,5725.09, 11-Jun-2013
1170,Revenue,CCHD,Bed purchasing - Elderly PWLD - South,Residential Homes,Milestones Trust,3271.48, 11-Jun-2013
1171,Revenue,CCHD,Bed purchasing - S28A Under 65 - South,Residential Homes,Milestones Trust,5935.6, 11-Jun-2013
1172,Revenue,CCHD,Bed purchasing - S28A Under 65 - South,Residential Homes,Milestones Trust,6032.8, 11-Jun-2013
1173,Revenue,CCHD,Bed Purchasing - LD S28A- Over 65- South,Residential Homes,Milestones Trust,4372.64, 11-Jun-2013
1174,Revenue,CCHD,Bed Purchasing - Under 65s PWLD - South,Residential Homes,Milestones Trust,5936.04, 11-Jun-2013
1175,Revenue,CCHD,Bed Purchasing - LD S28A- Over 65- South,Nursing Homes,Milestones Trust,4464.72, 11-Jun-2013
1176,Revenue,CCHD,Bed Purchasing - LD S28A- Over 65- South,Residential Homes,Milestones Trust,5693.12, 11-Jun-2013
1177,Revenue,CCHD,Bed Purchasing - LD S28A- Over 65- South,Residential Homes,Milestones Trust,3627.32, 11-Jun-2013
1178,Revenue,CCHD,Bed Purchasing - LD S28A- Over 65- South,Residential Homes,Milestones Trust,4362.68, 11-Jun-2013
1179,Revenue,CCHD,Bed Purchasing - LD S28A- Over 65- South,Residential Homes,Milestones Trust,5975.88, 11-Jun-2013
1180,Revenue,CCHD,Bed Purchasing - Elderly MH - South,Residential Homes,Milestones Trust,1212.08, 11-Jun-2013
1181,Revenue,CCHD,Bed purchasing -S28A  Under 65 - North,Nursing Homes,Milestones Trust,7567.32, 11-Jun-2013
1182,Revenue,CCHD,Bed purchasing -S28A  Under 65 - North,Nursing Homes,Milestones Trust,13787.76, 11-Jun-2013
1183,Revenue,CCHD,Bed purchasing -S28A  Under 65 - North,Nursing Homes,Milestones Trust,16445.91, 11-Jun-2013
1184,Revenue,CCHD,Bed Purchasing - Under 65s PWLD - South,Residential Homes,Milestones Trust,5265.48, 11-Jun-2013
1185,Revenue,CCHD,Bed Purchasing - Elderly S117- North,Nursing Homes,Milestones Trust,1964, 11-Jun-2013
1186,Revenue,CCHD,Bed Purchasing - Elderly MH - South,Nursing Homes,Milestones Trust,7775.66, 11-Jun-2013
1187,Revenue,CCHD,Bed Purchasing - Elderly MH - South,Nursing Homes,Milestones Trust,2729.76, 11-Jun-2013
1188,Revenue,CCHD,Bed purchasing - Under 65s PWLD - North,Residential Homes,Milestones Trust,9550.6, 11-Jun-2013
1189,Revenue,CCHD,Section 117 Placements MH Younger,Residential Homes,Milestones Trust,1336, 11-Jun-2013
1190,Revenue,CCHD,Bed Purchasing - LD S28A- Over 65- South,Nursing Homes,Milestones Trust,5279.12, 11-Jun-2013
1191,Revenue,CCHD,Bed Purchasing - LD S28A- Over 65- South,Nursing Homes,Milestones Trust,3016.64, 11-Jun-2013
1192,Revenue,CCHD,Bed Purchasing - LD S28A- Over 65- South,Nursing Homes,Milestones Trust,2573.72, 11-Jun-2013
1193,Revenue,CCHD,Bed Purchasing - LD S28A- Over 65- South,Nursing Homes,Milestones Trust,3298.72, 11-Jun-2013
1194,Revenue,CCHD,Bed Purchasing - S28A - Over 65- North,Nursing Homes,Milestones Trust,3649.32, 11-Jun-2013
1195,Revenue,CCHD,Bed Purchasing - S28A - Over 65- North,Nursing Homes,Milestones Trust,3665.32, 11-Jun-2013
1196,Revenue,CCHD,Bed Purchasing - PWLD S 117 Placements,Residential Homes,Milestones Trust,5771.4, 11-Jun-2013
1197,Revenue,CCHD,Bed purchasing - Elderly S117 - South,Residential Homes,Mostyn Lodge Residential Home,1900, 11-Jun-2013
1198,Revenue,CCHD,Bed Purchasing - Frenchay Hospital,Residential Homes,Mostyn Lodge Residential Home,721.25, 11-Jun-2013
1199,Revenue,CCHD,Older People's Commissioned Se,Grants to Voluntary Bodies,Mothers for Mothers,2155.25, 28-Jun-2013
1200,Revenue,CCHD,Social Lettings Agency,Other Supplies & Services,Individual,565, 21-Jun-2013
1201,Revenue,CCHD,Social Lettings Agency,Other Supplies & Services,Individual,582, 21-Jun-2013
1202,Revenue,CCHD,Social Lettings Agency,Other Supplies & Services,Individual,850, 12-Jun-2013
1203,Revenue,CCHD,Bed Purchasing - Under 65s PWLD - South,Residential Homes,Mr J Davis & Mrs S Davis,1583.52, 18-Jun-2013
1204,Revenue,CCHD,Social Lettings Agency,Other Supplies & Services,Individual,565, 07-Jun-2013
1205,Revenue,CCHD,Social Lettings Agency,Other Supplies & Services,Individual,632.81, 20-Jun-2013
1206,Revenue,CCHD,Tenancy Start Up Scheme,Other Supplies & Services,Individual,1300, 26-Jun-2013
1207,Revenue,CCHD,Social Lettings Agency,Other Supplies & Services,Individual,551.44, 07-Jun-2013
1208,Revenue,CCHD,Social Lettings Agency,Other Supplies & Services,Individual,572.8, 14-Jun-2013
1209,Revenue,CCHD,Tenancy Start Up Scheme,Other Supplies & Services,Individual,1300, 04-Jun-2013
1210,Revenue,CCHD,Supported Living - North,Private & Voluntary Home Care,Mrs B Kimber,1235.29, 06-Jun-2013
1211,Revenue,CCHD,Elderly MH Day Care North,Private & Voluntary Day Care,Mrs B Kimber,559.5, 21-Jun-2013
1212,Revenue,CCHD,Elderly MH Day Care South,Private & Voluntary Day Care,Mrs B Kimber,727.35, 21-Jun-2013
1213,Revenue,CCHD,Supported Living - South,Private & Voluntary Home Care,Mrs B Kimber,1518.38, 14-Jun-2013
1214,Revenue,CCHD,Purchase of Non-Res Care - South,Private & Voluntary Day Care,Mrs B Kimber,1086.84, 21-Jun-2013
1215,Revenue,CCHD,Supported Living - South,Private & Voluntary Home Care,Mrs B Kimber,8379.32, 21-Jun-2013
1216,Revenue,CCHD,Day Care - North,Private & Voluntary Day Care,Mrs B Kimber,548.4, 24-Jun-2013
1217,Revenue,CCHD,Home Care - Elderly - South,Other Small Contracts,Mrs B Kimber -  CM2000,6966, 11-Jun-2013
1218,Revenue,CCHD,Home Care - Elderly - North,Other Small Contracts,Mrs B Kimber -  CM2000,3335.13, 11-Jun-2013
1219,Revenue,CCHD,Day Care - South,Private & Voluntary Day Care,Mrs B Kimber -  CM2000,522.45, 11-Jun-2013
1220,Revenue,CCHD,Day Care - North,Private & Voluntary Day Care,Mrs B Kimber -  CM2000,97.2, 11-Jun-2013
1221,Revenue,CCHD,Elderly MH Day Care North,Private & Voluntary Day Care,Mrs B Kimber -  CM2000,97.2, 11-Jun-2013
1222,Revenue,CCHD,Home care - Elderly MH - South,Other Small Contracts,Mrs B Kimber -  CM2000,24.3, 11-Jun-2013
1223,Revenue,CCHD,PWLD Home Care - Under 65 - KH,Private & Voluntary Home Care,Mrs B Kimber -  CM2000,89.1, 11-Jun-2013
1224,Revenue,CCHD,Home Care - Elderly - South,Other Small Contracts,Mrs B Kimber -  CM2000,7087.5, 11-Jun-2013
1225,Revenue,CCHD,Home Care - Elderly - North,Other Small Contracts,Mrs B Kimber -  CM2000,4141.56, 11-Jun-2013
1226,Revenue,CCHD,Day Care - South,Private & Voluntary Day Care,Mrs B Kimber -  CM2000,526.5, 11-Jun-2013
1227,Revenue,CCHD,Elderly MH Day Care North,Private & Voluntary Day Care,Mrs B Kimber -  CM2000,97.2, 11-Jun-2013
1228,Revenue,CCHD,PWLD Home Care - Under 65 - KH,Private & Voluntary Home Care,Mrs B Kimber -  CM2000,89.1, 11-Jun-2013
1229,Revenue,CCHD,Home Care - Elderly - South,Other Small Contracts,Mrs B Kimber -  CM2000,6528.6, 11-Jun-2013
1230,Revenue,CCHD,Home Care - Elderly - North,Other Small Contracts,Mrs B Kimber -  CM2000,3921.9, 11-Jun-2013
1231,Revenue,CCHD,Day Care - South,Private & Voluntary Day Care,Mrs B Kimber -  CM2000,554.85, 11-Jun-2013
1232,Revenue,CCHD,Day Care - North,Private & Voluntary Day Care,Mrs B Kimber -  CM2000,32.4, 11-Jun-2013
1233,Revenue,CCHD,Elderly MH Day Care North,Private & Voluntary Day Care,Mrs B Kimber -  CM2000,93.15, 11-Jun-2013
1234,Revenue,CCHD,PWLD Home Care - Under 65 - KH,Private & Voluntary Home Care,Mrs B Kimber -  CM2000,89.1, 11-Jun-2013
1235,Revenue,CCHD,Home Care - Elderly - South,Other Small Contracts,Mrs B Kimber -  CM2000,6204.6, 27-Jun-2013
1236,Revenue,CCHD,Home Care - Elderly - North,Other Small Contracts,Mrs B Kimber -  CM2000,3683.43, 27-Jun-2013
1237,Revenue,CCHD,Day Care - South,Private & Voluntary Day Care,Mrs B Kimber -  CM2000,550.8, 27-Jun-2013
1238,Revenue,CCHD,Day Care - North,Private & Voluntary Day Care,Mrs B Kimber -  CM2000,81, 27-Jun-2013
1239,Revenue,CCHD,Elderly MH Day Care North,Private & Voluntary Day Care,Mrs B Kimber -  CM2000,97.2, 27-Jun-2013
1240,Revenue,CCHD,PWLD Home Care - Under 65 - KH,Private & Voluntary Home Care,Mrs B Kimber -  CM2000,89.1, 27-Jun-2013
1241,Revenue,CCHD,Day Care - North,Private & Voluntary Day Care,Mrs B Kimber -  CM2000,608.6, 24-Jun-2013
1242,Revenue,CCHD,Supported Living - North,Private & Voluntary Home Care,Mrs B Kimber -  CM2000,1270.55, 21-Jun-2013
1243,Revenue,CCHD,Social Lettings Agency,Other Supplies & Services,Individual,565, 17-Jun-2013
1244,Revenue,CCHD,Social Lettings Agency,Other Supplies & Services,Individual,565, 24-Jun-2013
1245,Revenue,CCHD,Supported Living - North,Residential Homes,Mrs I M Bowerman,1879.02, 18-Jun-2013
1246,Revenue,CCHD,Social Lettings Agency,Other Supplies & Services,Individual,565, 12-Jun-2013
1247,Revenue,CCHD,Supported Living - North,Residential Homes,Mrs Julie Taylor,900, 11-Jun-2013
1248,Revenue,CCHD,Homelessness Grant,Other Supplies & Services,Mrs Maureen Burden,650, 19-Jun-2013
1249,Revenue,CCHD,Social Lettings Agency,Other Supplies & Services,Individual,655.41, 14-Jun-2013
1250,Revenue,CCHD,Purchase of Non-Res Care - North,Private & Voluntary Day Care,Mrs W Thompson,1410.18, 27-Jun-2013
1251,Revenue,CCHD,Purchase of Non-Res Care - North,Private & Voluntary Day Care,Mrs W Thompson,563.28, 27-Jun-2013
1252,Revenue,CCHD,Social Lettings Agency,Other Supplies & Services,Individual,858.8, 11-Jun-2013
1253,Revenue,CCHD,Alexandra Way,Cleaning & Domestic Services,Muzzell Healthcare,439.32, 07-Jun-2013
1254,Revenue,CCHD,Younger MH non-res purchasing,Private & Voluntary Day Care,NAS Services Limited,1052.65, 06-Jun-2013
1255,Revenue,CCHD,Younger MH non-res purchasing,Private & Voluntary Day Care,NAS Services Limited,1310.3, 06-Jun-2013
1256,Revenue,CCHD,Younger MH non-res purchasing,Private & Voluntary Day Care,NAS Services Limited,884.4, 05-Jun-2013
1257,Revenue,CCHD,Younger MH non-res purchasing,Private & Voluntary Day Care,NAS Services Limited,755.2, 27-Jun-2013
1258,Revenue,CCHD,Younger MH non-res purchasing,Private & Voluntary Day Care,NAS Services Limited,639.2, 27-Jun-2013
1259,Revenue,CCHD,Younger MH non-res purchasing,Private & Voluntary Day Care,NAS Services Limited,764, 27-Jun-2013
1260,Revenue,CCHD,Younger MH non-res purchasing,Private & Voluntary Day Care,NAS Services Limited,935.9, 28-Jun-2013
1261,Revenue,CCHD,Younger MH non-res purchasing,Private & Voluntary Day Care,NAS Services Limited,649.4, 28-Jun-2013
1262,Revenue,CCHD,Younger MH non-res purchasing,Private & Voluntary Day Care,NAS Services Limited,841.7, 28-Jun-2013
1263,Revenue,CCHD,Bed Purchasing - Under 65s PWLD - South,Residential Homes,National Star College,4547.72, 11-Jun-2013
1264,Revenue,CCHD,Purchase of Non-Res Care - North,Private & Voluntary Day Care,Natureworks Training Community Interest,1323.82, 14-Jun-2013
1265,Revenue,CCHD,Home Care - Elderly - South,Other Small Contracts,Network Health & Social Care,1629.91, 06-Jun-2013
1266,Revenue,CCHD,Home Care - Elderly - North,Other Small Contracts,Network Health & Social Care,2921.39, 06-Jun-2013
1267,Revenue,CCHD,Day Care - North,Private & Voluntary Day Care,Network Health & Social Care,27.23, 06-Jun-2013
1268,Revenue,CCHD,Home Care - Elderly - South,Other Small Contracts,Network Health & Social Care,1571.56, 06-Jun-2013
1269,Revenue,CCHD,Home Care - Elderly - North,Other Small Contracts,Network Health & Social Care,2995.3, 06-Jun-2013
1270,Revenue,CCHD,Day Care - North,Private & Voluntary Day Care,Network Health & Social Care,27.23, 06-Jun-2013
1271,Revenue,CCHD,Social Lettings Agency,Other Supplies & Services,Individual,565, 04-Jun-2013
1272,Revenue,CCHD,Access Team,"Holidays, Outings & Visits",Neville Williams,672, 17-Jun-2013
1273,Revenue,CCHD,Homelessness Grant,Other Supplies & Services,New Homes Legal Helpline,5000, 21-Jun-2013
1274,Revenue,CCHD,Bed Purchasing - Under 65s PWLD - South,Residential Homes,Nightingale Nursing Home,3105.36, 11-Jun-2013
1275,Revenue,CCHD,SLA Grants - Support Serv,Grants to Voluntary Bodies,North Bristol NHS Trust,4350, 28-Jun-2013
1276,Revenue,CCHD,Purchase of RAC places,Other L.A.'s - General,North Somerset Council,10596.6, 14-Jun-2013
1277,Revenue,CCHD,Information Systems - Software,Software Support & Maintenance,Northgate Information Solutions UK Limited,8000, 21-Jun-2013
1278,Revenue,CCHD,Bed Purchasing - Under 65s PWLD - South,Residential Homes,Norwood   Broadway House,4899.44, 11-Jun-2013
1279,Revenue,CCHD,Bed Purchasing - Elderly MH - South,Residential Homes,Notaro Homes Ltd  Queensmead Court,1857.32, 11-Jun-2013
1280,Revenue,CCHD,Bed Purchasing - Southmead Hospital,Residential Homes,Notaro Homes Ltd  Queensmead Court,1371.32, 11-Jun-2013
1281,Revenue,CCHD,Section 117 Placements MH Younger,Residential Homes,Notaro Homes Ltd  Queensmead Court,3028.8, 11-Jun-2013
1282,Revenue,CCHD,Home Care - Elderly - South,Other Small Contracts,Nursing Solutions Limited,971.1, 17-Jun-2013
1283,Revenue,CCHD,Home Care - Elderly - South,Other Small Contracts,Nursing Solutions Limited,1021.8, 17-Jun-2013
1284,Revenue,CCHD,Home Care - Elderly - South,Other Small Contracts,Nursing Solutions Limited,1181.7, 17-Jun-2013
1285,Revenue,CCHD,Home Care - Elderly - South,Other Small Contracts,Nursing Solutions Limited,1251.9, 17-Jun-2013
1286,Revenue,CCHD,Home Care - Elderly - South,Other Small Contracts,Nursing Solutions Limited,1271.4, 17-Jun-2013
1287,Revenue,CCHD,Home Care - Elderly - North,Other Small Contracts,Nursing Solutions Limited,312, 17-Jun-2013
1288,Revenue,CCHD,Section 117 Placements MH Younger,Nursing Homes,Oaklands,6000, 11-Jun-2013
1289,Revenue,CCHD,Home Care - Elderly - South,Other Small Contracts,On the Up,961.14, 19-Jun-2013
1290,Revenue,CCHD,Home Care - Elderly - North,Other Small Contracts,On the Up,135.1, 19-Jun-2013
1291,Revenue,CCHD,Day Care - South,Private & Voluntary Day Care,On the Up,155.76, 19-Jun-2013
1292,Revenue,CCHD,Day Care - North,Private & Voluntary Day Care,On the Up,405.84, 19-Jun-2013
1293,Revenue,CCHD,Younger MH non-res purchasing,Private & Voluntary Day Care,On the Up,36.48, 19-Jun-2013
1294,Revenue,CCHD,Elderly MH Day Care North,Private & Voluntary Day Care,On the Up,61.76, 19-Jun-2013
1295,Revenue,CCHD,Home Care - Elderly - South,Other Small Contracts,On the Up,1046.06, 20-Jun-2013
1296,Revenue,CCHD,Home Care - Elderly - North,Other Small Contracts,On the Up,138.96, 20-Jun-2013
1297,Revenue,CCHD,Day Care - South,Private & Voluntary Day Care,On the Up,160.32, 20-Jun-2013
1298,Revenue,CCHD,Day Care - North,Private & Voluntary Day Care,On the Up,392.16, 20-Jun-2013
1299,Revenue,CCHD,Younger MH non-res purchasing,Private & Voluntary Day Care,On the Up,36.48, 20-Jun-2013
1300,Revenue,CCHD,Elderly MH Day Care North,Private & Voluntary Day Care,On the Up,46.32, 20-Jun-2013
1301,Revenue,CCHD,Home Care - Elderly - South,Other Small Contracts,On the Up,907.1, 20-Jun-2013
1302,Revenue,CCHD,Home Care - Elderly - North,Other Small Contracts,On the Up,138.96, 20-Jun-2013
1303,Revenue,CCHD,Day Care - South,Private & Voluntary Day Care,On the Up,155.76, 20-Jun-2013
1304,Revenue,CCHD,Day Care - North,Private & Voluntary Day Care,On the Up,387.6, 20-Jun-2013
1305,Revenue,CCHD,Younger MH non-res purchasing,Private & Voluntary Day Care,On the Up,36.48, 20-Jun-2013
1306,Revenue,CCHD,Elderly MH Day Care North,Private & Voluntary Day Care,On the Up,61.76, 20-Jun-2013
1307,Revenue,CCHD,Home Care - Elderly - South,Other Small Contracts,On the Up,856.92, 19-Jun-2013
1308,Revenue,CCHD,Home Care - Elderly - North,Other Small Contracts,On the Up,92.64, 19-Jun-2013
1309,Revenue,CCHD,Day Care - South,Private & Voluntary Day Care,On the Up,119.28, 19-Jun-2013
1310,Revenue,CCHD,Day Care - North,Private & Voluntary Day Care,On the Up,401.28, 19-Jun-2013
1311,Revenue,CCHD,Younger MH non-res purchasing,Private & Voluntary Day Care,On the Up,36.48, 19-Jun-2013
1312,Revenue,CCHD,Elderly MH Day Care North,Private & Voluntary Day Care,On the Up,54.04, 19-Jun-2013
1313,Revenue,CCHD,Bed purchasing -S28A  Under 65 - North,Residential Homes,Orchard End Limited,14664.63, 11-Jun-2013
1314,Revenue,CCHD,Turnberries,"Provisions (Food, etc)",Origin Cafe,548.9, 28-Jun-2013
1315,Revenue,CCHD,Bed Purchasing - Elderly S117- North,Residential Homes,Osbourne Court,1900, 11-Jun-2013
1316,Revenue,CCHD,Bed Purchasing - Elderly S117- North,Residential Homes,Osbourne Court,1732.48, 11-Jun-2013
1317,Revenue,CCHD,Bed Purchasing - Elderly S117- North,Residential Homes,Osbourne Court,1900, 11-Jun-2013
1318,Revenue,CCHD,Bed Purchasing - Southmead Hospital,Residential Homes,Osbourne Court,859.4, 11-Jun-2013
1319,Revenue,CCHD,Bed Purchasing - Under 65s PWLD - South,Residential Homes,Osprey Court,7636.76, 11-Jun-2013
1320,Revenue,CCHD,Bed purchasing - S28A Under 65 - South,Residential Homes,Osprey Court,4259.36, 11-Jun-2013
1321,Revenue,CCHD,Bed purchasing - S28A Under 65 - South,Residential Homes,Osprey Court,6305.32, 11-Jun-2013
1322,Revenue,CCHD,Research & Conferences,Membership Fees,Oxford Brookes Enterprises Limited,3000, 07-Jun-2013
1323,Revenue,CCHD,Bed Purchasing - Southmead Hospital,Nursing Homes,Palm Court Nursing Home,1503.36, 11-Jun-2013
1324,Revenue,CCHD,Bed Purchasing - Elderly MH - South,Residential Homes,Park Farm House,1333.44, 11-Jun-2013
1325,Revenue,CCHD,Bed Purchasing - Elderly - South,Residential Homes,Park Farm House,1780.96, 11-Jun-2013
1326,Revenue,CCHD,Bed Purchasing - Elderly MH - South,Residential Homes,Park Farm House,1593.2, 11-Jun-2013
1327,Revenue,CCHD,Bed Purchasing - Under 65s PWLD - South,Residential Homes,Park Hall,5552, 11-Jun-2013
1328,Revenue,CCHD,Bed purchasing - Under 65s PWLD - North,Residential Homes,Park Hall,5131.28, 11-Jun-2013
1329,Revenue,CCHD,Bed Purchasing - Under 65s PWLD - South,Residential Homes,Park Hall,4940.84, 11-Jun-2013
1330,Revenue,CCHD,Bed purchasing - Elderly PWLD - South,Residential Homes,Park Hall,2520.96, 11-Jun-2013
1331,Revenue,CCHD,Bed Purchasing - Under 65s PWLD - South,Residential Homes,Park Hall,3824.16, 11-Jun-2013
1332,Revenue,CCHD,Bed purchasing - Elderly PWLD - North,Residential Homes,Park Hall,4897.8, 11-Jun-2013
1333,Revenue,CCHD,Bed purchasing - S28A Under 65 - South,Residential Homes,Park Hall,4614.16, 11-Jun-2013
1334,Revenue,CCHD,Bed Purchasing - Under 65s PWLD - South,Residential Homes,Park Hall,4917.16, 11-Jun-2013
1335,Revenue,CCHD,Bed purchasing - Under 65s PWLD - North,Residential Homes,Park Hall,4343.24, 11-Jun-2013
1336,Revenue,CCHD,Bed Purchasing - S28A - Over 65- North,Residential Homes,Park Hall,5286.8, 11-Jun-2013
1337,Revenue,CCHD,Bed Purchasing - Under 65s PWLD - South,Residential Homes,Park Hall,10610.92, 11-Jun-2013
1338,Revenue,CCHD,Bed purchasing -S28A  Under 65 - North,Residential Homes,Park Hall,5844.16, 11-Jun-2013
1339,Revenue,CCHD,Bed purchasing - S28A Under 65 - South,Residential Homes,Park Hall,5565.72, 11-Jun-2013
1340,Revenue,CCHD,Bed Purchasing - Elderly - North,Residential Homes,Park House Residential Home,779.84, 11-Jun-2013
1341,Revenue,CCHD,Social Lettings Agency,Other Supplies & Services,Individual,565, 27-Jun-2013
1342,Revenue,CCHD,Bed Purchasing - Under 65s PWLD - South,Residential Homes,Penleigh House Care Home,4493.52, 11-Jun-2013
1343,Revenue,CCHD,Bed Purchasing - Under 65s PWLD - South,Residential Homes,Penleigh House Care Home,5224.4, 11-Jun-2013
1344,Revenue,CCHD,Bed purchasing - Elderly PWLD - South,Residential Homes,Penleigh House Care Home,4258.48, 11-Jun-2013
1345,Revenue,CCHD,Bed purchasing - S28A Under 65 - South,Residential Homes,Penleigh House Care Home,5417.04, 11-Jun-2013
1346,Revenue,CCHD,Bed Purchasing - Under 65s PWLD - South,Residential Homes,Penleigh House Care Home,4893.28, 11-Jun-2013
1347,Revenue,CCHD,Home Care - Elderly - South,Other Small Contracts,Premier Homecare Limited,788.88, 06-Jun-2013
1348,Revenue,CCHD,Home Care - Elderly - North,Other Small Contracts,Premier Homecare Limited,6558.99, 06-Jun-2013
1349,Revenue,CCHD,Younger MH non-res purchasing,Private & Voluntary Day Care,Premier Homecare Limited,27.36, 06-Jun-2013
1350,Revenue,CCHD,Home care - Elderly MH - North,Other Small Contracts,Premier Homecare Limited,164.16, 06-Jun-2013
1351,Revenue,CCHD,Elderly MH Day Care North,Private & Voluntary Day Care,Premier Homecare Limited,155.04, 06-Jun-2013
1352,Revenue,CCHD,Home Care - Elderly - South,Other Small Contracts,Premier Homecare Limited,770.64, 11-Jun-2013
1353,Revenue,CCHD,Home Care - Elderly - North,Other Small Contracts,Premier Homecare Limited,7694.43, 11-Jun-2013
1354,Revenue,CCHD,Younger MH non-res purchasing,Private & Voluntary Day Care,Premier Homecare Limited,22.8, 11-Jun-2013
1355,Revenue,CCHD,Home care - Elderly MH - North,Other Small Contracts,Premier Homecare Limited,164.16, 11-Jun-2013
1356,Revenue,CCHD,Elderly MH Day Care North,Private & Voluntary Day Care,Premier Homecare Limited,141.36, 11-Jun-2013
1357,Revenue,CCHD,Home Care - Elderly - South,Other Small Contracts,Premier Homecare Limited,784.32, 11-Jun-2013
1358,Revenue,CCHD,Home Care - Elderly - North,Other Small Contracts,Premier Homecare Limited,7410, 11-Jun-2013
1359,Revenue,CCHD,Younger MH non-res purchasing,Private & Voluntary Day Care,Premier Homecare Limited,27.36, 11-Jun-2013
1360,Revenue,CCHD,Home care - Elderly MH - North,Other Small Contracts,Premier Homecare Limited,159.6, 11-Jun-2013
1361,Revenue,CCHD,Elderly MH Day Care North,Private & Voluntary Day Care,Premier Homecare Limited,196.08, 11-Jun-2013
1362,Revenue,CCHD,Home Care - Elderly - South,Other Small Contracts,Premier Homecare Limited,788.88, 17-Jun-2013
1363,Revenue,CCHD,Home Care - Elderly - North,Other Small Contracts,Premier Homecare Limited,7843.2, 17-Jun-2013
1364,Revenue,CCHD,Day Care - North,Private & Voluntary Day Care,Premier Homecare Limited,22.8, 17-Jun-2013
1365,Revenue,CCHD,Younger MH non-res purchasing,Private & Voluntary Day Care,Premier Homecare Limited,27.36, 17-Jun-2013
1366,Revenue,CCHD,Home care - Elderly MH - North,Other Small Contracts,Premier Homecare Limited,168.72, 17-Jun-2013
1367,Revenue,CCHD,Elderly MH Day Care North,Private & Voluntary Day Care,Premier Homecare Limited,214.32, 17-Jun-2013
1368,Revenue,CCHD,Home Care - Elderly - South,Other Small Contracts,Premier Homecare Limited,793.44, 27-Jun-2013
1369,Revenue,CCHD,Home Care - Elderly - North,Other Small Contracts,Premier Homecare Limited,7920.72, 27-Jun-2013
1370,Revenue,CCHD,Younger MH non-res purchasing,Private & Voluntary Day Care,Premier Homecare Limited,27.36, 27-Jun-2013
1371,Revenue,CCHD,Home care - Elderly MH - North,Other Small Contracts,Premier Homecare Limited,164.16, 27-Jun-2013
1372,Revenue,CCHD,Elderly MH Day Care North,Private & Voluntary Day Care,Premier Homecare Limited,209.76, 27-Jun-2013
1373,Revenue,CCHD,Home Care - Elderly - South,Other Small Contracts,Prestige Nursing,1120.6, 20-Jun-2013
1374,Revenue,CCHD,Home Care - Elderly - North,Other Small Contracts,Prestige Nursing,1120.6, 20-Jun-2013
1375,Revenue,CCHD,Day Care - South,Private & Voluntary Day Care,Prestige Nursing,254.29, 20-Jun-2013
1376,Revenue,CCHD,Day Care - North,Private & Voluntary Day Care,Prestige Nursing,577.06, 20-Jun-2013
1377,Revenue,CCHD,Elderly MH Day Care North,Private & Voluntary Day Care,Prestige Nursing,189.64, 20-Jun-2013
1378,Revenue,CCHD,Home Care - Elderly - South,Other Small Contracts,Prestige Nursing,1099.05, 20-Jun-2013
1379,Revenue,CCHD,Home Care - Elderly - North,Other Small Contracts,Prestige Nursing,1284.38, 20-Jun-2013
1380,Revenue,CCHD,Day Care - South,Private & Voluntary Day Care,Prestige Nursing,249.98, 20-Jun-2013
1381,Revenue,CCHD,Day Care - North,Private & Voluntary Day Care,Prestige Nursing,697.74, 20-Jun-2013
1382,Revenue,CCHD,Elderly MH Day Care North,Private & Voluntary Day Care,Prestige Nursing,189.64, 20-Jun-2013
1383,Revenue,CCHD,Home Care - Elderly - South,Other Small Contracts,Prestige Nursing,922.34, 20-Jun-2013
1384,Revenue,CCHD,Home Care - Elderly - North,Other Small Contracts,Prestige Nursing,1120.6, 20-Jun-2013
1385,Revenue,CCHD,Day Care - South,Private & Voluntary Day Care,Prestige Nursing,249.98, 20-Jun-2013
1386,Revenue,CCHD,Day Care - North,Private & Voluntary Day Care,Prestige Nursing,474.1, 20-Jun-2013
1387,Revenue,CCHD,Elderly MH Day Care North,Private & Voluntary Day Care,Prestige Nursing,189.64, 20-Jun-2013
1388,Revenue,CCHD,Home Care - Elderly - South,Other Small Contracts,Prestige Nursing,999.92, 20-Jun-2013
1389,Revenue,CCHD,Home Care - Elderly - North,Other Small Contracts,Prestige Nursing,1111.98, 20-Jun-2013
1390,Revenue,CCHD,Day Care - South,Private & Voluntary Day Care,Prestige Nursing,219.81, 20-Jun-2013
1391,Revenue,CCHD,Day Care - North,Private & Voluntary Day Care,Prestige Nursing,267.22, 20-Jun-2013
1392,Revenue,CCHD,Elderly MH Day Care North,Private & Voluntary Day Care,Prestige Nursing,189.64, 20-Jun-2013
1393,Revenue,CCHD,Home Care - Elderly - South,Other Small Contracts,Prestige Nursing,1008.54, 20-Jun-2013
1394,Revenue,CCHD,Home Care - Elderly - North,Other Small Contracts,Prestige Nursing,991.3, 20-Jun-2013
1395,Revenue,CCHD,Day Care - South,Private & Voluntary Day Care,Prestige Nursing,228.43, 20-Jun-2013
1396,Revenue,CCHD,Day Care - North,Private & Voluntary Day Care,Prestige Nursing,577.54, 20-Jun-2013
1397,Revenue,CCHD,Elderly MH Day Care North,Private & Voluntary Day Care,Prestige Nursing,189.64, 20-Jun-2013
1398,Revenue,CCHD,Home Care - Elderly - South,Other Small Contracts,Prestige Nursing,956.82, 20-Jun-2013
1399,Revenue,CCHD,Home Care - Elderly - North,Other Small Contracts,Prestige Nursing,1107.67, 20-Jun-2013
1400,Revenue,CCHD,Day Care - South,Private & Voluntary Day Care,Prestige Nursing,258.6, 20-Jun-2013
1401,Revenue,CCHD,Day Care - North,Private & Voluntary Day Care,Prestige Nursing,629.26, 20-Jun-2013
1402,Revenue,CCHD,Older People's Commissioned Se,Grants to Voluntary Bodies,Princess Royal Trust Carers Centre,40415.25, 28-Jun-2013
1403,Revenue,CCHD,Older People's Commissioned Se,Grants to Voluntary Bodies,Princess Royal Trust Carers Centre,1930.75, 28-Jun-2013
1404,Revenue,CCHD,Bed purchasing - Elderly MH - North,Nursing Homes,Ravenswood,1269.48, 11-Jun-2013
1405,Revenue,CCHD,Bed Purchasing - Elderly - South,Residential Homes,Ravenswood,3804.6, 11-Jun-2013
1406,Revenue,CCHD,Bed Purchasing - Elderly - North,Nursing Homes,Ravenswood,1536.52, 11-Jun-2013
1407,Revenue,CCHD,Bed Purchasing - PWLD S 117 Placements,Residential Homes,Real Life Options,7979.92, 11-Jun-2013
1408,Revenue,CCHD,Bed Purchasing - Elderly S117- North,Nursing Homes,Redholme Memory Care Limited,1962.8, 11-Jun-2013
1409,Revenue,CCHD,Bed Purchasing - Elderly - South,Nursing Homes,Regent House,2224.96, 11-Jun-2013
1410,Revenue,CCHD,South Glos Users in South Glos Homes,Nursing Homes,Regent House,512.44, 11-Jun-2013
1411,Revenue,CCHD,Bed Purchasing - Elderly - South,Nursing Homes,Regent House,1649.08, 11-Jun-2013
1412,Revenue,CCHD,Bed Purchasing - Elderly - South,Nursing Homes,Regent House,1951.08, 11-Jun-2013
1413,Revenue,CCHD,South Glos Users in South Glos Homes,Nursing Homes,Regent House,878.32, 11-Jun-2013
1414,Revenue,CCHD,Bed Purchasing - Elderly MH - South,Nursing Homes,Regent House,1982.08, 11-Jun-2013
1415,Revenue,CCHD,Bed Purchasing - Elderly MH - South,Nursing Homes,Regent House,1132.62, 11-Jun-2013
1416,Revenue,CCHD,Bed Purchasing - Elderly - South,Nursing Homes,Regent House,1699.68, 11-Jun-2013
1417,Revenue,CCHD,Bed Purchasing - Elderly - South,Nursing Homes,Regent House,3283.63, 11-Jun-2013
1418,Revenue,CCHD,Bed Purchasing - Elderly - South,Nursing Homes,Regent House,1876.36, 11-Jun-2013
1419,Revenue,CCHD,Bed Purchasing - Southmead Hospital,Nursing Homes,Regent House,2597.79, 11-Jun-2013
1420,Revenue,CCHD,Bed Purchasing - Elderly - South,Nursing Homes,Regent House,1977.08, 11-Jun-2013
1421,Revenue,CCHD,Bed Purchasing - Elderly - South,Nursing Homes,Regent House,1808, 11-Jun-2013
1422,Revenue,CCHD,Bed Purchasing - Elderly - South,Nursing Homes,Regent House,1649.08, 11-Jun-2013
1423,Revenue,CCHD,Bed Purchasing - Elderly - South,Nursing Homes,Regent House,616.04, 11-Jun-2013
1424,Revenue,CCHD,Bed Purchasing - Elderly - South,Nursing Homes,Regent House,2052.28, 11-Jun-2013
1425,Revenue,CCHD,Bed Purchasing - Southmead Hospital,Nursing Homes,Regent House,1388.52, 11-Jun-2013
1426,Revenue,CCHD,Bed Purchasing - Elderly - South,Nursing Homes,Regent House,2118.96, 11-Jun-2013
1427,Revenue,CCHD,Bed Purchasing - Elderly - South,Nursing Homes,Regent House,1646.36, 11-Jun-2013
1428,Revenue,CCHD,Bed Purchasing - Elderly MH - South,Nursing Homes,Regent House,2087.12, 11-Jun-2013
1429,Revenue,CCHD,Bed Purchasing - Elderly MH - South,Nursing Homes,Regent House,1192.64, 11-Jun-2013
1430,Revenue,CCHD,Bed purchasing - Elderly MH - North,Nursing Homes,Regent House,1275.76, 11-Jun-2013
1431,Revenue,CCHD,Bed Purchasing - Elderly - South,Nursing Homes,Regent House,2605.96, 11-Jun-2013
1432,Revenue,CCHD,Bed Purchasing - Under 65s PWLD - South,Residential Homes,Ridgeway House,3450.56, 11-Jun-2013
1433,Revenue,CCHD,Bed Purchasing - Under 65s PWLD - South,Residential Homes,Riverside House,3557.92, 11-Jun-2013
1434,Revenue,CCHD,Bed purchasing - Elderly PWLD - South,Residential Homes,Rockleaze,1408.56, 11-Jun-2013
1435,Revenue,CCHD,Bed Purchasing - LD S28A- Over 65- South,Residential Homes,Rockleaze,2054.24, 11-Jun-2013
1436,Revenue,CCHD,Bed purchasing - Elderly PWLD - South,Residential Homes,Rockleaze,2382.32, 11-Jun-2013
1437,Revenue,CCHD,Bed purchasing - Elderly PWLD - South,Residential Homes,Rockleaze,1408.56, 11-Jun-2013
1438,Revenue,CCHD,Tenancy Start Up Scheme,Other Supplies & Services,Individual,1200, 11-Jun-2013
1439,Revenue,CCHD,Bed Purchasing - Under 65s PWLD - South,Residential Homes,Rosewood Lodge & Brook House,4502.6, 11-Jun-2013
1440,Revenue,CCHD,Bed Purchasing - Elderly MH - South,Residential Homes,Ross Healthcare,1287.52, 11-Jun-2013
1441,Revenue,CCHD,Bed Purchasing - Elderly - North,Nursing Homes,Saffron Gardens,953.32, 11-Jun-2013
1442,Revenue,CCHD,South Glos Users in South Glos Homes,Nursing Homes,Saffron Gardens,815.58, 11-Jun-2013
1443,Revenue,CCHD,Bed Purchasing - Elderly - South,Nursing Homes,Saffron Gardens,551.65, 11-Jun-2013
1444,Revenue,CCHD,Bed Purchasing - Southmead Hospital,Residential Homes,Saffron Gardens,1257.07, 11-Jun-2013
1445,Revenue,CCHD,Bed Purchasing - Southmead Hospital,Nursing Homes,Saffron Gardens,2528.33, 11-Jun-2013
1446,Revenue,CCHD,Bed Purchasing - Southmead Hospital,Nursing Homes,Saffron Gardens,1444.76, 11-Jun-2013
1447,Revenue,CCHD,South Glos Users in South Glos Homes,Nursing Homes,Saffron Gardens,878.32, 11-Jun-2013
1448,Revenue,CCHD,Bed Purchasing - Elderly MH - South,Nursing Homes,Saffron Gardens,2044.68, 11-Jun-2013
1449,Revenue,CCHD,Bed Purchasing - Elderly - North,Nursing Homes,Saffron Gardens,857.04, 11-Jun-2013
1450,Revenue,CCHD,Bed Purchasing - Elderly - South,Nursing Homes,Saffron Gardens,1922.96, 11-Jun-2013
1451,Revenue,CCHD,Bed Purchasing - Elderly - South,Residential Homes,Saffron Gardens,1278.28, 11-Jun-2013
1452,Revenue,CCHD,Community Support - North,Preventative Assistance,Salisbury NHS Foundation Trust,2600, 28-Jun-2013
1453,Revenue,CCHD,Bed Purchasing - Under 65s PWLD - South,Residential Homes,Salters Hill Barn,2014.52, 11-Jun-2013
1454,Revenue,CCHD,Bed Purchasing - Southmead Hospital,Residential Homes,Sanctuary Care Limited,1719.12, 11-Jun-2013
1455,Revenue,CCHD,Bed purchasing - Under 65s PWLD - North,Residential Homes,Scope   Accounts Dept,4956.52, 11-Jun-2013
1456,Revenue,CCHD,Bed Purchasing - Elderly - South,Residential Homes,Seaford Homes Ltd,1199.08, 11-Jun-2013
1457,Revenue,CCHD,Supported Living - North,Private & Voluntary Home Care,SeeAbility,6639.45, 28-Jun-2013
1458,Revenue,CCHD,Supported Living - North,Private & Voluntary Home Care,SeeAbility,1942.06, 28-Jun-2013
1459,Revenue,CCHD,Supported Living - North,Private & Voluntary Home Care,SeeAbility,1341.86, 28-Jun-2013
1460,Revenue,CCHD,Supported Living - North,Private & Voluntary Home Care,SeeAbility,7610.1, 28-Jun-2013
1461,Revenue,CCHD,Bed Purchasing - Southmead Hospital,Nursing Homes,Sefton Hall Res. & Nursing Home,1964, 11-Jun-2013
1462,Revenue,CCHD,Supported Living - South,Private & Voluntary Home Care,Selborne Care Ltd,1751.2, 18-Jun-2013
1463,Revenue,CCHD,Supported Living - South,Private & Voluntary Home Care,Selborne Care Ltd,2594.63, 18-Jun-2013
1464,Revenue,CCHD,Supported Living - South,Private & Voluntary Home Care,Selborne Care Ltd,1029.76, 18-Jun-2013
1465,Revenue,CCHD,Purchase of Non-Res Care - North,Private & Voluntary Day Care,Selborne Care Ltd,1429.84, 18-Jun-2013
1466,Revenue,CCHD,Supported Living - South,Private & Voluntary Home Care,Selborne Care Ltd,5128.68, 18-Jun-2013
1467,Revenue,CCHD,Purchase of Non-Res Care - North,Private & Voluntary Day Care,Selborne Care Ltd,675.78, 18-Jun-2013
1468,Revenue,CCHD,Supported Living - South,Private & Voluntary Home Care,Selborne Care Ltd,1155.5, 18-Jun-2013
1469,Revenue,CCHD,Purchase of Non-Res Care - North,Private & Voluntary Day Care,Selborne Care Ltd,846.16, 18-Jun-2013
1470,Revenue,CCHD,Supported Living - South,Private & Voluntary Home Care,Selborne Care Ltd,4621.4, 18-Jun-2013
1471,Revenue,CCHD,Purchase of Non-Res Care - North,Private & Voluntary Day Care,Selborne Care Ltd,786.36, 18-Jun-2013
1472,Revenue,CCHD,Supported Living - South,Private & Voluntary Home Care,Selborne Care Ltd,1917.48, 18-Jun-2013
1473,Revenue,CCHD,Purchase of Non-Res Care - North,Private & Voluntary Day Care,Selborne Care Ltd,584.48, 18-Jun-2013
1474,Revenue,CCHD,Supported Living (S28a) South,Private & Voluntary Home Care,Selborne Care Ltd,3326.68, 18-Jun-2013
1475,Revenue,CCHD,Bed purchasing - Elderly PWLD - South,Nursing Homes,Shaw Healthcare Limited,8060.64, 11-Jun-2013
1476,Revenue,CCHD,Bed Purchasing - Southmead Hospital,Nursing Homes,Shaw Healthcare Ltd,1478, 11-Jun-2013
1477,Revenue,CCHD,Bed Purchasing - Elderly - South,Nursing Homes,Shaw Healthcare Ltd,1603.76, 11-Jun-2013
1478,Revenue,CCHD,Bed Purchasing - Elderly S117- North,Nursing Homes,Shaw Healthcare Ltd,1962.68, 11-Jun-2013
1479,Revenue,CCHD,Bed purchasing - Elderly S117 - South,Nursing Homes,Shaw Healthcare Ltd,1992.16, 11-Jun-2013
1480,Revenue,CCHD,Bed purchasing - Elderly MH - North,Nursing Homes,Shaw Healthcare Ltd,1226.88, 11-Jun-2013
1481,Revenue,CCHD,Bed purchasing - S28A Under 65 - South,Residential Homes,Shaw Healthcare Ltd,10507.8, 11-Jun-2013
1482,Revenue,CCHD,Bed purchasing - S28A Under 65 - South,Residential Homes,Shaw Healthcare Ltd,10505.36, 11-Jun-2013
1483,Revenue,CCHD,Bed purchasing - S28A Under 65 - South,Residential Homes,Shaw Healthcare Ltd,10337, 11-Jun-2013
1484,Revenue,CCHD,S117 Placements PCT,Residential Homes,Shaw Healthcare Ltd,15508.24, 11-Jun-2013
1485,Revenue,CCHD,Bed Purchasing - Under 65s PWLD - South,Nursing Homes,Shaw Healthcare Ltd,9754.04, 11-Jun-2013
1486,Revenue,CCHD,Bed Purchasing - Under 65s PWLD - South,Residential Homes,Shaw Healthcare Ltd,9760.6, 11-Jun-2013
1487,Revenue,CCHD,Bed purchasing - Elderly PWLD - South,Residential Homes,Shaw Healthcare Ltd,3907.68, 11-Jun-2013
1488,Revenue,CCHD,Bed purchasing - S28A Under 65 - South,Residential Homes,Shaw Healthcare Ltd,10393.88, 11-Jun-2013
1489,Revenue,CCHD,Bed purchasing - S28A Under 65 - South,Residential Homes,Shaw Healthcare Ltd,12056.36, 11-Jun-2013
1490,Revenue,CCHD,Bed Purchasing - S28A - Over 65- North,Residential Homes,Shaw Healthcare Ltd,4238.92, 11-Jun-2013
1491,Revenue,CCHD,Bed Purchasing - S28A - Over 65- North,Residential Homes,Shaw Healthcare Ltd,4246.2, 11-Jun-2013
1492,Revenue,CCHD,Bed Purchasing - LD S28A- Over 65- South,Residential Homes,Shaw Healthcare Ltd,4763.2, 11-Jun-2013
1493,Revenue,CCHD,Bed Purchasing - Under 65s PWLD - South,Nursing Homes,Shaw Healthcare Ltd,10091.08, 11-Jun-2013
1494,Revenue,CCHD,Bed Purchasing - LD S28A- Over 65- South,Residential Homes,Shaw Healthcare Ltd,4321.32, 11-Jun-2013
1495,Revenue,CCHD,Bed purchasing -S28A  Under 65 - North,Residential Homes,Shaw Healthcare Ltd,9174, 11-Jun-2013
1496,Revenue,CCHD,Bed Purchasing - S28A - Over 65- North,Residential Homes,Shaw Healthcare Ltd,8580.2, 11-Jun-2013
1497,Revenue,CCHD,Bed Purchasing - Southmead Hospital,Residential Homes,Shaw Healthcare Ltd,929.13, 11-Jun-2013
1498,Revenue,CCHD,Bed Purchasing - Elderly - North,Residential Homes,Shaw Healthcare Ltd,1262, 11-Jun-2013
1499,Revenue,CCHD,Bed Purchasing - Frenchay Hospital,Residential Homes,Shaw Healthcare Ltd,1119.32, 11-Jun-2013
1500,Revenue,CCHD,Supported Living - South,Private & Voluntary Home Care,Silva Care Limited,4415.44, 05-Jun-2013
1501,Revenue,CCHD,Day Care - North,Private & Voluntary Day Care,Silva Care Limited,1023.33, 24-Jun-2013
1502,Revenue,CCHD,Supported Living - South,Private & Voluntary Home Care,Silva Care Limited,4415.44, 28-Jun-2013
1503,Revenue,CCHD,TSG Practice Placements,Training Expenses,Sir Bernard Lovell School,1260, 21-Jun-2013
1504,Revenue,CCHD,Alexandra Way,Refuse Collection Charges,SITA UK LTD,711.52, 20-Jun-2013
1505,Revenue,CCHD,Bed purchasing - Under 65s PWLD - North,Residential Homes,Small House Homes Limited,17754.92, 11-Jun-2013
1506,Revenue,CCHD,Purchase of Non-Res Care - South,Private & Voluntary Day Care,Smile Independent Living Support Limited,761.71, 14-Jun-2013
1507,Revenue,CCHD,Purchase of Non-Res Care - North,Private & Voluntary Day Care,Smile Independent Living Support Limited,832.23, 14-Jun-2013
1508,Revenue,CCHD,Purchase of Non-Res Care - North,Private & Voluntary Day Care,Smile Independent Living Support Limited,1421.2, 14-Jun-2013
1509,Revenue,CCHD,Purchase of Non-Res Care - North,Private & Voluntary Day Care,Smile Independent Living Support Limited,916.31, 17-Jun-2013
1510,Revenue,CCHD,Purchase of Non-Res Care - North,Private & Voluntary Day Care,Smile Independent Living Support Limited,1325.93, 14-Jun-2013
1511,Revenue,CCHD,Purchase of Non-Res Care - North,Private & Voluntary Day Care,Smile Independent Living Support Limited,1378.53, 14-Jun-2013
1512,Revenue,CCHD,Purchase of Non-Res Care - North,Private & Voluntary Day Care,Smile Independent Living Support Limited,653.02, 14-Jun-2013
1513,Revenue,CCHD,Supported Living - North,Private & Voluntary Home Care,Smile Independent Living Support Limited,3261.51, 14-Jun-2013
1514,Revenue,CCHD,Supported Living - North,Private & Voluntary Home Care,Smile Independent Living Support Limited,3362.26, 14-Jun-2013
1515,Revenue,CCHD,Supported Living - North,Private & Voluntary Home Care,Smile Independent Living Support Limited,2687.17, 14-Jun-2013
1516,Revenue,CCHD,Training - Adult Services,Training Expenses,South Gloucestershire & Stroud College,995, 28-Jun-2013
1517,Revenue,CCHD,Minor Adaptations Service,Premises Maintenance by Contractor,Southern Electric Contracting Limited,73.62, 24-Jun-2013
1518,Revenue,CCHD,Minor Adaptations Service,Premises Maintenance by Contractor,Southern Electric Contracting Limited,279.06, 24-Jun-2013
1519,Revenue,CCHD,Bed Purchasing - Under 65s PWLD - South,Residential Homes,St Brigas,2055.56, 11-Jun-2013
1520,Revenue,CCHD,Bed Purchasing - Under 65s PWLD - South,Residential Homes,St Brigas,2972.08, 11-Jun-2013
1521,Revenue,CCHD,Bed Purchasing - Under 65s PWLD - South,Residential Homes,St Brigas,2003.32, 11-Jun-2013
1522,Revenue,CCHD,Bed Purchasing - Frenchay Hospital,Nursing Homes,St George Nursing Home,1302, 11-Jun-2013
1523,Revenue,CCHD,Bed Purchasing - Southmead Hospital,Nursing Homes,St George Nursing Home,674.68, 11-Jun-2013
1524,Revenue,CCHD,Bed Purchasing - Elderly - South,Nursing Homes,St George Nursing Home,1302, 11-Jun-2013
1525,Revenue,CCHD,Bed Purchasing - Southmead Hospital,Nursing Homes,St George Nursing Home,1314, 11-Jun-2013
1526,Revenue,CCHD,Bed Purchasing - Frenchay Hospital,Nursing Homes,St George Nursing Home,1302, 11-Jun-2013
1527,Revenue,CCHD,Bed Purchasing - Frenchay Hospital,Nursing Homes,St George Nursing Home,1065.36, 11-Jun-2013
1528,Revenue,CCHD,Bed Purchasing - Frenchay Hospital,Nursing Homes,St George Nursing Home,662.16, 11-Jun-2013
1529,Revenue,CCHD,Bed Purchasing - Elderly - North,Nursing Homes,St Monicas Trust,2790.36, 11-Jun-2013
1530,Revenue,CCHD,Bed Purchasing - Elderly - South,Nursing Homes,St Monicas Trust,503.31, 11-Jun-2013
1531,Revenue,CCHD,Bed Purchasing - Elderly - South,Nursing Homes,St Roses School,3982.76, 07-Jun-2013
1532,Revenue,CCHD,Bed purchasing - Under 65s PWLD - North,Residential Homes,St Roses School,570, 11-Jun-2013
1533,Revenue,CCHD,Bed Purchasing - Under 65s PWLD - South,Residential Homes,Stepping Stones Re-Sett. Unit,7484.8, 11-Jun-2013
1534,Revenue,CCHD,Community Care Contact Centre,Software Purchase,Stone Computers Ltd,49, 13-Jun-2013
1535,Revenue,CCHD,Housing Needs,Office Supplies & Equipment,Stone Computers Ltd,504, 13-Jun-2013
1536,Revenue,CCHD,Community Care Contact Centre,Computer Equipment - Purchase,Stone Computers Ltd,85, 19-Jun-2013
1537,Revenue,CCHD,Section 117 Placements MH Younger,Private & Voluntary Day Care,Supported Independence Ltd,2058.08, 11-Jun-2013
1538,Revenue,CCHD,Younger MH non-res purchasing,Private & Voluntary Day Care,Supported Independence Ltd,2551.66, 11-Jun-2013
1539,Revenue,CCHD,Supported Living - North,Private & Voluntary Home Care,Supported Independence Ltd,640.64, 18-Jun-2013
1540,Revenue,CCHD,Supported Living - South,Private & Voluntary Home Care,Supported Independence Ltd,1601.6, 21-Jun-2013
1541,Revenue,CCHD,Section 117 Placements MH Younger,Private & Voluntary Day Care,Supported Independence Ltd,2019.56, 21-Jun-2013
1542,Revenue,CCHD,Section 117 Placements MH Younger,Private & Voluntary Day Care,Supported Independence Ltd,2415.72, 18-Jun-2013
1543,Revenue,CCHD,Section 117 Placements MH Younger,Private & Voluntary Day Care,Supported Independence Ltd,3563.48, 21-Jun-2013
1544,Revenue,CCHD,Younger MH non-res purchasing,Private & Voluntary Day Care,Supported Independence Ltd,583.24, 18-Jun-2013
1545,Revenue,CCHD,Younger MH non-res purchasing,Private & Voluntary Day Care,Supported Independence Ltd,1121.12, 18-Jun-2013
1546,Revenue,CCHD,Supported Living - South,Private & Voluntary Home Care,Supported Independence Ltd,749.88, 18-Jun-2013
1547,Revenue,CCHD,Section 117 Placements MH Younger,Private & Voluntary Day Care,Supported Independence Ltd,583.24, 21-Jun-2013
1548,Revenue,CCHD,Section 117 Placements MH Younger,Private & Voluntary Day Care,Supported Independence Ltd,1331.7, 18-Jun-2013
1549,Revenue,CCHD,Younger MH non-res purchasing,Private & Voluntary Day Care,Supported Independence Ltd,552, 21-Jun-2013
1550,Revenue,CCHD,Section 117 Placements MH Younger,Private & Voluntary Day Care,Supported Independence Ltd,521.1, 21-Jun-2013
1551,Revenue,CCHD,Day Care - North,Private & Voluntary Day Care,Supported Independence Ltd,506.75, 24-Jun-2013
1552,Revenue,CCHD,Younger MH non-res purchasing,Private & Voluntary Day Care,Supported Independence Ltd,1121.12, 21-Jun-2013
1553,Revenue,CCHD,Younger MH non-res purchasing,Private & Voluntary Day Care,Supported Independence Ltd,666.56, 21-Jun-2013
1554,Revenue,CCHD,Supported Living - South,Private & Voluntary Home Care,Supported Independent Living Schemes,642.96, 28-Jun-2013
1555,Revenue,CCHD,Supported Living - South,Private & Voluntary Home Care,Supporting Options,744.95, 26-Jun-2013
1556,Revenue,CCHD,Day Care - South,Private & Voluntary Day Care,Survive,835.6, 28-Jun-2013
1557,Revenue,CCHD,Bed Purchasing - Under 65s PWLD - South,Residential Homes,The Ann Coleman Centre,5731.41, 11-Jun-2013
1558,Revenue,CCHD,Bed Purchasing - Elderly - North,Residential Homes,The Beeches,714.29, 11-Jun-2013
1559,Revenue,CCHD,Bed Purchasing - Frenchay Hospital,Residential Homes,The Beeches,1149.8, 11-Jun-2013
1560,Revenue,CCHD,Bed Purchasing - Elderly - South,Residential Homes,The Beeches,1000, 11-Jun-2013
1561,Revenue,CCHD,Bed Purchasing - Southmead Hospital,Residential Homes,The Beeches,1246, 11-Jun-2013
1562,Revenue,CCHD,Purchase of Non-Res Care - South,Private & Voluntary Day Care,The Brandon Trust,755.44, 18-Jun-2013
1563,Revenue,CCHD,Day Care - North,Private & Voluntary Day Care,The Brandon Trust,756.24, 27-Jun-2013
1564,Revenue,CCHD,Purchase of Non-Res Care - South,Private & Voluntary Day Care,The Brandon Trust,509.76, 18-Jun-2013
1565,Revenue,CCHD,Purchase of Non-Res Care - South,Private & Voluntary Day Care,The Brandon Trust,701.37, 17-Jun-2013
1566,Revenue,CCHD,Purchase of Non-Res Care - South,Private & Voluntary Day Care,The Brandon Trust,509.76, 18-Jun-2013
1567,Revenue,CCHD,Purchase of Non-Res Care - South,Private & Voluntary Day Care,The Brandon Trust,656, 18-Jun-2013
1568,Revenue,CCHD,Younger MH non-res purchasing,Private & Voluntary Day Care,The Brandon Trust,509.76, 18-Jun-2013
1569,Revenue,CCHD,Purchase of Non-Res Care - North,Private & Voluntary Day Care,The Brandon Trust,5585.44, 19-Jun-2013
1570,Revenue,CCHD,Purchase of Non-Res Care - South,Private & Voluntary Day Care,The Brandon Trust,509.76, 17-Jun-2013
1571,Revenue,CCHD,Purchase of Non-Res Care - North,Private & Voluntary Day Care,The Brandon Trust,892.98, 19-Jun-2013
1572,Revenue,CCHD,Purchase of Non-Res Care - North,Private & Voluntary Day Care,The Brandon Trust,587.72, 18-Jun-2013
1573,Revenue,CCHD,Younger MH non-res purchasing,Private & Voluntary Day Care,The Brandon Trust,1274.4, 18-Jun-2013
1574,Revenue,CCHD,Purchase of Non-Res Care - South,Private & Voluntary Day Care,The Brandon Trust,509.76, 18-Jun-2013
1575,Revenue,CCHD,Purchase of Non-Res Care - South,Private & Voluntary Day Care,The Brandon Trust,3358.4, 17-Jun-2013
1576,Revenue,CCHD,Purchase of Non-Res Care - South,Private & Voluntary Day Care,The Brandon Trust,956.26, 17-Jun-2013
1577,Revenue,CCHD,Purchase of Non-Res Care - North,Private & Voluntary Day Care,The Brandon Trust,1081.36, 18-Jun-2013
1578,Revenue,CCHD,Purchase of Non-Res Care - North,Private & Voluntary Day Care,The Brandon Trust,509.76, 18-Jun-2013
1579,Revenue,CCHD,Purchase of Non-Res Care - North,Private & Voluntary Day Care,The Brandon Trust,1175.44, 19-Jun-2013
1580,Revenue,CCHD,Purchase of Non-Res Care - South,Private & Voluntary Day Care,The Brandon Trust,956.25, 17-Jun-2013
1581,Revenue,CCHD,Purchase of Non-Res Care - North,Private & Voluntary Day Care,The Brandon Trust,956.25, 24-Jun-2013
1582,Revenue,CCHD,Purchase of Non-Res Care - South,Private & Voluntary Day Care,The Brandon Trust,1019.52, 18-Jun-2013
1583,Revenue,CCHD,Supported Living - South,Private & Voluntary Home Care,The Brandon Trust,764.64, 18-Jun-2013
1584,Revenue,CCHD,Day Care - South,Private & Voluntary Day Care,The Brandon Trust,637.21, 18-Jun-2013
1585,Revenue,CCHD,Purchase of Non-Res Care - South,Private & Voluntary Day Care,The Brandon Trust,764.64, 17-Jun-2013
1586,Revenue,CCHD,Purchase of Non-Res Care - South,Private & Voluntary Day Care,The Brandon Trust,5585.44, 18-Jun-2013
1587,Revenue,CCHD,Supported Living - South,Private & Voluntary Home Care,The Brandon Trust,713.76, 18-Jun-2013
1588,Revenue,CCHD,Day Care - South,Private & Voluntary Day Care,The Brandon Trust,509.76, 20-Jun-2013
1589,Revenue,CCHD,Purchase of Non-Res Care - South,Private & Voluntary Day Care,The Brandon Trust,3579.72, 18-Jun-2013
1590,Revenue,CCHD,Purchase of Non-Res Care - South,Private & Voluntary Day Care,The Brandon Trust,1615.26, 17-Jun-2013
1591,Revenue,CCHD,Purchase of Non-Res Care - South,Private & Voluntary Day Care,The Brandon Trust,956.25, 18-Jun-2013
1592,Revenue,CCHD,Day Care - South,Private & Voluntary Day Care,The Brandon Trust,509.76, 20-Jun-2013
1593,Revenue,CCHD,Supported Living - North,Private & Voluntary Home Care,The Brandon Trust,9394.55, 18-Jun-2013
1594,Revenue,CCHD,Purchase of Non-Res Care - South,Private & Voluntary Day Care,The Camphill Village Trust,918.65, 07-Jun-2013
1595,Revenue,CCHD,Purchase of Non-Res Care - South,Private & Voluntary Day Care,The Camphill Village Trust,1469.84, 21-Jun-2013
1596,Revenue,CCHD,MH Purchasing - Younger,Residential Homes,The Cidermill,1414, 11-Jun-2013
1597,Revenue,CCHD,Bed purchasing - Elderly MH - North,Residential Homes,The Cidermill,1414, 11-Jun-2013
1598,Revenue,CCHD,Bed purchasing - Elderly MH - North,Residential Homes,The Cidermill,991.36, 11-Jun-2013
1599,Revenue,CCHD,Bed purchasing - Elderly MH - North,Nursing Homes,The Cidermill,1208.28, 11-Jun-2013
1600,Revenue,CCHD,Bed Purchasing - Southmead Hospital,Residential Homes,The Cidermill,932.24, 11-Jun-2013
1601,Revenue,CCHD,Learning Difficulties Development Fund,Other Supplies & Services,The Conservation Volunteers,7040, 10-Jun-2013
1602,Revenue,CCHD,SLA Grants - Support Serv,Grants to Voluntary Bodies,The Conservation Volunteers,4975, 10-Jun-2013
1603,Revenue,CCHD,Alexandra Way,Furniture & Fittings Loose,The Consortium,1641.4, 21-Jun-2013
1604,Revenue,CCHD,Bed Purchasing - Southmead Hospital,Residential Homes,The Gables Residential Home,1366.68, 11-Jun-2013
1605,Revenue,CCHD,Bed purchasing - Elderly S117 - South,Residential Homes,The Gables Residential Home,2214.12, 11-Jun-2013
1606,Revenue,CCHD,Bed Purchasing - Elderly - South,Residential Homes,The Gables Residential Home,1380.72, 11-Jun-2013
1607,Revenue,CCHD,Bed Purchasing - Elderly - South,Residential Homes,The Garden House,523.01, 11-Jun-2013
1608,Revenue,CCHD,Bed Purchasing - Southmead Hospital,Residential Homes,The Garden House,1623.36, 11-Jun-2013
1609,Revenue,CCHD,Bed Purchasing - Frenchay Hospital,Residential Homes,The Garden House,1229.72, 11-Jun-2013
1610,Revenue,CCHD,Bed purchasing - Elderly MH - North,Residential Homes,The Garden House,1120.84, 11-Jun-2013
1611,Revenue,CCHD,Bed Purchasing - Elderly - South,Residential Homes,The Garden House,1612.56, 11-Jun-2013
1612,Revenue,CCHD,Bed Purchasing - Elderly - North,Residential Homes,The Garden House,1151, 11-Jun-2013
1613,Revenue,CCHD,Bed Purchasing - Elderly - South,Residential Homes,The Garden House,1492.8, 11-Jun-2013
1614,Revenue,CCHD,Bed Purchasing - Elderly S117- North,Residential Homes,The Garden House,1900, 11-Jun-2013
1615,Revenue,CCHD,Bed Purchasing - Elderly - North,Residential Homes,The Garden House,2177.07, 11-Jun-2013
1616,Revenue,CCHD,Bed Purchasing - Elderly - North,Residential Homes,The Garden House,1244.04, 11-Jun-2013
1617,Revenue,CCHD,Bed Purchasing - Southmead Hospital,Residential Homes,The Garden House,1171.8, 11-Jun-2013
1618,Revenue,CCHD,Bed Purchasing - Frenchay Hospital,Residential Homes,The Garden House,1414, 11-Jun-2013
1619,Revenue,CCHD,Bed Purchasing - Elderly MH - South,Residential Homes,The Garden House,1213.16, 11-Jun-2013
1620,Revenue,CCHD,Bed Purchasing - Elderly - South,Residential Homes,The Garden House,1147.08, 11-Jun-2013
1621,Revenue,CCHD,Bed purchasing - Elderly MH - North,Residential Homes,The Garden House,1366.72, 11-Jun-2013
1622,Revenue,CCHD,Bed purchasing - Elderly MH - North,Residential Homes,The Grove,1801.33, 11-Jun-2013
1623,Revenue,CCHD,Bed Purchasing - Elderly - North,Residential Homes,The Grove,13824, 11-Jun-2013
1624,Revenue,CCHD,Bed Purchasing - Elderly - North,Residential Homes,The Grove,3244.5, 11-Jun-2013
1625,Revenue,CCHD,Bed Purchasing - Elderly - North,Residential Homes,The Grove,1414, 11-Jun-2013
1626,Revenue,CCHD,Bed purchasing - Elderly MH - North,Residential Homes,The Grove,573.4, 11-Jun-2013
1627,Revenue,CCHD,Bed Purchasing - Elderly S117- North,Residential Homes,The Grove,2094.2, 11-Jun-2013
1628,Revenue,CCHD,Bed purchasing - Elderly S117 - South,Residential Homes,The Grove,2322.08, 11-Jun-2013
1629,Revenue,CCHD,Bed purchasing - Elderly MH - North,Residential Homes,The Grove,1619.32, 11-Jun-2013
1630,Revenue,CCHD,Bed Purchasing - Southmead Hospital,Residential Homes,The Grove,1977.44, 11-Jun-2013
1631,Revenue,CCHD,Bed Purchasing - Frenchay Hospital,Residential Homes,The Grove,1442, 11-Jun-2013
1632,Revenue,CCHD,Bed Purchasing - Elderly - North,Residential Homes,The Grove,3402.21, 11-Jun-2013
1633,Revenue,CCHD,Bed Purchasing - Southmead Hospital,Residential Homes,The Grove,501.84, 11-Jun-2013
1634,Revenue,CCHD,Bed purchasing - Elderly S117 - South,Residential Homes,The Grove,2322.08, 11-Jun-2013
1635,Revenue,CCHD,Bed purchasing - Elderly MH - North,Residential Homes,The Grove,1500.32, 11-Jun-2013
1636,Revenue,CCHD,Bed Purchasing - Southmead Hospital,Residential Homes,The Grove,1267.6, 11-Jun-2013
1637,Revenue,CCHD,Bed purchasing - Elderly MH - North,Residential Homes,The Grove,1491.76, 11-Jun-2013
1638,Revenue,CCHD,Bed Purchasing - Elderly - South,Nursing Homes,The Heathers,706.04, 11-Jun-2013
1639,Revenue,CCHD,Bed Purchasing - Frenchay Hospital,Nursing Homes,The Heathers,1310, 11-Jun-2013
1640,Revenue,CCHD,Bed Purchasing - Frenchay Hospital,Nursing Homes,The Heathers,1246.52, 11-Jun-2013
1641,Revenue,CCHD,Bed Purchasing - Frenchay Hospital,Nursing Homes,The Heathers,680.64, 11-Jun-2013
1642,Revenue,CCHD,Bed Purchasing - Southmead Hospital,Nursing Homes,The Heathers,1275.52, 11-Jun-2013
1643,Revenue,CCHD,Bed Purchasing - Frenchay Hospital,Nursing Homes,The Heathers,1189.28, 11-Jun-2013
1644,Revenue,CCHD,Bed Purchasing - Frenchay Hospital,Nursing Homes,The Heathers,1302, 11-Jun-2013
1645,Revenue,CCHD,Bed Purchasing - Elderly - North,Nursing Homes,The Heathers,1302.72, 11-Jun-2013
1646,Revenue,CCHD,Bed Purchasing - Elderly - North,Nursing Homes,The Heathers,1061.56, 11-Jun-2013
1647,Revenue,CCHD,South Glos Users in South Glos Homes,Nursing Homes,The Heathers,745.37, 11-Jun-2013
1648,Revenue,CCHD,Bed Purchasing - Frenchay Hospital,Nursing Homes,The Heathers,985.2, 11-Jun-2013
1649,Revenue,CCHD,Bed Purchasing - Frenchay Hospital,Nursing Homes,The Heathers,1235.4, 11-Jun-2013
1650,Revenue,CCHD,Bed Purchasing - Frenchay Hospital,Nursing Homes,The Heathers,1219.92, 11-Jun-2013
1651,Revenue,CCHD,Bed Purchasing - Southmead Hospital,Nursing Homes,The Heathers,726.16, 11-Jun-2013
1652,Revenue,CCHD,Bed Purchasing - Southmead Hospital,Nursing Homes,The Heathers,1156.48, 11-Jun-2013
1653,Revenue,CCHD,Bed Purchasing - Frenchay Hospital,Nursing Homes,The Heathers,1266.36, 11-Jun-2013
1654,Revenue,CCHD,Bed purchasing - Elderly MH - North,Residential Homes,The Hollies,1289.76, 11-Jun-2013
1655,Revenue,CCHD,Bed Purchasing - Elderly - North,Nursing Homes,The Hollies Nursing Home,1776.6, 11-Jun-2013
1656,Revenue,CCHD,Tenancy Start Up Scheme,Other Supplies & Services,The Letting Shop,1525, 13-Jun-2013
1657,Revenue,CCHD,Bed Purchasing - Under 65s PWLD - South,Residential Homes,The Manor House,3033.48, 11-Jun-2013
1658,Revenue,CCHD,Bed Purchasing - Under 65s PWLD - South,Residential Homes,The Manor House,1982.44, 11-Jun-2013
1659,Revenue,CCHD,Bed Purchasing - Under 65s PWLD - South,Residential Homes,The Manor House,991.23, 11-Jun-2013
1660,Revenue,CCHD,Bed purchasing - Under 65s PWLD - North,Residential Homes,The Manor House,1626, 11-Jun-2013
1661,Revenue,CCHD,Bed Purchasing - Under 65s PWLD - South,Residential Homes,The Manor House,4894.16, 11-Jun-2013
1662,Revenue,CCHD,Bed Purchasing - Under 65s PWLD - South,Residential Homes,The Manor House,3476.08, 11-Jun-2013
1663,Revenue,CCHD,Bed Purchasing - Under 65s PWLD - South,Residential Homes,The Manor House,2674.68, 11-Jun-2013
1664,Revenue,CCHD,Bed purchasing - Under 65s PWLD - North,Residential Homes,The Manor House,2772.68, 11-Jun-2013
1665,Revenue,CCHD,Bed Purchasing - Under 65s PWLD - South,Residential Homes,The Manor House,3249.2, 11-Jun-2013
1666,Revenue,CCHD,Bed purchasing - Under 65s PWLD - North,Residential Homes,The Manor House,2816.2, 11-Jun-2013
1667,Revenue,CCHD,Bed Purchasing - Under 65s PWLD - South,Residential Homes,The Manor House,2674.68, 11-Jun-2013
1668,Revenue,CCHD,Bed Purchasing - Under 65s PWLD - South,Residential Homes,The Manor House,3323.4, 11-Jun-2013
1669,Revenue,CCHD,Bed Purchasing - Under 65s PWLD - South,Residential Homes,The Manor House,5993.68, 11-Jun-2013
1670,Revenue,CCHD,Bed purchasing - S28A Under 65 - South,Residential Homes,The Manor House,4836.72, 11-Jun-2013
1671,Revenue,CCHD,Bed Purchasing - Under 65s PWLD - South,Residential Homes,The Manor House,4749.22, 11-Jun-2013
1672,Revenue,CCHD,Bed Purchasing - Under 65s PWLD - South,Residential Homes,The Manor House,2616.92, 11-Jun-2013
1673,Revenue,CCHD,Bed purchasing - Elderly PWLD - South,Residential Homes,The Manor House,5921.72, 11-Jun-2013
1674,Revenue,CCHD,Bed purchasing - Elderly PWLD - South,Residential Homes,The Manor House,3383.84, 11-Jun-2013
1675,Revenue,CCHD,Bed Purchasing - Under 65s PWLD - South,Residential Homes,The Manor House,2973.6, 11-Jun-2013
1676,Revenue,CCHD,Bed Purchasing - Under 65s PWLD - South,Residential Homes,The Manor House,6439.23, 11-Jun-2013
1677,Revenue,CCHD,Bed Purchasing - Under 65s PWLD - South,Residential Homes,The Manor House,3885.87, 11-Jun-2013
1678,Revenue,CCHD,Bed Purchasing - Under 65s PWLD - South,Residential Homes,The Manor House,919.89, 11-Jun-2013
1679,Revenue,CCHD,Bed Purchasing - Under 65s PWLD - South,Residential Homes,The Manor House,4914.44, 11-Jun-2013
1680,Revenue,CCHD,Bed Purchasing - Under 65s PWLD - South,Residential Homes,The Manor House,3218.4, 11-Jun-2013
1681,Revenue,CCHD,Bed Purchasing - Under 65s PWLD - South,Residential Homes,The Manor House,2892.68, 11-Jun-2013
1682,Revenue,CCHD,Bed Purchasing - Under 65s PWLD - South,Residential Homes,The Manor House,4424.76, 11-Jun-2013
1683,Revenue,CCHD,Bed purchasing - Under 65s PWLD - North,Residential Homes,The Manor House,4139.16, 11-Jun-2013
1684,Revenue,CCHD,Bed Purchasing - Under 65s PWLD - South,Residential Homes,The Manor House,7532.49, 11-Jun-2013
1685,Revenue,CCHD,Bed Purchasing - Under 65s PWLD - South,Residential Homes,The Manor House,4304.28, 11-Jun-2013
1686,Revenue,CCHD,Bed Purchasing - Under 65s PWLD - South,Residential Homes,The Manor House,3226.76, 11-Jun-2013
1687,Revenue,CCHD,Bed Purchasing - Under 65s PWLD - South,Residential Homes,The Manor House,530.35, 11-Jun-2013
1688,Revenue,CCHD,Bed Purchasing - Under 65s PWLD - South,Residential Homes,The Manor House,1856.26, 11-Jun-2013
1689,Revenue,CCHD,Bed purchasing - Elderly PWLD - South,Residential Homes,The Manor House,2677.84, 11-Jun-2013
1690,Revenue,CCHD,Bed Purchasing - Under 65s PWLD - South,Residential Homes,The Manor House,588.8, 11-Jun-2013
1691,Revenue,CCHD,Bed Purchasing - Under 65s PWLD - South,Residential Homes,The Manor House,3211.32, 11-Jun-2013
1692,Revenue,CCHD,Bed Purchasing - Under 65s PWLD - South,Residential Homes,The Manor House,681.05, 11-Jun-2013
1693,Revenue,CCHD,Bed Purchasing - Under 65s PWLD - South,Residential Homes,The Manor House,527.45, 11-Jun-2013
1694,Revenue,CCHD,Bed Purchasing - Under 65s PWLD - South,Residential Homes,The Manor House,527.44, 11-Jun-2013
1695,Revenue,CCHD,Bed Purchasing - Under 65s PWLD - South,Residential Homes,The Manor House,5865.56, 11-Jun-2013
1696,Revenue,CCHD,Bed Purchasing - Under 65s PWLD - South,Residential Homes,The Manor House,4216.12, 11-Jun-2013
1697,Revenue,CCHD,Bed Purchasing - Southmead Hospital,Residential Homes,The Old Vicarage Residential Home,1126.47, 11-Jun-2013
1698,Revenue,CCHD,Bed purchasing - Under 65s PWLD - North,Residential Homes,The Thomas Moore Project,1932.28, 11-Jun-2013
1699,Revenue,CCHD,Bed Purchasing - Elderly MH - South,Residential Homes,The Worthies,1417.56, 11-Jun-2013
1700,Revenue,CCHD,Bed Purchasing - Elderly MH - South,Residential Homes,The Worthies,1333.2, 11-Jun-2013
1701,Revenue,CCHD,Bed Purchasing - Elderly - South,Nursing Homes,Thornhill House,1960.2, 11-Jun-2013
1702,Revenue,CCHD,Bed purchasing - Under 65s PWLD - North,Residential Homes,Three Roses Home,1889.12, 11-Jun-2013
1703,Revenue,CCHD,Learning Difficulties PSL,Rent,Individual,650, 21-Jun-2013
1704,Revenue,CCHD,Learning Difficulties PSL,Rent,Individual,750, 21-Jun-2013
1705,Revenue,CCHD,Learning Difficulties PSL,Rent,Individual,488, 21-Jun-2013
1706,Revenue,CCHD,Bed Purchasing - Under 65s PWLD - South,Residential Homes,Tomlen,6546.16, 11-Jun-2013
1707,Revenue,CCHD,Bed and Breakfast,Bed & Breakfast,Top Drawer Properties Limited,430, 04-Jun-2013
1708,Revenue,CCHD,Bed and Breakfast,Bed & Breakfast,Top Drawer Properties Limited,630, 04-Jun-2013
1709,Revenue,CCHD,Bed and Breakfast,Bed & Breakfast,Top Drawer Properties Limited,470, 04-Jun-2013
1710,Revenue,CCHD,Bed purchasing - Phys Dis - North,Residential Homes,Tracs Care,6274.76, 11-Jun-2013
1711,Revenue,CCHD,Bed purchasing - Phys Dis - North,Residential Homes,Tracs Care,4573.96, 11-Jun-2013
1712,Revenue,CCHD,Bed Purchasing - Under 65s PWLD - South,Residential Homes,Tracs Group Ltd,6572.36, 11-Jun-2013
1713,Revenue,CCHD,Bed Purchasing - Frenchay Hospital,Residential Homes,Tracs Group Ltd,5412.2, 11-Jun-2013
1714,Revenue,CCHD,Telecare,Other Supplies & Services,Tunstall Healthcare (UK) Limited,10759.07, 07-Jun-2013
1715,Revenue,CCHD,Minor Adaptations Service,Daily Living Equipment,TVM Cheltenham Limited,748.25, 10-Jun-2013
1716,Revenue,CCHD,Minor Adaptations Service,Daily Living Equipment,TVM Cheltenham Limited,748.25, 07-Jun-2013
1717,Revenue,CCHD,Minor Adaptations Service,Daily Living Equipment,TVM Cheltenham Limited,935.38, 07-Jun-2013
1718,Revenue,CCHD,Minor Adaptations Service,Daily Living Equipment,TVM Cheltenham Limited,453.26, 07-Jun-2013
1719,Revenue,CCHD,Minor Adaptations Service,Daily Living Equipment,TVM Cheltenham Limited,859.05, 07-Jun-2013
1720,Revenue,CCHD,Minor Adaptations Service,Premises Maintenance by Contractor,TVM Cheltenham Limited,891.9, 28-Jun-2013
1721,Revenue,CCHD,Minor Adaptations Service,Premises Maintenance by Contractor,TVM Cheltenham Limited,502.16, 28-Jun-2013
1722,Revenue,CCHD,Bed purchasing - Under 65s PWLD - North,Residential Homes,Ty Hafod Tudor,3875.4, 11-Jun-2013
1723,Revenue,CCHD,Bed purchasing - S28A Under 65 - South,Residential Homes,United Response,348067.26, 18-Jun-2013
1724,Revenue,CCHD,Supported Living (S28a) North,Private & Voluntary Home Care,United Response,15394.91, 12-Jun-2013
1725,Revenue,CCHD,Bed purchasing - S28A Under 65 - South,Residential Homes,United Response,6613, 28-Jun-2013
1726,Revenue,CCHD,Bed purchasing - S28A Under 65 - South,Residential Homes,United Response,26705.92, 28-Jun-2013
1727,Revenue,CCHD,Bed purchasing - S28A Under 65 - South,Residential Homes,United Response,24798.35, 28-Jun-2013
1728,Revenue,CCHD,Supported Living - South,Private & Voluntary Home Care,United Response,2446.51, 28-Jun-2013
1729,Revenue,CCHD,Supported Living - South,Private & Voluntary Home Care,United Response,1808.29, 28-Jun-2013
1730,Revenue,CCHD,Bed Purchasing - Southmead Hospital,Residential Homes,Vaughan Lee House,1175.68, 11-Jun-2013
1731,Revenue,CCHD,MH Purchasing - Younger,Residential Homes,Ventura Residential Care Home,1371.68, 11-Jun-2013
1732,Revenue,CCHD,Bed Purchasing - Under 65s PWLD - South,Residential Homes,Victoria Court,11303.8, 11-Jun-2013
1733,Revenue,CCHD,Bed purchasing - Elderly PWLD - North,Residential Homes,Victoria Court,8747.24, 11-Jun-2013
1734,Revenue,CCHD,Community Support - South,Telephones,Virgin Media Payments Ltd,480, 19-Jun-2013
1735,Revenue,CCHD,Information Systems - Software,Telephones,Virgin Media Payments Ltd,1476, 19-Jun-2013
1736,Revenue,CCHD,Bed Purchasing - Under 65s PWLD - South,Residential Homes,Visions,3548.48, 11-Jun-2013
1737,Revenue,CCHD,Bed Purchasing - Under 65s PWLD - South,Residential Homes,Voyage Ltd,2996.92, 11-Jun-2013
1738,Revenue,CCHD,Bed Purchasing - Under 65s PWLD - South,Residential Homes,Voyage Ltd,6953.64, 11-Jun-2013
1739,Revenue,CCHD,Bed purchasing - Under 65s PWLD - North,Residential Homes,Voyage Ltd,8253.44, 11-Jun-2013
1740,Revenue,CCHD,Bed purchasing - S28A Under 65 - South,Residential Homes,Voyage Ltd,5338.56, 11-Jun-2013
1741,Revenue,CCHD,Bed Purchasing - Under 65s PWLD - South,Residential Homes,Voyage Ltd,5598, 11-Jun-2013
1742,Revenue,CCHD,Bed Purchasing - Under 65s PWLD - South,Residential Homes,Voyage Ltd,5338.56, 11-Jun-2013
1743,Revenue,CCHD,Bed Purchasing - Under 65s PWLD - South,Residential Homes,Voyage Ltd,6232.48, 11-Jun-2013
1744,Revenue,CCHD,Bed Purchasing - Under 65s PWLD - South,Residential Homes,Voyage Ltd,6191.64, 11-Jun-2013
1745,Revenue,CCHD,Bed Purchasing - Under 65s PWLD - South,Residential Homes,Voyage Ltd,5725.04, 11-Jun-2013
1746,Revenue,CCHD,Bed Purchasing - Under 65s PWLD - South,Residential Homes,Voyage Ltd,5268.32, 11-Jun-2013
1747,Revenue,CCHD,MH Purchasing - Younger,Residential Homes,Voyage Ltd,7479.64, 11-Jun-2013
1748,Revenue,CCHD,Bed Purchasing - Frenchay Hospital,Residential Homes,Walton-On-Thames Charity,1239, 11-Jun-2013
1749,Revenue,CCHD,Bed Purchasing - Southmead Hospital,Residential Homes,Warley House,999.4, 11-Jun-2013
1750,Revenue,CCHD,Bed Purchasing - Frenchay Hospital,Residential Homes,Wayside Residential Care Home,1340.24, 11-Jun-2013
1751,Revenue,CCHD,Bed Purchasing - Southmead Hospital,Residential Homes,Wayside Residential Care Home,4676.04, 11-Jun-2013
1752,Revenue,CCHD,Bed Purchasing - Frenchay Hospital,Residential Homes,Wayside Residential Care Home,2051.52, 11-Jun-2013
1753,Revenue,CCHD,Bed Purchasing - Elderly - South,Nursing Homes,Wayside Residential Care Home,1304.48, 11-Jun-2013
1754,Revenue,CCHD,Bed purchasing - Elderly MH - North,Residential Homes,Wayside Residential Care Home,1171.92, 11-Jun-2013
1755,Revenue,CCHD,Bed Purchasing - Elderly - South,Residential Homes,Wayside Residential Care Home,1194.28, 11-Jun-2013
1756,Revenue,CCHD,Woodleaze,Gas,West Mercia Energy,1181.61, 05-Jun-2013
1757,Revenue,CCHD,Newton House,Gas,West Mercia Energy,2286.16, 05-Jun-2013
1758,Revenue,CCHD,Alexandra Way,Gas,West Mercia Energy,1389.33, 05-Jun-2013
1759,Revenue,CCHD,General EPH budgets,Other Supplies & Services,West Mercia Energy,711.69, 05-Jun-2013
1760,Revenue,CCHD,Bed Purchasing - Southmead Hospital,Nursing Homes,Westbury Nursing Home,1302, 11-Jun-2013
1761,Revenue,CCHD,Bed Purchasing - Elderly - North,Residential Homes,Westbury Nursing Home,2022.2, 11-Jun-2013
1762,Revenue,CCHD,Bed purchasing - Elderly MH - North,Residential Homes,Westbury Nursing Home,1762.24, 11-Jun-2013
1763,Revenue,CCHD,Bed Purchasing - Elderly - North,Residential Homes,Wickwar Nursing Home  Castle House,1183.92, 11-Jun-2013
1764,Revenue,CCHD,Bed Purchasing - Elderly - North,Nursing Homes,Wickwar Nursing Home  Castle House,1531.72, 11-Jun-2013
1765,Revenue,CCHD,Bed Purchasing - Frenchay Hospital,Nursing Homes,Wickwar Nursing Home  Castle House,953.72, 11-Jun-2013
1766,Revenue,CCHD,Bed Purchasing - Southmead Hospital,Nursing Homes,Wickwar Nursing Home  Castle House,1284.76, 11-Jun-2013
1767,Revenue,CCHD,Bed Purchasing - Frenchay Hospital,Nursing Homes,Wickwar Nursing Home  Castle House,1419.92, 11-Jun-2013
1768,Revenue,CCHD,Bed Purchasing - Elderly - North,Nursing Homes,Wickwar Nursing Home  Castle House,1700, 11-Jun-2013
1769,Revenue,CCHD,Bed Purchasing - Southmead Hospital,Nursing Homes,Wickwar Nursing Home  Castle House,1222.56, 11-Jun-2013
1770,Revenue,CCHD,Bed Purchasing - Elderly - North,Residential Homes,Wickwar Nursing Home  Castle House,1408.36, 11-Jun-2013
1771,Revenue,CCHD,Bed Purchasing - Southmead Hospital,Residential Homes,Wickwar Nursing Home  Castle House,1246, 11-Jun-2013
1772,Revenue,CCHD,Bed Purchasing - Elderly - North,Nursing Homes,Wickwar Nursing Home  Castle House,1627.56, 11-Jun-2013
1773,Revenue,CCHD,Bed Purchasing - Southmead Hospital,Nursing Homes,Wickwar Nursing Home  Castle House,1339.7, 11-Jun-2013
1774,Revenue,CCHD,Bed Purchasing - Southmead Hospital,Nursing Homes,Wickwar Nursing Home  Castle House,1172.24, 11-Jun-2013
1775,Revenue,CCHD,Bed Purchasing - Elderly - North,Residential Homes,Wickwar Nursing Home  Castle House,1626.72, 11-Jun-2013
1776,Revenue,CCHD,Bed Purchasing - Frenchay Hospital,Nursing Homes,Wickwar Nursing Home  Castle House,1004.08, 11-Jun-2013
1777,Revenue,CCHD,Bed Purchasing - Southmead Hospital,Nursing Homes,Wickwar Nursing Home  Castle House,1849.96, 11-Jun-2013
1778,Revenue,CCHD,Bed Purchasing - Southmead Hospital,Nursing Homes,Wickwar Nursing Home  Castle House,1057.12, 11-Jun-2013
1779,Revenue,CCHD,Bed Purchasing - Frenchay Hospital,Residential Homes,Wickwar Nursing Home  Castle House,1312, 11-Jun-2013
1780,Revenue,CCHD,Bed Purchasing - Southmead Hospital,Nursing Homes,Wickwar Nursing Home  Castle House,1302, 11-Jun-2013
1781,Revenue,CCHD,Bed Purchasing - Frenchay Hospital,Residential Homes,Willow Cottage,1195.55, 11-Jun-2013
1782,Revenue,CCHD,Bed Purchasing - Frenchay Hospital,Residential Homes,Willow Cottage,2140.36, 11-Jun-2013
1783,Revenue,CCHD,Bed Purchasing - Southmead Hospital,Residential Homes,Willow Cottage,1409.56, 11-Jun-2013
1784,Revenue,CCHD,Bed Purchasing - Frenchay Hospital,Residential Homes,Willow Cottage,1375.72, 11-Jun-2013
1785,Revenue,CCHD,South Glos Users in South Glos Homes,Nursing Homes,Willow Cottage,878.32, 11-Jun-2013
1786,Revenue,CCHD,Bed Purchasing - Elderly - North,Residential Homes,Willow Cottage,2366.8, 11-Jun-2013
1787,Revenue,CCHD,Bed Purchasing - Elderly - North,Residential Homes,Willow Cottage,1699.24, 11-Jun-2013
1788,Revenue,CCHD,Bed Purchasing - Frenchay Hospital,Nursing Homes,Willow Cottage,699.2, 11-Jun-2013
1789,Revenue,CCHD,Bed Purchasing - Elderly - North,Nursing Homes,Willow Cottage,1997.12, 11-Jun-2013
1790,Revenue,CCHD,South Glos Users in South Glos Homes,Nursing Homes,Willow Cottage,878.32, 11-Jun-2013
1791,Revenue,CCHD,Bed Purchasing - Southmead Hospital,Nursing Homes,Willow Cottage,2149.64, 11-Jun-2013
1792,Revenue,CCHD,Bed purchasing - Phys Dis - North,Nursing Homes,Willow Cottage,1683.6, 11-Jun-2013
1793,Revenue,CCHD,Bed Purchasing - Elderly - North,Nursing Homes,Willow Cottage,1286.36, 11-Jun-2013
1794,Revenue,CCHD,Bed Purchasing - Frenchay Hospital,Residential Homes,Willow Cottage,1049.56, 11-Jun-2013
1795,Revenue,CCHD,Bed Purchasing - Southmead Hospital,Nursing Homes,Willow Cottage,1221.36, 11-Jun-2013
1796,Revenue,CCHD,Bed Purchasing - Southmead Hospital,Nursing Homes,Willow Cottage,1305.96, 11-Jun-2013
1797,Revenue,CCHD,South Glos Users in South Glos Homes,Nursing Homes,Willow Cottage,878.32, 11-Jun-2013
1798,Revenue,CCHD,Supported Living - North,Private & Voluntary Home Care,Willowbank Care Limited,633, 06-Jun-2013
1799,Revenue,CCHD,Supported Living - North,Private & Voluntary Home Care,Willowbank Care Limited,633, 19-Jun-2013
1800,Revenue,CCHD,Supported Living - North,Private & Voluntary Home Care,Willowbank Care Limited,2518.94, 07-Jun-2013
1801,Revenue,CCHD,Supported Living - North,Private & Voluntary Home Care,Willowbank Care Limited,2518.94, 19-Jun-2013
1802,Revenue,CCHD,Supported Living - North,Private & Voluntary Home Care,Willowbank Care Limited,5504.32, 06-Jun-2013
1803,Revenue,CCHD,Supported Living - North,Private & Voluntary Home Care,Willowbank Care Limited,5504.32, 19-Jun-2013
1804,Revenue,CCHD,Supported Living - North,Private & Voluntary Home Care,Willowbank Care Limited,2017.44, 07-Jun-2013
1805,Revenue,CCHD,Supported Living - North,Private & Voluntary Home Care,Willowbank Care Limited,2017.44, 19-Jun-2013
1806,Revenue,CCHD,Supported Living - North,Private & Voluntary Home Care,Willowbank Care Limited,3938.44, 06-Jun-2013
1807,Revenue,CCHD,Supported Living - North,Private & Voluntary Home Care,Willowbank Care Limited,1298.78, 07-Jun-2013
1808,Revenue,CCHD,Supported Living - North,Private & Voluntary Home Care,Willowbank Care Limited,3938.44, 19-Jun-2013
1809,Revenue,CCHD,Supported Living - North,Private & Voluntary Home Care,Willowbank Care Limited,1298.78, 19-Jun-2013
1810,Revenue,CCHD,Supported Living - North,Private & Voluntary Home Care,Willowbank Care Limited,3838.48, 06-Jun-2013
1811,Revenue,CCHD,Supported Living - North,Private & Voluntary Home Care,Willowbank Care Limited,3838.48, 19-Jun-2013
1812,Revenue,CCHD,Supported Living - North,Private & Voluntary Home Care,Willowbank Care Limited,2958.62, 06-Jun-2013
1813,Revenue,CCHD,Supported Living - North,Private & Voluntary Home Care,Willowbank Care Limited,2958.62, 19-Jun-2013
1814,Revenue,CCHD,Supported Living - North,Private & Voluntary Home Care,Willowbank Care Limited,1459.36, 06-Jun-2013
1815,Revenue,CCHD,Supported Living - North,Private & Voluntary Home Care,Willowbank Care Limited,1459.36, 19-Jun-2013
1816,Revenue,CCHD,Supported Living - North,Private & Voluntary Home Care,Willowbank Care Limited,4688.06, 06-Jun-2013
1817,Revenue,CCHD,Supported Living - North,Private & Voluntary Home Care,Willowbank Care Limited,4688.06, 19-Jun-2013
1818,Revenue,CCHD,Supported Living - North,Private & Voluntary Home Care,Willowbank Care Limited,1967.7, 06-Jun-2013
1819,Revenue,CCHD,Supported Living - North,Private & Voluntary Home Care,Willowbank Care Limited,1967.7, 19-Jun-2013
1820,Revenue,CCHD,Supported Living - North,Private & Voluntary Home Care,Willowbank Care Limited,2623.04, 07-Jun-2013
